{"text_format":"3","workbook":"xlsx","n_sheets":15,"sheets":["Sådan bruger du denne skabelon","Liste over studerende","August","September","Oktober","November","December","Januar","Februar","Marts","April","Maj","Juni","Juli","Fremmøderapport for studerende"],"not_rendered":{"external_links":1,"defined_names":16},"read":"whole","date_system":"1900"}

{"sheet":"Sådan bruger du denne skabelon","index":0,"n_rows":25,"n_cols":5,"rows_kept":25,"merged":[[3,2,3,12],[4,4,4,12],[5,4,5,12],[6,4,6,12],[7,4,7,12],[8,4,8,7],[11,2,11,12],[12,4,12,12],[13,4,13,12],[14,4,14,12],[17,2,17,12],[18,4,18,12],[19,4,19,12],[20,4,20,12],[21,4,21,12],[24,2,24,12]]}
["SÅDAN BRUGER DU DENNE SKABELON"]
[]
[null,"HVOR STARTER JEG?"]
[null,null,"Der er nogle få ting, du skal gøre, før du kan begynde at spore de studerendes fremmøde:"]
[{"$nulls":3},"1.","Tilføje dine studerende: Angiv oplysninger for hver studerende i arket Liste over studerende , det kan f.eks. være navn på værge og kontaktdata. Studie-id'et er en vigtig angivelse, fordi det er et entydigt id for hver studerende og anvendes i projektmappen til de forskellige studie id-rullemenuer, så det er nemmere at angive data. De oplysninger, der angives på Liste over studerende, anvendes også på andre ark, f.eks. Fremmøderapport for studerende og de \nmånedlige fremmøderegistreringer."]
[{"$nulls":3},"2.","Ændre skolens kalenderår: Klik på kontrolelement af typen skalaknap på arket August for fremmøde i øverste højre kant af sidehovedet for at opdatere skolens kalenderår. Denne ændring opdaterer alle månedlige fremmøderegistreringer i hele projektmappen. (Bemærk, \nat skalaknappen ikke udskrives.)"]
[{"$nulls":3},"3.","(valgfrit) Ændre farverne i hele projektmappen:  Gå først til det sidste ark, Fremmøderapport for studerende . og klik på Fjern arkbeskyttelse i gruppen  Ændringer under fanen Gennemse. Klik derefter på  Farver i gruppen  Temaer  under fanen Sidelayout , og vælg en anden temafarveindstilling i farvegalleriet. Når du har foretaget farveændringerne, og eventuelle andre farveændringer, skal du gå tilbage til arket  Fremmøderapport for studerende og klikke på  Beskyt ark i gruppen Ændringer under fanen  Gennemse og derefter klikke på  OK."]
[{"$nulls":4},"Tip! Opret en brugerdefineret temafarve, der matcher skolens farver! Det gør du ved at klikke på  Farver i gruppen  Temaer under fanen Sidelayout  og derefter klikke på Opret nye temafarveri bunden af farvegalleriet. Du kan finde flere oplysninger om, hvordan \ndu opretter et brugerdefineret farvesæt, ved at se under følgende emne i hjælpen: "]
[{"$nulls":4},"Tilpasse et dokumenttema."]
[]
[null,"JEG HAR TILFØJET MINE STUDERENDE, HVAD GØR JEG SÅ NU?"]
[null,null,"Når dine studerende er blevet angivet på arket med listen over studerende, kan du begynde \nat spore deres fremmøde i skoleåret ved at gøre følgende:"]
[{"$nulls":3},"1.","Hvis du vil føje en studerende til en fremmøderegistrering, skal du klikke i cellen under kolonnen  Studie-id og vælge et id på listen. Den studerendes navn vises automatisk, \nnår du har valgt et id. "]
[{"$nulls":4},"Tip! Angiv data på en hurtigere måde! Når du har tilføjet dine studerende for en måned, kan du vælge de angivne studie-id'er, kopiere dem og indsætte dem i kolonnen \nStudie-id for de resterende måneder. "]
[{"$nulls":3},"2.","Angiv derefter deres fremmøderegistrering for hver dag i måneden ved hjælp af de fremmødetyper, der er angivet i farvenøglen. De studerendes fremmøde beregnes automatisk efter fremmødetype for hver studerende i kolonnen Totaler. Det samlede \nfravær for hver dag beregnes automatisk i bunden i rækken I alt."]
[]
[null,"HVORDAN TILFØJER JEG FLERE STUDERENDE TIL OVERSIGTEN OVER MÅNEDLIGT FREMMØDE?"]
[null,null,"Arkene med registreringen af det månedlige fremmøde og Listen over studerende er \nExcel-tabeller. Hvis du vil tilføje nye rækker til en Excel-tabel, skal du gøre følgende:"]
[{"$nulls":3},"● ","Hvis tabellen ikke har rækken I alt, skal du begynde at skrive under tabellen, så udvides den automatisk, når du trykker på Enter eller tabulatortasten."]
[{"$nulls":3},"● ","Placer cellemarkøren i den sidste celle over rækken I alt, f.eks. cellen Dage med fravær for den sidste studerende, og tryk derefter på tabulatortasten."]
[{"$nulls":3},"● ","Højreklik i tabellen, og peg på  Indsæt i genvejsmenuen, og klik derefter på \nTabelrækker ovenfor eller Tabelrækker nedenfor. "]
[{"$nulls":3},"● ","Placer musen over størrelseshåndtaget i nederste højre hjørne af tabellen, og træk ned for at øge antallet af rækker i tabellen."]
[]
[null,"KAN JEG FÅ VIST EN STUDERENDES FREMMØDE FOR HELE SKOLEÅRET?"]
[null,null,"Det sidste ark i denne projektmappe, Fremmøderapport for studerende, spor fremmødet for år til dato. Hvis du vil vise en rapport for en bestemt studerende, skal du klikke i cellen under  Studie-id og vælge et id i rullemenuen. De oplysninger, du tidligere har angivet på Liste over studerende for den valgte studerende, vises automatisk. Bemærk, at første gang, du bruger Fremmøderapport for studerende, skal du angive skole, karakter, underviser og lokale, \nDisse oplysninger ændres ikke, hvis du vælger en anden studerende. "]

{"sheet":"Liste over studerende","index":1,"n_rows":8,"n_cols":19,"rows_kept":8}
["LISTE OVER STUDERENDE"]
[]
[null,"Studie-id","Den studerendes fornavn","Den studerendes efternavn","Køn","Fødselsdato","Forælder eller værge 1","Forælder/værge \n1-relation","Forælder/værge \n1-arbejdsnummer","Forælder/værge \n1-hjemmenummer","Forælder/værge 2","Forælder/værge \n2-relation","Forælder/værge \n2-arbejdsnummer","Forælder/værge \n2-hjemmenummer","Kontakt ved nødstilfælde","Relation til kontakt \nved nødstilfælde","Arbejdsnummer til kontakt ved nødstilfælde","Hjemmenummer til kontakt ved nødstilfælde","Den studerendes fulde navn"]
[null,"S001","David","Alexander","M","1997-03-28","Michelle","Alexander",1235550134,2345550134,"Michael Alexander","Far",1235550134,2345550134,"Reed Koch","Bedstefar",7895550189,7895550134,{"$f":"ListeOverStuderende[[#This Row],[Den studerendes fornavn]]&\" \" &ListeOverStuderende[[#This Row],[Den studerendes efternavn]]","v":"David Alexander"}]
[null,"S002","Studerende",2,{"$nulls":14},{"$f":"ListeOverStuderende[[#This Row],[Den studerendes fornavn]]&\" \" &ListeOverStuderende[[#This Row],[Den studerendes efternavn]]","v":"Studerende 2"}]
[null,"S003","Studerende",3,{"$nulls":14},{"$f":"ListeOverStuderende[[#This Row],[Den studerendes fornavn]]&\" \" &ListeOverStuderende[[#This Row],[Den studerendes efternavn]]","v":"Studerende 3"}]
[null,"S004","Studerende",4,{"$nulls":14},{"$f":"ListeOverStuderende[[#This Row],[Den studerendes fornavn]]&\" \" &ListeOverStuderende[[#This Row],[Den studerendes efternavn]]","v":"Studerende 4"}]
[null,"S005","Studerende",5,{"$nulls":14},{"$f":"ListeOverStuderende[[#This Row],[Den studerendes fornavn]]&\" \" &ListeOverStuderende[[#This Row],[Den studerendes efternavn]]","v":"Studerende 5"}]

{"sheet":"August","index":2,"n_rows":12,"n_cols":39,"rows_kept":12,"merged":[[4,34,4,38]]}
["FREMMØDEREGISTRERING FOR STUDERENDE",{"$nulls":36},"Start på skoleår:",2012]
[]
[null,null,"FARVENØGLE ","F","Forsinket",null,null,"H","Har tilladelse",null,null,"H1","Har ikke tilladelse",null,null,"T","Til stede",null,null,"I","Ingen skolegang"]
[]
[null,{"$f":"DATE(Kalenderår,8,1)","v":"2012-08-01"},null,{"$f":"TEXT(WEEKDAY(DATE(Kalenderår,8,1),1),\"[$-406]aaa\")","v":"1900"},{"$f":"TEXT(WEEKDAY(DATE(Kalenderår,8,2),1),\"[$-406]aaa\")","v":"1900"},{"$f":"TEXT(WEEKDAY(DATE(Kalenderår,8,3),1),\"[$-406]aaa\")","v":"1900"},{"$f":"TEXT(WEEKDAY(DATE(Kalenderår,8,4),1),\"[$-406]aaa\")","v":"1900"},{"$f":"TEXT(WEEKDAY(DATE(Kalenderår,8,5),1),\"[$-406]aaa\")","v":"1900"},{"$f":"TEXT(WEEKDAY(DATE(Kalenderår,8,6),1),\"[$-406]aaa\")","v":"1900"},{"$f":"TEXT(WEEKDAY(DATE(Kalenderår,8,7),1),\"[$-406]aaa\")","v":"1900"},{"$f":"TEXT(WEEKDAY(DATE(Kalenderår,8,8),1),\"[$-406]aaa\")","v":"1900"},{"$f":"TEXT(WEEKDAY(DATE(Kalenderår,8,9),1),\"[$-406]aaa\")","v":"1900"},{"$f":"TEXT(WEEKDAY(DATE(Kalenderår,8,10),1),\"[$-406]aaa\")","v":"1900"},{"$f":"TEXT(WEEKDAY(DATE(Kalenderår,8,11),1),\"[$-406]aaa\")","v":"1900"},{"$f":"TEXT(WEEKDAY(DATE(Kalenderår,8,12),1),\"[$-406]aaa\")","v":"1900"},{"$f":"TEXT(WEEKDAY(DATE(Kalenderår,8,13),1),\"[$-406]aaa\")","v":"1900"},{"$f":"TEXT(WEEKDAY(DATE(Kalenderår,8,14),1),\"[$-406]aaa\")","v":"1900"},{"$f":"TEXT(WEEKDAY(DATE(Kalenderår,8,15),1),\"[$-406]aaa\")","v":"1900"},{"$f":"TEXT(WEEKDAY(DATE(Kalenderår,8,16),1),\"[$-406]aaa\")","v":"1900"},{"$f":"TEXT(WEEKDAY(DATE(Kalenderår,8,17),1),\"[$-406]aaa\")","v":"1900"},{"$f":"TEXT(WEEKDAY(DATE(Kalenderår,8,18),1),\"[$-406]aaa\")","v":"1900"},{"$f":"TEXT(WEEKDAY(DATE(Kalenderår,8,19),1),\"[$-406]aaa\")","v":"1900"},{"$f":"TEXT(WEEKDAY(DATE(Kalenderår,8,20),1),\"[$-406]aaa\")","v":"1900"},{"$f":"TEXT(WEEKDAY(DATE(Kalenderår,8,21),1),\"[$-406]aaa\")","v":"1900"},{"$f":"TEXT(WEEKDAY(DATE(Kalenderår,8,22),1),\"[$-406]aaa\")","v":"1900"},{"$f":"TEXT(WEEKDAY(DATE(Kalenderår,8,23),1),\"[$-406]aaa\")","v":"1900"},{"$f":"TEXT(WEEKDAY(DATE(Kalenderår,8,24),1),\"[$-406]aaa\")","v":"1900"},{"$f":"TEXT(WEEKDAY(DATE(Kalenderår,8,25),1),\"[$-406]aaa\")","v":"1900"},{"$f":"TEXT(WEEKDAY(DATE(Kalenderår,8,26),1),\"[$-406]aaa\")","v":"1900"},{"$f":"TEXT(WEEKDAY(DATE(Kalenderår,8,27),1),\"[$-406]aaa\")","v":"1900"},{"$f":"TEXT(WEEKDAY(DATE(Kalenderår,8,28),1),\"[$-406]aaa\")","v":"1900"},{"$f":"TEXT(WEEKDAY(DATE(Kalenderår,8,29),1),\"[$-406]aaa\")","v":"1900"},{"$f":"TEXT(WEEKDAY(DATE(Kalenderår,8,30),1),\"[$-406]aaa\")","v":"1900"},{"$f":"TEXT(WEEKDAY(DATE(Kalenderår,8,31),1),\"[$-406]aaa\")","v":"1900"},"Totaler"]
[null,"Studie-id","Den studerendes navn","1","2","3","4","5","6","7","8","9","10","11","12","13","14","15","16","17","18","19","20","21","22","23","24","25","26","27","28","29","30","31","F","H1","H","T","Dage med fravær"]
[null,"S001",{"$f":"IFERROR(VLOOKUP(August_deltagelse[[#This Row],[Studie-id]],ListeOverStuderende[],18,FALSE),\"\")","v":"David Alexander"},"T","T","F","F","T","I","I","T","T","H","T","T","I","I","T","T","T","T","T","I","I","T","T","T","T","T","I","I","T","T","T",{"$f":"COUNTIF(August_deltagelse[[#This Row],[1]:[31]],Kode1)","v":2},{"$f":"COUNTIF(August_deltagelse[[#This Row],[1]:[31]],Kode2)","v":1},{"$f":"COUNTIF(August_deltagelse[[#This Row],[1]:[31]],Kode3)","v":0},{"$f":"COUNTIF(August_deltagelse[[#This Row],[1]:[31]],Kode4)","v":20},{"$f":"SUM(August_deltagelse[[#This Row],[H1]:[H]])","v":1}]
[null,"S002",{"$f":"IFERROR(VLOOKUP(August_deltagelse[[#This Row],[Studie-id]],ListeOverStuderende[],18,FALSE),\"\")","v":"Studerende 2"},"T","H1","T","T","T","I","I","T","H","H","H","H","I","I","T","T","T","T","T","I","I","T","T","T","F","F","I","I","T","T","T",{"$f":"COUNTIF(August_deltagelse[[#This Row],[1]:[31]],Kode1)","v":2},{"$f":"COUNTIF(August_deltagelse[[#This Row],[1]:[31]],Kode2)","v":4},{"$f":"COUNTIF(August_deltagelse[[#This Row],[1]:[31]],Kode3)","v":1},{"$f":"COUNTIF(August_deltagelse[[#This Row],[1]:[31]],Kode4)","v":16},{"$f":"SUM(August_deltagelse[[#This Row],[H1]:[H]])","v":5}]
[null,"S003",{"$f":"IFERROR(VLOOKUP(August_deltagelse[[#This Row],[Studie-id]],ListeOverStuderende[],18,FALSE),\"\")","v":"Studerende 3"},"T","H","T","T","T","I","I","T","T","H1","T","T","I","I","T","T","T","T","T","I","I","T","T","H","H","T","I","I","T","T","T",{"$f":"COUNTIF(August_deltagelse[[#This Row],[1]:[31]],Kode1)","v":0},{"$f":"COUNTIF(August_deltagelse[[#This Row],[1]:[31]],Kode2)","v":3},{"$f":"COUNTIF(August_deltagelse[[#This Row],[1]:[31]],Kode3)","v":1},{"$f":"COUNTIF(August_deltagelse[[#This Row],[1]:[31]],Kode4)","v":19},{"$f":"SUM(August_deltagelse[[#This Row],[H1]:[H]])","v":4}]
[null,"S004",{"$f":"IFERROR(VLOOKUP(August_deltagelse[[#This Row],[Studie-id]],ListeOverStuderende[],18,FALSE),\"\")","v":"Studerende 4"},"T","T","T","T","T","I","I","T","T","T","T","T","I","I","T","T","T","T","T","I","I","T","H1","T","T","H","I","I","T","H","T",{"$f":"COUNTIF(August_deltagelse[[#This Row],[1]:[31]],Kode1)","v":0},{"$f":"COUNTIF(August_deltagelse[[#This Row],[1]:[31]],Kode2)","v":2},{"$f":"COUNTIF(August_deltagelse[[#This Row],[1]:[31]],Kode3)","v":1},{"$f":"COUNTIF(August_deltagelse[[#This Row],[1]:[31]],Kode4)","v":20},{"$f":"SUM(August_deltagelse[[#This Row],[H1]:[H]])","v":3}]
[null,"S005",{"$f":"IFERROR(VLOOKUP(August_deltagelse[[#This Row],[Studie-id]],ListeOverStuderende[],18,FALSE),\"\")","v":"Studerende 5"},"T","T","T","T","T","I","I","T","T","T","T","T","I","I","T","T","T","T","T","I","I","T","T","T","T","T","I","I","T","T","T",{"$f":"COUNTIF(August_deltagelse[[#This Row],[1]:[31]],Kode1)","v":0},{"$f":"COUNTIF(August_deltagelse[[#This Row],[1]:[31]],Kode2)","v":0},{"$f":"COUNTIF(August_deltagelse[[#This Row],[1]:[31]],Kode3)","v":0},{"$f":"COUNTIF(August_deltagelse[[#This Row],[1]:[31]],Kode4)","v":23},{"$f":"SUM(August_deltagelse[[#This Row],[H1]:[H]])","v":0}]
[null,null,"Antal dage med fravær i alt",{"$f":"COUNTIF(August_deltagelse[1],\"H1\")+COUNTIF(August_deltagelse[1],\"H\")","v":0},{"$f":"COUNTIF(August_deltagelse[2],\"H1\")+COUNTIF(August_deltagelse[2],\"H\")","v":2},{"$f":"COUNTIF(August_deltagelse[3],\"H1\")+COUNTIF(August_deltagelse[3],\"H\")","v":0},{"$f":"COUNTIF(August_deltagelse[4],\"H1\")+COUNTIF(August_deltagelse[4],\"H\")","v":0},{"$f":"COUNTIF(August_deltagelse[5],\"H1\")+COUNTIF(August_deltagelse[5],\"H\")","v":0},{"$f":"COUNTIF(August_deltagelse[6],\"H1\")+COUNTIF(August_deltagelse[6],\"H\")","v":0},{"$f":"COUNTIF(August_deltagelse[7],\"H1\")+COUNTIF(August_deltagelse[7],\"H\")","v":0},{"$f":"COUNTIF(August_deltagelse[8],\"H1\")+COUNTIF(August_deltagelse[8],\"H\")","v":0},{"$f":"COUNTIF(August_deltagelse[9],\"H1\")+COUNTIF(August_deltagelse[9],\"H\")","v":1},{"$f":"COUNTIF(August_deltagelse[10],\"H1\")+COUNTIF(August_deltagelse[10],\"H\")","v":3},{"$f":"COUNTIF(August_deltagelse[11],\"H1\")+COUNTIF(August_deltagelse[11],\"H\")","v":1},{"$f":"COUNTIF(August_deltagelse[12],\"H1\")+COUNTIF(August_deltagelse[12],\"H\")","v":1},{"$f":"COUNTIF(August_deltagelse[13],\"H1\")+COUNTIF(August_deltagelse[13],\"H\")","v":0},{"$f":"COUNTIF(August_deltagelse[14],\"H1\")+COUNTIF(August_deltagelse[14],\"H\")","v":0},{"$f":"COUNTIF(August_deltagelse[15],\"H1\")+COUNTIF(August_deltagelse[15],\"H\")","v":0},{"$f":"COUNTIF(August_deltagelse[16],\"H1\")+COUNTIF(August_deltagelse[16],\"H\")","v":0},{"$f":"COUNTIF(August_deltagelse[17],\"H1\")+COUNTIF(August_deltagelse[17],\"H\")","v":0},{"$f":"COUNTIF(August_deltagelse[18],\"H1\")+COUNTIF(August_deltagelse[18],\"H\")","v":0},{"$f":"COUNTIF(August_deltagelse[19],\"H1\")+COUNTIF(August_deltagelse[19],\"H\")","v":0},{"$f":"COUNTIF(August_deltagelse[20],\"H1\")+COUNTIF(August_deltagelse[20],\"H\")","v":0},{"$f":"COUNTIF(August_deltagelse[21],\"H1\")+COUNTIF(August_deltagelse[21],\"H\")","v":0},{"$f":"COUNTIF(August_deltagelse[22],\"H1\")+COUNTIF(August_deltagelse[22],\"H\")","v":0},{"$f":"COUNTIF(August_deltagelse[23],\"H1\")+COUNTIF(August_deltagelse[23],\"H\")","v":1},{"$f":"COUNTIF(August_deltagelse[24],\"H1\")+COUNTIF(August_deltagelse[24],\"H\")","v":1},{"$f":"COUNTIF(August_deltagelse[25],\"H1\")+COUNTIF(August_deltagelse[25],\"H\")","v":1},{"$f":"COUNTIF(August_deltagelse[26],\"H1\")+COUNTIF(August_deltagelse[26],\"H\")","v":1},{"$f":"COUNTIF(August_deltagelse[27],\"H1\")+COUNTIF(August_deltagelse[27],\"H\")","v":0},{"$f":"COUNTIF(August_deltagelse[28],\"H1\")+COUNTIF(August_deltagelse[28],\"H\")","v":0},{"$f":"COUNTIF(August_deltagelse[29],\"H1\")+COUNTIF(August_deltagelse[29],\"H\")","v":0},{"$f":"COUNTIF(August_deltagelse[30],\"H1\")+COUNTIF(August_deltagelse[30],\"H\")","v":1},{"$f":"COUNTIF(August_deltagelse[31],\"H1\")+COUNTIF(August_deltagelse[31],\"H\")","v":0},{"$f":"SUBTOTAL(105,August_deltagelse[F])","v":0},{"$f":"SUBTOTAL(109,August_deltagelse[H1])","v":10},{"$f":"SUBTOTAL(109,August_deltagelse[H])","v":3},{"$f":"SUBTOTAL(109,August_deltagelse[T])","v":98},{"$f":"SUBTOTAL(109,August_deltagelse[Dage med fravær])","v":13}]

{"sheet":"September","index":3,"n_rows":12,"n_cols":39,"rows_kept":12,"merged":[[4,34,4,38]]}
["FREMMØDEREGISTRERING FOR STUDERENDE",{"$nulls":36},"Start på skoleår:",{"$f":"Kalenderår","v":2012}]
[]
[null,null,{"$f":"TekstTilFarvenøgle","v":"FARVENØGLE "},{"$f":"Kode1","v":"F"},{"$f":"TekstTilKode1","v":"Forsinket"},null,null,{"$f":"Kode2","v":"H"},{"$f":"TekstTilKode2","v":"Har tilladelse"},null,null,{"$f":"Kode3","v":"H1"},{"$f":"TekstTilKode3","v":"Har ikke tilladelse"},null,null,{"$f":"Kode4","v":"T"},{"$f":"TekstTilKode4","v":"Til stede"},null,null,{"$f":"Kode5","v":"I"},{"$f":"TekstTilKode5","v":"Ingen skolegang"}]
[]
[null,{"$f":"DATE(Kalenderår,9,1)","v":"2012-09-01"},null,{"$f":"TEXT(WEEKDAY(DATE(Kalenderår,9,1),1),\"[$-406]aaa\")","v":"1900"},{"$f":"TEXT(WEEKDAY(DATE(Kalenderår,9,2),1),\"[$-406]aaa\")","v":"1900"},{"$f":"TEXT(WEEKDAY(DATE(Kalenderår,9,3),1),\"[$-406]aaa\")","v":"1900"},{"$f":"TEXT(WEEKDAY(DATE(Kalenderår,9,4),1),\"[$-406]aaa\")","v":"1900"},{"$f":"TEXT(WEEKDAY(DATE(Kalenderår,9,5),1),\"[$-406]aaa\")","v":"1900"},{"$f":"TEXT(WEEKDAY(DATE(Kalenderår,9,6),1),\"[$-406]aaa\")","v":"1900"},{"$f":"TEXT(WEEKDAY(DATE(Kalenderår,9,7),1),\"[$-406]aaa\")","v":"1900"},{"$f":"TEXT(WEEKDAY(DATE(Kalenderår,9,8),1),\"[$-406]aaa\")","v":"1900"},{"$f":"TEXT(WEEKDAY(DATE(Kalenderår,9,9),1),\"[$-406]aaa\")","v":"1900"},{"$f":"TEXT(WEEKDAY(DATE(Kalenderår,9,10),1),\"[$-406]aaa\")","v":"1900"},{"$f":"TEXT(WEEKDAY(DATE(Kalenderår,9,11),1),\"[$-406]aaa\")","v":"1900"},{"$f":"TEXT(WEEKDAY(DATE(Kalenderår,9,12),1),\"[$-406]aaa\")","v":"1900"},{"$f":"TEXT(WEEKDAY(DATE(Kalenderår,9,13),1),\"[$-406]aaa\")","v":"1900"},{"$f":"TEXT(WEEKDAY(DATE(Kalenderår,9,14),1),\"[$-406]aaa\")","v":"1900"},{"$f":"TEXT(WEEKDAY(DATE(Kalenderår,9,15),1),\"[$-406]aaa\")","v":"1900"},{"$f":"TEXT(WEEKDAY(DATE(Kalenderår,9,16),1),\"[$-406]aaa\")","v":"1900"},{"$f":"TEXT(WEEKDAY(DATE(Kalenderår,9,17),1),\"[$-406]aaa\")","v":"1900"},{"$f":"TEXT(WEEKDAY(DATE(Kalenderår,9,18),1),\"[$-406]aaa\")","v":"1900"},{"$f":"TEXT(WEEKDAY(DATE(Kalenderår,9,19),1),\"[$-406]aaa\")","v":"1900"},{"$f":"TEXT(WEEKDAY(DATE(Kalenderår,9,20),1),\"[$-406]aaa\")","v":"1900"},{"$f":"TEXT(WEEKDAY(DATE(Kalenderår,9,21),1),\"[$-406]aaa\")","v":"1900"},{"$f":"TEXT(WEEKDAY(DATE(Kalenderår,9,22),1),\"[$-406]aaa\")","v":"1900"},{"$f":"TEXT(WEEKDAY(DATE(Kalenderår,9,23),1),\"[$-406]aaa\")","v":"1900"},{"$f":"TEXT(WEEKDAY(DATE(Kalenderår,9,24),1),\"[$-406]aaa\")","v":"1900"},{"$f":"TEXT(WEEKDAY(DATE(Kalenderår,9,25),1),\"[$-406]aaa\")","v":"1900"},{"$f":"TEXT(WEEKDAY(DATE(Kalenderår,9,26),1),\"[$-406]aaa\")","v":"1900"},{"$f":"TEXT(WEEKDAY(DATE(Kalenderår,9,27),1),\"[$-406]aaa\")","v":"1900"},{"$f":"TEXT(WEEKDAY(DATE(Kalenderår,9,28),1),\"[$-406]aaa\")","v":"1900"},{"$f":"TEXT(WEEKDAY(DATE(Kalenderår,9,29),1),\"[$-406]aaa\")","v":"1900"},{"$f":"TEXT(WEEKDAY(DATE(Kalenderår,9,30),1),\"[$-406]aaa\")","v":"1900"},null,"Totaler"]
[null,"Studie-id","Den studerendes navn","1","2","3","4","5","6","7","8","9","10","11","12","13","14","15","16","17","18","19","20","21","22","23","24","25","26","27","28","29","30"," ","F","H1","H","T","Dage med fravær"]
[null,null,{"$f":"IFERROR(VLOOKUP(September_deltagelse[[#This Row],[Studie-id]],ListeOverStuderende[],18,FALSE),\"\")","v":""},{"$nulls":31},{"$f":"COUNTIF(September_deltagelse[[#This Row],[1]:[ ]],Kode1)","v":0},{"$f":"COUNTIF(September_deltagelse[[#This Row],[1]:[ ]],Kode2)","v":0},{"$f":"COUNTIF(September_deltagelse[[#This Row],[1]:[ ]],Kode3)","v":0},{"$f":"COUNTIF(September_deltagelse[[#This Row],[1]:[ ]],Kode4)","v":0},{"$f":"SUM(September_deltagelse[[#This Row],[H1]:[H]])","v":0}]
[null,null,{"$f":"IFERROR(VLOOKUP(September_deltagelse[[#This Row],[Studie-id]],ListeOverStuderende[],18,FALSE),\"\")","v":""},{"$nulls":31},{"$f":"COUNTIF(September_deltagelse[[#This Row],[1]:[ ]],Kode1)","v":0},{"$f":"COUNTIF(September_deltagelse[[#This Row],[1]:[ ]],Kode2)","v":0},{"$f":"COUNTIF(September_deltagelse[[#This Row],[1]:[ ]],Kode3)","v":0},{"$f":"COUNTIF(September_deltagelse[[#This Row],[1]:[ ]],Kode4)","v":0},{"$f":"SUM(September_deltagelse[[#This Row],[H1]:[H]])","v":0}]
[null,null,{"$f":"IFERROR(VLOOKUP(September_deltagelse[[#This Row],[Studie-id]],ListeOverStuderende[],18,FALSE),\"\")","v":""},{"$nulls":31},{"$f":"COUNTIF(September_deltagelse[[#This Row],[1]:[ ]],Kode1)","v":0},{"$f":"COUNTIF(September_deltagelse[[#This Row],[1]:[ ]],Kode2)","v":0},{"$f":"COUNTIF(September_deltagelse[[#This Row],[1]:[ ]],Kode3)","v":0},{"$f":"COUNTIF(September_deltagelse[[#This Row],[1]:[ ]],Kode4)","v":0},{"$f":"SUM(September_deltagelse[[#This Row],[H1]:[H]])","v":0}]
[null,null,{"$f":"IFERROR(VLOOKUP(September_deltagelse[[#This Row],[Studie-id]],ListeOverStuderende[],18,FALSE),\"\")","v":""},{"$nulls":31},{"$f":"COUNTIF(September_deltagelse[[#This Row],[1]:[ ]],Kode1)","v":0},{"$f":"COUNTIF(September_deltagelse[[#This Row],[1]:[ ]],Kode2)","v":0},{"$f":"COUNTIF(September_deltagelse[[#This Row],[1]:[ ]],Kode3)","v":0},{"$f":"COUNTIF(September_deltagelse[[#This Row],[1]:[ ]],Kode4)","v":0},{"$f":"SUM(September_deltagelse[[#This Row],[H1]:[H]])","v":0}]
[null,null,{"$f":"IFERROR(VLOOKUP(September_deltagelse[[#This Row],[Studie-id]],ListeOverStuderende[],18,FALSE),\"\")","v":""},{"$nulls":31},{"$f":"COUNTIF(September_deltagelse[[#This Row],[1]:[ ]],Kode1)","v":0},{"$f":"COUNTIF(September_deltagelse[[#This Row],[1]:[ ]],Kode2)","v":0},{"$f":"COUNTIF(September_deltagelse[[#This Row],[1]:[ ]],Kode3)","v":0},{"$f":"COUNTIF(September_deltagelse[[#This Row],[1]:[ ]],Kode4)","v":0},{"$f":"SUM(September_deltagelse[[#This Row],[H1]:[H]])","v":0}]
[null,null,"Antal dage med fravær i alt",{"$f":"COUNTIF(September_deltagelse[1],\"H1\")+COUNTIF(September_deltagelse[1],\"H\")","v":0},{"$f":"COUNTIF(September_deltagelse[2],\"H1\")+COUNTIF(September_deltagelse[2],\"H\")","v":0},{"$f":"COUNTIF(September_deltagelse[3],\"H1\")+COUNTIF(September_deltagelse[3],\"H\")","v":0},{"$f":"COUNTIF(September_deltagelse[4],\"H1\")+COUNTIF(September_deltagelse[4],\"H\")","v":0},{"$f":"COUNTIF(September_deltagelse[5],\"H1\")+COUNTIF(September_deltagelse[5],\"H\")","v":0},{"$f":"COUNTIF(September_deltagelse[6],\"H1\")+COUNTIF(September_deltagelse[6],\"H\")","v":0},{"$f":"COUNTIF(September_deltagelse[7],\"H1\")+COUNTIF(September_deltagelse[7],\"H\")","v":0},{"$f":"COUNTIF(September_deltagelse[8],\"H1\")+COUNTIF(September_deltagelse[8],\"H\")","v":0},{"$f":"COUNTIF(September_deltagelse[9],\"H1\")+COUNTIF(September_deltagelse[9],\"H\")","v":0},{"$f":"COUNTIF(September_deltagelse[10],\"H1\")+COUNTIF(September_deltagelse[10],\"H\")","v":0},{"$f":"COUNTIF(September_deltagelse[11],\"H1\")+COUNTIF(September_deltagelse[11],\"H\")","v":0},{"$f":"COUNTIF(September_deltagelse[12],\"H1\")+COUNTIF(September_deltagelse[12],\"H\")","v":0},{"$f":"COUNTIF(September_deltagelse[13],\"H1\")+COUNTIF(September_deltagelse[13],\"H\")","v":0},{"$f":"COUNTIF(September_deltagelse[14],\"H1\")+COUNTIF(September_deltagelse[14],\"H\")","v":0},{"$f":"COUNTIF(September_deltagelse[15],\"H1\")+COUNTIF(September_deltagelse[15],\"H\")","v":0},{"$f":"COUNTIF(September_deltagelse[16],\"H1\")+COUNTIF(September_deltagelse[16],\"H\")","v":0},{"$f":"COUNTIF(September_deltagelse[17],\"H1\")+COUNTIF(September_deltagelse[17],\"H\")","v":0},{"$f":"COUNTIF(September_deltagelse[18],\"H1\")+COUNTIF(September_deltagelse[18],\"H\")","v":0},{"$f":"COUNTIF(September_deltagelse[19],\"H1\")+COUNTIF(September_deltagelse[19],\"H\")","v":0},{"$f":"COUNTIF(September_deltagelse[20],\"H1\")+COUNTIF(September_deltagelse[20],\"H\")","v":0},{"$f":"COUNTIF(September_deltagelse[21],\"H1\")+COUNTIF(September_deltagelse[21],\"H\")","v":0},{"$f":"COUNTIF(September_deltagelse[22],\"H1\")+COUNTIF(September_deltagelse[22],\"H\")","v":0},{"$f":"COUNTIF(September_deltagelse[23],\"H1\")+COUNTIF(September_deltagelse[23],\"H\")","v":0},{"$f":"COUNTIF(September_deltagelse[24],\"H1\")+COUNTIF(September_deltagelse[24],\"H\")","v":0},{"$f":"COUNTIF(September_deltagelse[25],\"H1\")+COUNTIF(September_deltagelse[25],\"H\")","v":0},{"$f":"COUNTIF(September_deltagelse[26],\"H1\")+COUNTIF(September_deltagelse[26],\"H\")","v":0},{"$f":"COUNTIF(September_deltagelse[27],\"H1\")+COUNTIF(September_deltagelse[27],\"H\")","v":0},{"$f":"COUNTIF(September_deltagelse[28],\"H1\")+COUNTIF(September_deltagelse[28],\"H\")","v":0},{"$f":"COUNTIF(September_deltagelse[29],\"H1\")+COUNTIF(September_deltagelse[29],\"H\")","v":0},{"$f":"COUNTIF(September_deltagelse[30],\"H1\")+COUNTIF(September_deltagelse[30],\"H\")","v":0},null,{"$f":"SUBTOTAL(105,September_deltagelse[F])","v":0},{"$f":"SUBTOTAL(109,September_deltagelse[H1])","v":0},{"$f":"SUBTOTAL(109,September_deltagelse[H])","v":0},{"$f":"SUBTOTAL(109,September_deltagelse[T])","v":0},{"$f":"SUBTOTAL(109,September_deltagelse[Dage med fravær])","v":0}]

{"sheet":"Oktober","index":4,"n_rows":12,"n_cols":39,"rows_kept":12,"merged":[[4,34,4,38]]}
["FREMMØDEREGISTRERING FOR STUDERENDE",{"$nulls":36},"Start på skoleår:",{"$f":"Kalenderår","v":2012}]
[]
[null,null,{"$f":"TekstTilFarvenøgle","v":"FARVENØGLE "},{"$f":"Kode1","v":"F"},{"$f":"TekstTilKode1","v":"Forsinket"},null,null,{"$f":"Kode2","v":"H"},{"$f":"TekstTilKode2","v":"Har tilladelse"},null,null,{"$f":"Kode3","v":"H1"},{"$f":"TekstTilKode3","v":"Har ikke tilladelse"},null,null,{"$f":"Kode4","v":"T"},{"$f":"TekstTilKode4","v":"Til stede"},null,null,{"$f":"Kode5","v":"I"},{"$f":"TekstTilKode5","v":"Ingen skolegang"}]
[]
[null,{"$f":"DATE(Kalenderår,10,1)","v":"2012-10-01"},null,{"$f":"TEXT(WEEKDAY(DATE(Kalenderår,10,1),1),\"[$-406]aaa\")","v":"1900"},{"$f":"TEXT(WEEKDAY(DATE(Kalenderår,10,2),1),\"[$-406]aaa\")","v":"1900"},{"$f":"TEXT(WEEKDAY(DATE(Kalenderår,10,3),1),\"[$-406]aaa\")","v":"1900"},{"$f":"TEXT(WEEKDAY(DATE(Kalenderår,10,4),1),\"[$-406]aaa\")","v":"1900"},{"$f":"TEXT(WEEKDAY(DATE(Kalenderår,10,5),1),\"[$-406]aaa\")","v":"1900"},{"$f":"TEXT(WEEKDAY(DATE(Kalenderår,10,6),1),\"[$-406]aaa\")","v":"1900"},{"$f":"TEXT(WEEKDAY(DATE(Kalenderår,10,7),1),\"[$-406]aaa\")","v":"1900"},{"$f":"TEXT(WEEKDAY(DATE(Kalenderår,10,8),1),\"[$-406]aaa\")","v":"1900"},{"$f":"TEXT(WEEKDAY(DATE(Kalenderår,10,9),1),\"[$-406]aaa\")","v":"1900"},{"$f":"TEXT(WEEKDAY(DATE(Kalenderår,10,10),1),\"[$-406]aaa\")","v":"1900"},{"$f":"TEXT(WEEKDAY(DATE(Kalenderår,10,11),1),\"[$-406]aaa\")","v":"1900"},{"$f":"TEXT(WEEKDAY(DATE(Kalenderår,10,12),1),\"[$-406]aaa\")","v":"1900"},{"$f":"TEXT(WEEKDAY(DATE(Kalenderår,10,13),1),\"[$-406]aaa\")","v":"1900"},{"$f":"TEXT(WEEKDAY(DATE(Kalenderår,10,14),1),\"[$-406]aaa\")","v":"1900"},{"$f":"TEXT(WEEKDAY(DATE(Kalenderår,10,15),1),\"[$-406]aaa\")","v":"1900"},{"$f":"TEXT(WEEKDAY(DATE(Kalenderår,10,16),1),\"[$-406]aaa\")","v":"1900"},{"$f":"TEXT(WEEKDAY(DATE(Kalenderår,10,17),1),\"[$-406]aaa\")","v":"1900"},{"$f":"TEXT(WEEKDAY(DATE(Kalenderår,10,18),1),\"[$-406]aaa\")","v":"1900"},{"$f":"TEXT(WEEKDAY(DATE(Kalenderår,10,19),1),\"[$-406]aaa\")","v":"1900"},{"$f":"TEXT(WEEKDAY(DATE(Kalenderår,10,20),1),\"[$-406]aaa\")","v":"1900"},{"$f":"TEXT(WEEKDAY(DATE(Kalenderår,10,21),1),\"[$-406]aaa\")","v":"1900"},{"$f":"TEXT(WEEKDAY(DATE(Kalenderår,10,22),1),\"[$-406]aaa\")","v":"1900"},{"$f":"TEXT(WEEKDAY(DATE(Kalenderår,10,23),1),\"[$-406]aaa\")","v":"1900"},{"$f":"TEXT(WEEKDAY(DATE(Kalenderår,10,24),1),\"[$-406]aaa\")","v":"1900"},{"$f":"TEXT(WEEKDAY(DATE(Kalenderår,10,25),1),\"[$-406]aaa\")","v":"1900"},{"$f":"TEXT(WEEKDAY(DATE(Kalenderår,10,26),1),\"[$-406]aaa\")","v":"1900"},{"$f":"TEXT(WEEKDAY(DATE(Kalenderår,10,27),1),\"[$-406]aaa\")","v":"1900"},{"$f":"TEXT(WEEKDAY(DATE(Kalenderår,10,28),1),\"[$-406]aaa\")","v":"1900"},{"$f":"TEXT(WEEKDAY(DATE(Kalenderår,10,29),1),\"[$-406]aaa\")","v":"1900"},{"$f":"TEXT(WEEKDAY(DATE(Kalenderår,10,30),1),\"[$-406]aaa\")","v":"1900"},{"$f":"TEXT(WEEKDAY(DATE(Kalenderår,10,31),1),\"[$-406]aaa\")","v":"1900"},"Totaler"]
[null,"Studie-id","Den studerendes navn","1","2","3","4","5","6","7","8","9","10","11","12","13","14","15","16","17","18","19","20","21","22","23","24","25","26","27","28","29","30","31","F","H1","H","T","Dage med fravær"]
[null,null,{"$f":"IFERROR(VLOOKUP(Oktober_deltagelse[[#This Row],[Studie-id]],ListeOverStuderende[],18,FALSE),\"\")","v":""},{"$nulls":31},{"$f":"COUNTIF(Oktober_deltagelse[[#This Row],[1]:[31]],Kode1)","v":0},{"$f":"COUNTIF(Oktober_deltagelse[[#This Row],[1]:[31]],Kode2)","v":0},{"$f":"COUNTIF(Oktober_deltagelse[[#This Row],[1]:[31]],Kode3)","v":0},{"$f":"COUNTIF(Oktober_deltagelse[[#This Row],[1]:[31]],Kode4)","v":0},{"$f":"SUM(Oktober_deltagelse[[#This Row],[H1]:[H]])","v":0}]
[null,null,{"$f":"IFERROR(VLOOKUP(Oktober_deltagelse[[#This Row],[Studie-id]],ListeOverStuderende[],18,FALSE),\"\")","v":""},{"$nulls":31},{"$f":"COUNTIF(Oktober_deltagelse[[#This Row],[1]:[31]],Kode1)","v":0},{"$f":"COUNTIF(Oktober_deltagelse[[#This Row],[1]:[31]],Kode2)","v":0},{"$f":"COUNTIF(Oktober_deltagelse[[#This Row],[1]:[31]],Kode3)","v":0},{"$f":"COUNTIF(Oktober_deltagelse[[#This Row],[1]:[31]],Kode4)","v":0},{"$f":"SUM(Oktober_deltagelse[[#This Row],[H1]:[H]])","v":0}]
[null,null,{"$f":"IFERROR(VLOOKUP(Oktober_deltagelse[[#This Row],[Studie-id]],ListeOverStuderende[],18,FALSE),\"\")","v":""},{"$nulls":31},{"$f":"COUNTIF(Oktober_deltagelse[[#This Row],[1]:[31]],Kode1)","v":0},{"$f":"COUNTIF(Oktober_deltagelse[[#This Row],[1]:[31]],Kode2)","v":0},{"$f":"COUNTIF(Oktober_deltagelse[[#This Row],[1]:[31]],Kode3)","v":0},{"$f":"COUNTIF(Oktober_deltagelse[[#This Row],[1]:[31]],Kode4)","v":0},{"$f":"SUM(Oktober_deltagelse[[#This Row],[H1]:[H]])","v":0}]
[null,null,{"$f":"IFERROR(VLOOKUP(Oktober_deltagelse[[#This Row],[Studie-id]],ListeOverStuderende[],18,FALSE),\"\")","v":""},{"$nulls":31},{"$f":"COUNTIF(Oktober_deltagelse[[#This Row],[1]:[31]],Kode1)","v":0},{"$f":"COUNTIF(Oktober_deltagelse[[#This Row],[1]:[31]],Kode2)","v":0},{"$f":"COUNTIF(Oktober_deltagelse[[#This Row],[1]:[31]],Kode3)","v":0},{"$f":"COUNTIF(Oktober_deltagelse[[#This Row],[1]:[31]],Kode4)","v":0},{"$f":"SUM(Oktober_deltagelse[[#This Row],[H1]:[H]])","v":0}]
[null,null,{"$f":"IFERROR(VLOOKUP(Oktober_deltagelse[[#This Row],[Studie-id]],ListeOverStuderende[],18,FALSE),\"\")","v":""},{"$nulls":31},{"$f":"COUNTIF(Oktober_deltagelse[[#This Row],[1]:[31]],Kode1)","v":0},{"$f":"COUNTIF(Oktober_deltagelse[[#This Row],[1]:[31]],Kode2)","v":0},{"$f":"COUNTIF(Oktober_deltagelse[[#This Row],[1]:[31]],Kode3)","v":0},{"$f":"COUNTIF(Oktober_deltagelse[[#This Row],[1]:[31]],Kode4)","v":0},{"$f":"SUM(Oktober_deltagelse[[#This Row],[H1]:[H]])","v":0}]
[null,null,"Antal dage med fravær i alt",{"$f":"COUNTIF(Oktober_deltagelse[1],\"H1\")+COUNTIF(Oktober_deltagelse[1],\"H\")","v":0},{"$f":"COUNTIF(Oktober_deltagelse[2],\"H1\")+COUNTIF(Oktober_deltagelse[2],\"H\")","v":0},{"$f":"COUNTIF(Oktober_deltagelse[3],\"H1\")+COUNTIF(Oktober_deltagelse[3],\"H\")","v":0},{"$f":"COUNTIF(Oktober_deltagelse[4],\"H1\")+COUNTIF(Oktober_deltagelse[4],\"H\")","v":0},{"$f":"COUNTIF(Oktober_deltagelse[5],\"H1\")+COUNTIF(Oktober_deltagelse[5],\"H\")","v":0},{"$f":"COUNTIF(Oktober_deltagelse[6],\"H1\")+COUNTIF(Oktober_deltagelse[6],\"H\")","v":0},{"$f":"COUNTIF(Oktober_deltagelse[7],\"H1\")+COUNTIF(Oktober_deltagelse[7],\"H\")","v":0},{"$f":"COUNTIF(Oktober_deltagelse[8],\"H1\")+COUNTIF(Oktober_deltagelse[8],\"H\")","v":0},{"$f":"COUNTIF(Oktober_deltagelse[9],\"H1\")+COUNTIF(Oktober_deltagelse[9],\"H\")","v":0},{"$f":"COUNTIF(Oktober_deltagelse[10],\"H1\")+COUNTIF(Oktober_deltagelse[10],\"H\")","v":0},{"$f":"COUNTIF(Oktober_deltagelse[11],\"H1\")+COUNTIF(Oktober_deltagelse[11],\"H\")","v":0},{"$f":"COUNTIF(Oktober_deltagelse[12],\"H1\")+COUNTIF(Oktober_deltagelse[12],\"H\")","v":0},{"$f":"COUNTIF(Oktober_deltagelse[13],\"H1\")+COUNTIF(Oktober_deltagelse[13],\"H\")","v":0},{"$f":"COUNTIF(Oktober_deltagelse[14],\"H1\")+COUNTIF(Oktober_deltagelse[14],\"H\")","v":0},{"$f":"COUNTIF(Oktober_deltagelse[15],\"H1\")+COUNTIF(Oktober_deltagelse[15],\"H\")","v":0},{"$f":"COUNTIF(Oktober_deltagelse[16],\"H1\")+COUNTIF(Oktober_deltagelse[16],\"H\")","v":0},{"$f":"COUNTIF(Oktober_deltagelse[17],\"H1\")+COUNTIF(Oktober_deltagelse[17],\"H\")","v":0},{"$f":"COUNTIF(Oktober_deltagelse[18],\"H1\")+COUNTIF(Oktober_deltagelse[18],\"H\")","v":0},{"$f":"COUNTIF(Oktober_deltagelse[19],\"H1\")+COUNTIF(Oktober_deltagelse[19],\"H\")","v":0},{"$f":"COUNTIF(Oktober_deltagelse[20],\"H1\")+COUNTIF(Oktober_deltagelse[20],\"H\")","v":0},{"$f":"COUNTIF(Oktober_deltagelse[21],\"H1\")+COUNTIF(Oktober_deltagelse[21],\"H\")","v":0},{"$f":"COUNTIF(Oktober_deltagelse[22],\"H1\")+COUNTIF(Oktober_deltagelse[22],\"H\")","v":0},{"$f":"COUNTIF(Oktober_deltagelse[23],\"H1\")+COUNTIF(Oktober_deltagelse[23],\"H\")","v":0},{"$f":"COUNTIF(Oktober_deltagelse[24],\"H1\")+COUNTIF(Oktober_deltagelse[24],\"H\")","v":0},{"$f":"COUNTIF(Oktober_deltagelse[25],\"H1\")+COUNTIF(Oktober_deltagelse[25],\"H\")","v":0},{"$f":"COUNTIF(Oktober_deltagelse[26],\"H1\")+COUNTIF(Oktober_deltagelse[26],\"H\")","v":0},{"$f":"COUNTIF(Oktober_deltagelse[27],\"H1\")+COUNTIF(Oktober_deltagelse[27],\"H\")","v":0},{"$f":"COUNTIF(Oktober_deltagelse[28],\"H1\")+COUNTIF(Oktober_deltagelse[28],\"H\")","v":0},{"$f":"COUNTIF(Oktober_deltagelse[29],\"H1\")+COUNTIF(Oktober_deltagelse[29],\"H\")","v":0},{"$f":"COUNTIF(Oktober_deltagelse[30],\"H1\")+COUNTIF(Oktober_deltagelse[30],\"H\")","v":0},{"$f":"COUNTIF(Oktober_deltagelse[31],\"H1\")+COUNTIF(Oktober_deltagelse[31],\"H\")","v":0},{"$f":"SUBTOTAL(109,Oktober_deltagelse[F])","v":0},{"$f":"SUBTOTAL(109,Oktober_deltagelse[H1])","v":0},{"$f":"SUBTOTAL(109,Oktober_deltagelse[H])","v":0},{"$f":"SUBTOTAL(109,Oktober_deltagelse[T])","v":0},{"$f":"SUBTOTAL(109,Oktober_deltagelse[Dage med fravær])","v":0}]

{"sheet":"November","index":5,"n_rows":12,"n_cols":39,"rows_kept":12,"merged":[[4,34,4,38]]}
["FREMMØDEREGISTRERING FOR STUDERENDE",{"$nulls":36},"Start på skoleår:",{"$f":"Kalenderår","v":2012}]
[]
[null,null,{"$f":"TekstTilFarvenøgle","v":"FARVENØGLE "},{"$f":"Kode1","v":"F"},{"$f":"TekstTilKode1","v":"Forsinket"},null,null,{"$f":"Kode2","v":"H"},{"$f":"TekstTilKode2","v":"Har tilladelse"},null,null,{"$f":"Kode3","v":"H1"},{"$f":"TekstTilKode3","v":"Har ikke tilladelse"},null,null,{"$f":"Kode4","v":"T"},{"$f":"TekstTilKode4","v":"Til stede"},null,null,{"$f":"Kode5","v":"I"},{"$f":"TekstTilKode5","v":"Ingen skolegang"}]
[]
[null,{"$f":"DATE(Kalenderår,11,1)","v":"2012-11-01"},null,{"$f":"TEXT(WEEKDAY(DATE(Kalenderår,11,1),1),\"[$-406]aaa\")","v":"1900"},{"$f":"TEXT(WEEKDAY(DATE(Kalenderår,11,2),1),\"[$-406]aaa\")","v":"1900"},{"$f":"TEXT(WEEKDAY(DATE(Kalenderår,11,3),1),\"[$-406]aaa\")","v":"1900"},{"$f":"TEXT(WEEKDAY(DATE(Kalenderår,11,4),1),\"[$-406]aaa\")","v":"1900"},{"$f":"TEXT(WEEKDAY(DATE(Kalenderår,11,5),1),\"[$-406]aaa\")","v":"1900"},{"$f":"TEXT(WEEKDAY(DATE(Kalenderår,11,6),1),\"[$-406]aaa\")","v":"1900"},{"$f":"TEXT(WEEKDAY(DATE(Kalenderår,11,7),1),\"[$-406]aaa\")","v":"1900"},{"$f":"TEXT(WEEKDAY(DATE(Kalenderår,11,8),1),\"[$-406]aaa\")","v":"1900"},{"$f":"TEXT(WEEKDAY(DATE(Kalenderår,11,9),1),\"[$-406]aaa\")","v":"1900"},{"$f":"TEXT(WEEKDAY(DATE(Kalenderår,11,10),1),\"[$-406]aaa\")","v":"1900"},{"$f":"TEXT(WEEKDAY(DATE(Kalenderår,11,11),1),\"[$-406]aaa\")","v":"1900"},{"$f":"TEXT(WEEKDAY(DATE(Kalenderår,11,12),1),\"[$-406]aaa\")","v":"1900"},{"$f":"TEXT(WEEKDAY(DATE(Kalenderår,11,13),1),\"[$-406]aaa\")","v":"1900"},{"$f":"TEXT(WEEKDAY(DATE(Kalenderår,11,14),1),\"[$-406]aaa\")","v":"1900"},{"$f":"TEXT(WEEKDAY(DATE(Kalenderår,11,15),1),\"[$-406]aaa\")","v":"1900"},{"$f":"TEXT(WEEKDAY(DATE(Kalenderår,11,16),1),\"[$-406]aaa\")","v":"1900"},{"$f":"TEXT(WEEKDAY(DATE(Kalenderår,11,17),1),\"[$-406]aaa\")","v":"1900"},{"$f":"TEXT(WEEKDAY(DATE(Kalenderår,11,18),1),\"[$-406]aaa\")","v":"1900"},{"$f":"TEXT(WEEKDAY(DATE(Kalenderår,11,19),1),\"[$-406]aaa\")","v":"1900"},{"$f":"TEXT(WEEKDAY(DATE(Kalenderår,11,20),1),\"[$-406]aaa\")","v":"1900"},{"$f":"TEXT(WEEKDAY(DATE(Kalenderår,11,21),1),\"[$-406]aaa\")","v":"1900"},{"$f":"TEXT(WEEKDAY(DATE(Kalenderår,11,22),1),\"[$-406]aaa\")","v":"1900"},{"$f":"TEXT(WEEKDAY(DATE(Kalenderår,11,23),1),\"[$-406]aaa\")","v":"1900"},{"$f":"TEXT(WEEKDAY(DATE(Kalenderår,11,24),1),\"[$-406]aaa\")","v":"1900"},{"$f":"TEXT(WEEKDAY(DATE(Kalenderår,11,25),1),\"[$-406]aaa\")","v":"1900"},{"$f":"TEXT(WEEKDAY(DATE(Kalenderår,11,26),1),\"[$-406]aaa\")","v":"1900"},{"$f":"TEXT(WEEKDAY(DATE(Kalenderår,11,27),1),\"[$-406]aaa\")","v":"1900"},{"$f":"TEXT(WEEKDAY(DATE(Kalenderår,11,28),1),\"[$-406]aaa\")","v":"1900"},{"$f":"TEXT(WEEKDAY(DATE(Kalenderår,11,29),1),\"[$-406]aaa\")","v":"1900"},{"$f":"TEXT(WEEKDAY(DATE(Kalenderår,11,30),1),\"[$-406]aaa\")","v":"1900"},null,"Totaler"]
[null,"Studie-id","Den studerendes navn","1","2","3","4","5","6","7","8","9","10","11","12","13","14","15","16","17","18","19","20","21","22","23","24","25","26","27","28","29","30"," ","F","H1","H","T","Dage med fravær"]
[null,null,{"$f":"IFERROR(VLOOKUP(November_deltagelse[[#This Row],[Studie-id]],ListeOverStuderende[],18,FALSE),\"\")","v":""},{"$nulls":31},{"$f":"COUNTIF(November_deltagelse[[#This Row],[1]:[ ]],Kode1)","v":0},{"$f":"COUNTIF(November_deltagelse[[#This Row],[1]:[ ]],Kode2)","v":0},{"$f":"COUNTIF(November_deltagelse[[#This Row],[1]:[ ]],Kode3)","v":0},{"$f":"COUNTIF(November_deltagelse[[#This Row],[1]:[ ]],Kode4)","v":0},{"$f":"SUM(November_deltagelse[[#This Row],[H1]:[H]])","v":0}]
[null,null,{"$f":"IFERROR(VLOOKUP(November_deltagelse[[#This Row],[Studie-id]],ListeOverStuderende[],18,FALSE),\"\")","v":""},{"$nulls":31},{"$f":"COUNTIF(November_deltagelse[[#This Row],[1]:[ ]],Kode1)","v":0},{"$f":"COUNTIF(November_deltagelse[[#This Row],[1]:[ ]],Kode2)","v":0},{"$f":"COUNTIF(November_deltagelse[[#This Row],[1]:[ ]],Kode3)","v":0},{"$f":"COUNTIF(November_deltagelse[[#This Row],[1]:[ ]],Kode4)","v":0},{"$f":"SUM(November_deltagelse[[#This Row],[H1]:[H]])","v":0}]
[null,null,{"$f":"IFERROR(VLOOKUP(November_deltagelse[[#This Row],[Studie-id]],ListeOverStuderende[],18,FALSE),\"\")","v":""},{"$nulls":31},{"$f":"COUNTIF(November_deltagelse[[#This Row],[1]:[ ]],Kode1)","v":0},{"$f":"COUNTIF(November_deltagelse[[#This Row],[1]:[ ]],Kode2)","v":0},{"$f":"COUNTIF(November_deltagelse[[#This Row],[1]:[ ]],Kode3)","v":0},{"$f":"COUNTIF(November_deltagelse[[#This Row],[1]:[ ]],Kode4)","v":0},{"$f":"SUM(November_deltagelse[[#This Row],[H1]:[H]])","v":0}]
[null,null,{"$f":"IFERROR(VLOOKUP(November_deltagelse[[#This Row],[Studie-id]],ListeOverStuderende[],18,FALSE),\"\")","v":""},{"$nulls":31},{"$f":"COUNTIF(November_deltagelse[[#This Row],[1]:[ ]],Kode1)","v":0},{"$f":"COUNTIF(November_deltagelse[[#This Row],[1]:[ ]],Kode2)","v":0},{"$f":"COUNTIF(November_deltagelse[[#This Row],[1]:[ ]],Kode3)","v":0},{"$f":"COUNTIF(November_deltagelse[[#This Row],[1]:[ ]],Kode4)","v":0},{"$f":"SUM(November_deltagelse[[#This Row],[H1]:[H]])","v":0}]
[null,null,{"$f":"IFERROR(VLOOKUP(November_deltagelse[[#This Row],[Studie-id]],ListeOverStuderende[],18,FALSE),\"\")","v":""},{"$nulls":31},{"$f":"COUNTIF(November_deltagelse[[#This Row],[1]:[ ]],Kode1)","v":0},{"$f":"COUNTIF(November_deltagelse[[#This Row],[1]:[ ]],Kode2)","v":0},{"$f":"COUNTIF(November_deltagelse[[#This Row],[1]:[ ]],Kode3)","v":0},{"$f":"COUNTIF(November_deltagelse[[#This Row],[1]:[ ]],Kode4)","v":0},{"$f":"SUM(November_deltagelse[[#This Row],[H1]:[H]])","v":0}]
[null,null,"Antal dage med fravær i alt",{"$f":"COUNTIF(November_deltagelse[1],\"H1\")+COUNTIF(November_deltagelse[1],\"H\")","v":0},{"$f":"COUNTIF(November_deltagelse[2],\"H1\")+COUNTIF(November_deltagelse[2],\"H\")","v":0},{"$f":"COUNTIF(November_deltagelse[3],\"H1\")+COUNTIF(November_deltagelse[3],\"H\")","v":0},{"$f":"COUNTIF(November_deltagelse[4],\"H1\")+COUNTIF(November_deltagelse[4],\"H\")","v":0},{"$f":"COUNTIF(November_deltagelse[5],\"H1\")+COUNTIF(November_deltagelse[5],\"H\")","v":0},{"$f":"COUNTIF(November_deltagelse[6],\"H1\")+COUNTIF(November_deltagelse[6],\"H\")","v":0},{"$f":"COUNTIF(November_deltagelse[7],\"H1\")+COUNTIF(November_deltagelse[7],\"H\")","v":0},{"$f":"COUNTIF(November_deltagelse[8],\"H1\")+COUNTIF(November_deltagelse[8],\"H\")","v":0},{"$f":"COUNTIF(November_deltagelse[9],\"H1\")+COUNTIF(November_deltagelse[9],\"H\")","v":0},{"$f":"COUNTIF(November_deltagelse[10],\"H1\")+COUNTIF(November_deltagelse[10],\"H\")","v":0},{"$f":"COUNTIF(November_deltagelse[11],\"H1\")+COUNTIF(November_deltagelse[11],\"H\")","v":0},{"$f":"COUNTIF(November_deltagelse[12],\"H1\")+COUNTIF(November_deltagelse[12],\"H\")","v":0},{"$f":"COUNTIF(November_deltagelse[13],\"H1\")+COUNTIF(November_deltagelse[13],\"H\")","v":0},{"$f":"COUNTIF(November_deltagelse[14],\"H1\")+COUNTIF(November_deltagelse[14],\"H\")","v":0},{"$f":"COUNTIF(November_deltagelse[15],\"H1\")+COUNTIF(November_deltagelse[15],\"H\")","v":0},{"$f":"COUNTIF(November_deltagelse[16],\"H1\")+COUNTIF(November_deltagelse[16],\"H\")","v":0},{"$f":"COUNTIF(November_deltagelse[17],\"H1\")+COUNTIF(November_deltagelse[17],\"H\")","v":0},{"$f":"COUNTIF(November_deltagelse[18],\"H1\")+COUNTIF(November_deltagelse[18],\"H\")","v":0},{"$f":"COUNTIF(November_deltagelse[19],\"H1\")+COUNTIF(November_deltagelse[19],\"H\")","v":0},{"$f":"COUNTIF(November_deltagelse[20],\"H1\")+COUNTIF(November_deltagelse[20],\"H\")","v":0},{"$f":"COUNTIF(November_deltagelse[21],\"H1\")+COUNTIF(November_deltagelse[21],\"H\")","v":0},{"$f":"COUNTIF(November_deltagelse[22],\"H1\")+COUNTIF(November_deltagelse[22],\"H\")","v":0},{"$f":"COUNTIF(November_deltagelse[23],\"H1\")+COUNTIF(November_deltagelse[23],\"H\")","v":0},{"$f":"COUNTIF(November_deltagelse[24],\"H1\")+COUNTIF(November_deltagelse[24],\"H\")","v":0},{"$f":"COUNTIF(November_deltagelse[25],\"H1\")+COUNTIF(November_deltagelse[25],\"H\")","v":0},{"$f":"COUNTIF(November_deltagelse[26],\"H1\")+COUNTIF(November_deltagelse[26],\"H\")","v":0},{"$f":"COUNTIF(November_deltagelse[27],\"H1\")+COUNTIF(November_deltagelse[27],\"H\")","v":0},{"$f":"COUNTIF(November_deltagelse[28],\"H1\")+COUNTIF(November_deltagelse[28],\"H\")","v":0},{"$f":"COUNTIF(November_deltagelse[29],\"H1\")+COUNTIF(November_deltagelse[29],\"H\")","v":0},{"$f":"COUNTIF(November_deltagelse[30],\"H1\")+COUNTIF(November_deltagelse[30],\"H\")","v":0},null,{"$f":"SUBTOTAL(109,November_deltagelse[F])","v":0},{"$f":"SUBTOTAL(105,November_deltagelse[H1])","v":0},{"$f":"SUBTOTAL(109,November_deltagelse[H])","v":0},{"$f":"SUBTOTAL(109,November_deltagelse[T])","v":0},{"$f":"SUBTOTAL(109,November_deltagelse[Dage med fravær])","v":0}]

{"sheet":"December","index":6,"n_rows":12,"n_cols":39,"rows_kept":12,"merged":[[4,34,4,38]]}
["FREMMØDEREGISTRERING FOR STUDERENDE",{"$nulls":36},"Start på skoleår:",{"$f":"Kalenderår","v":2012}]
[]
[null,null,{"$f":"TekstTilFarvenøgle","v":"FARVENØGLE "},{"$f":"Kode1","v":"F"},{"$f":"TekstTilKode1","v":"Forsinket"},null,null,{"$f":"Kode2","v":"H"},{"$f":"TekstTilKode2","v":"Har tilladelse"},null,null,{"$f":"Kode3","v":"H1"},{"$f":"TekstTilKode3","v":"Har ikke tilladelse"},null,null,{"$f":"Kode4","v":"T"},{"$f":"TekstTilKode4","v":"Til stede"},null,null,{"$f":"Kode5","v":"I"},{"$f":"TekstTilKode5","v":"Ingen skolegang"}]
[]
[null,{"$f":"DATE(Kalenderår,12,1)","v":"2012-12-01"},null,{"$f":"TEXT(WEEKDAY(DATE(Kalenderår,12,1),1),\"[$-406]aaa\")","v":"1900"},{"$f":"TEXT(WEEKDAY(DATE(Kalenderår,12,2),1),\"[$-406]aaa\")","v":"1900"},{"$f":"TEXT(WEEKDAY(DATE(Kalenderår,12,3),1),\"[$-406]aaa\")","v":"1900"},{"$f":"TEXT(WEEKDAY(DATE(Kalenderår,12,4),1),\"[$-406]aaa\")","v":"1900"},{"$f":"TEXT(WEEKDAY(DATE(Kalenderår,12,5),1),\"[$-406]aaa\")","v":"1900"},{"$f":"TEXT(WEEKDAY(DATE(Kalenderår,12,6),1),\"[$-406]aaa\")","v":"1900"},{"$f":"TEXT(WEEKDAY(DATE(Kalenderår,12,7),1),\"[$-406]aaa\")","v":"1900"},{"$f":"TEXT(WEEKDAY(DATE(Kalenderår,12,8),1),\"[$-406]aaa\")","v":"1900"},{"$f":"TEXT(WEEKDAY(DATE(Kalenderår,12,9),1),\"[$-406]aaa\")","v":"1900"},{"$f":"TEXT(WEEKDAY(DATE(Kalenderår,12,10),1),\"[$-406]aaa\")","v":"1900"},{"$f":"TEXT(WEEKDAY(DATE(Kalenderår,12,11),1),\"[$-406]aaa\")","v":"1900"},{"$f":"TEXT(WEEKDAY(DATE(Kalenderår,12,12),1),\"[$-406]aaa\")","v":"1900"},{"$f":"TEXT(WEEKDAY(DATE(Kalenderår,12,13),1),\"[$-406]aaa\")","v":"1900"},{"$f":"TEXT(WEEKDAY(DATE(Kalenderår,12,14),1),\"[$-406]aaa\")","v":"1900"},{"$f":"TEXT(WEEKDAY(DATE(Kalenderår,12,15),1),\"[$-406]aaa\")","v":"1900"},{"$f":"TEXT(WEEKDAY(DATE(Kalenderår,12,16),1),\"[$-406]aaa\")","v":"1900"},{"$f":"TEXT(WEEKDAY(DATE(Kalenderår,12,17),1),\"[$-406]aaa\")","v":"1900"},{"$f":"TEXT(WEEKDAY(DATE(Kalenderår,12,18),1),\"[$-406]aaa\")","v":"1900"},{"$f":"TEXT(WEEKDAY(DATE(Kalenderår,12,19),1),\"[$-406]aaa\")","v":"1900"},{"$f":"TEXT(WEEKDAY(DATE(Kalenderår,12,20),1),\"[$-406]aaa\")","v":"1900"},{"$f":"TEXT(WEEKDAY(DATE(Kalenderår,12,21),1),\"[$-406]aaa\")","v":"1900"},{"$f":"TEXT(WEEKDAY(DATE(Kalenderår,12,22),1),\"[$-406]aaa\")","v":"1900"},{"$f":"TEXT(WEEKDAY(DATE(Kalenderår,12,23),1),\"[$-406]aaa\")","v":"1900"},{"$f":"TEXT(WEEKDAY(DATE(Kalenderår,12,24),1),\"[$-406]aaa\")","v":"1900"},{"$f":"TEXT(WEEKDAY(DATE(Kalenderår,12,25),1),\"[$-406]aaa\")","v":"1900"},{"$f":"TEXT(WEEKDAY(DATE(Kalenderår,12,26),1),\"[$-406]aaa\")","v":"1900"},{"$f":"TEXT(WEEKDAY(DATE(Kalenderår,12,27),1),\"[$-406]aaa\")","v":"1900"},{"$f":"TEXT(WEEKDAY(DATE(Kalenderår,12,28),1),\"[$-406]aaa\")","v":"1900"},{"$f":"TEXT(WEEKDAY(DATE(Kalenderår,12,29),1),\"[$-406]aaa\")","v":"1900"},{"$f":"TEXT(WEEKDAY(DATE(Kalenderår,12,30),1),\"[$-406]aaa\")","v":"1900"},{"$f":"TEXT(WEEKDAY(DATE(Kalenderår,12,31),1),\"[$-406]aaa\")","v":"1900"},"Totaler"]
[null,"Studie-id","Den studerendes navn","1","2","3","4","5","6","7","8","9","10","11","12","13","14","15","16","17","18","19","20","21","22","23","24","25","26","27","28","29","30","31","F","H1","H","T","Dage med fravær"]
[null,null,{"$f":"IFERROR(VLOOKUP(December_deltagelse[[#This Row],[Studie-id]],ListeOverStuderende[],18,FALSE),\"\")","v":""},{"$nulls":31},{"$f":"COUNTIF(December_deltagelse[[#This Row],[1]:[31]],Kode1)","v":0},{"$f":"COUNTIF(December_deltagelse[[#This Row],[1]:[31]],Kode2)","v":0},{"$f":"COUNTIF(December_deltagelse[[#This Row],[1]:[31]],Kode3)","v":0},{"$f":"COUNTIF(December_deltagelse[[#This Row],[1]:[31]],Kode4)","v":0},{"$f":"SUM(December_deltagelse[[#This Row],[H1]:[H]])","v":0}]
[null,null,{"$f":"IFERROR(VLOOKUP(December_deltagelse[[#This Row],[Studie-id]],ListeOverStuderende[],18,FALSE),\"\")","v":""},{"$nulls":31},{"$f":"COUNTIF(December_deltagelse[[#This Row],[1]:[31]],Kode1)","v":0},{"$f":"COUNTIF(December_deltagelse[[#This Row],[1]:[31]],Kode2)","v":0},{"$f":"COUNTIF(December_deltagelse[[#This Row],[1]:[31]],Kode3)","v":0},{"$f":"COUNTIF(December_deltagelse[[#This Row],[1]:[31]],Kode4)","v":0},{"$f":"SUM(December_deltagelse[[#This Row],[H1]:[H]])","v":0}]
[null,null,{"$f":"IFERROR(VLOOKUP(December_deltagelse[[#This Row],[Studie-id]],ListeOverStuderende[],18,FALSE),\"\")","v":""},{"$nulls":31},{"$f":"COUNTIF(December_deltagelse[[#This Row],[1]:[31]],Kode1)","v":0},{"$f":"COUNTIF(December_deltagelse[[#This Row],[1]:[31]],Kode2)","v":0},{"$f":"COUNTIF(December_deltagelse[[#This Row],[1]:[31]],Kode3)","v":0},{"$f":"COUNTIF(December_deltagelse[[#This Row],[1]:[31]],Kode4)","v":0},{"$f":"SUM(December_deltagelse[[#This Row],[H1]:[H]])","v":0}]
[null,null,{"$f":"IFERROR(VLOOKUP(December_deltagelse[[#This Row],[Studie-id]],ListeOverStuderende[],18,FALSE),\"\")","v":""},{"$nulls":31},{"$f":"COUNTIF(December_deltagelse[[#This Row],[1]:[31]],Kode1)","v":0},{"$f":"COUNTIF(December_deltagelse[[#This Row],[1]:[31]],Kode2)","v":0},{"$f":"COUNTIF(December_deltagelse[[#This Row],[1]:[31]],Kode3)","v":0},{"$f":"COUNTIF(December_deltagelse[[#This Row],[1]:[31]],Kode4)","v":0},{"$f":"SUM(December_deltagelse[[#This Row],[H1]:[H]])","v":0}]
[null,null,{"$f":"IFERROR(VLOOKUP(December_deltagelse[[#This Row],[Studie-id]],ListeOverStuderende[],18,FALSE),\"\")","v":""},{"$nulls":31},{"$f":"COUNTIF(December_deltagelse[[#This Row],[1]:[31]],Kode1)","v":0},{"$f":"COUNTIF(December_deltagelse[[#This Row],[1]:[31]],Kode2)","v":0},{"$f":"COUNTIF(December_deltagelse[[#This Row],[1]:[31]],Kode3)","v":0},{"$f":"COUNTIF(December_deltagelse[[#This Row],[1]:[31]],Kode4)","v":0},{"$f":"SUM(December_deltagelse[[#This Row],[H1]:[H]])","v":0}]
[null,null,"Antal dage med fravær i alt",{"$f":"COUNTIF(December_deltagelse[1],\"H1\")+COUNTIF(December_deltagelse[1],\"H\")","v":0},{"$f":"COUNTIF(December_deltagelse[2],\"H1\")+COUNTIF(December_deltagelse[2],\"H\")","v":0},{"$f":"COUNTIF(December_deltagelse[3],\"H1\")+COUNTIF(December_deltagelse[3],\"H\")","v":0},{"$f":"COUNTIF(December_deltagelse[4],\"H1\")+COUNTIF(December_deltagelse[4],\"H\")","v":0},{"$f":"COUNTIF(December_deltagelse[5],\"H1\")+COUNTIF(December_deltagelse[5],\"H\")","v":0},{"$f":"COUNTIF(December_deltagelse[6],\"H1\")+COUNTIF(December_deltagelse[6],\"H\")","v":0},{"$f":"COUNTIF(December_deltagelse[7],\"H1\")+COUNTIF(December_deltagelse[7],\"H\")","v":0},{"$f":"COUNTIF(December_deltagelse[8],\"H1\")+COUNTIF(December_deltagelse[8],\"H\")","v":0},{"$f":"COUNTIF(December_deltagelse[9],\"H1\")+COUNTIF(December_deltagelse[9],\"H\")","v":0},{"$f":"COUNTIF(December_deltagelse[10],\"H1\")+COUNTIF(December_deltagelse[10],\"H\")","v":0},{"$f":"COUNTIF(December_deltagelse[11],\"H1\")+COUNTIF(December_deltagelse[11],\"H\")","v":0},{"$f":"COUNTIF(December_deltagelse[12],\"H1\")+COUNTIF(December_deltagelse[12],\"H\")","v":0},{"$f":"COUNTIF(December_deltagelse[13],\"H1\")+COUNTIF(December_deltagelse[13],\"H\")","v":0},{"$f":"COUNTIF(December_deltagelse[14],\"H1\")+COUNTIF(December_deltagelse[14],\"H\")","v":0},{"$f":"COUNTIF(December_deltagelse[15],\"H1\")+COUNTIF(December_deltagelse[15],\"H\")","v":0},{"$f":"COUNTIF(December_deltagelse[16],\"H1\")+COUNTIF(December_deltagelse[16],\"H\")","v":0},{"$f":"COUNTIF(December_deltagelse[17],\"H1\")+COUNTIF(December_deltagelse[17],\"H\")","v":0},{"$f":"COUNTIF(December_deltagelse[18],\"H1\")+COUNTIF(December_deltagelse[18],\"H\")","v":0},{"$f":"COUNTIF(December_deltagelse[19],\"H1\")+COUNTIF(December_deltagelse[19],\"H\")","v":0},{"$f":"COUNTIF(December_deltagelse[20],\"H1\")+COUNTIF(December_deltagelse[20],\"H\")","v":0},{"$f":"COUNTIF(December_deltagelse[21],\"H1\")+COUNTIF(December_deltagelse[21],\"H\")","v":0},{"$f":"COUNTIF(December_deltagelse[22],\"H1\")+COUNTIF(December_deltagelse[22],\"H\")","v":0},{"$f":"COUNTIF(December_deltagelse[23],\"H1\")+COUNTIF(December_deltagelse[23],\"H\")","v":0},{"$f":"COUNTIF(December_deltagelse[24],\"H1\")+COUNTIF(December_deltagelse[24],\"H\")","v":0},{"$f":"COUNTIF(December_deltagelse[25],\"H1\")+COUNTIF(December_deltagelse[25],\"H\")","v":0},{"$f":"COUNTIF(December_deltagelse[26],\"H1\")+COUNTIF(December_deltagelse[26],\"H\")","v":0},{"$f":"COUNTIF(December_deltagelse[27],\"H1\")+COUNTIF(December_deltagelse[27],\"H\")","v":0},{"$f":"COUNTIF(December_deltagelse[28],\"H1\")+COUNTIF(December_deltagelse[28],\"H\")","v":0},{"$f":"COUNTIF(December_deltagelse[29],\"H1\")+COUNTIF(December_deltagelse[29],\"H\")","v":0},{"$f":"COUNTIF(December_deltagelse[30],\"H1\")+COUNTIF(December_deltagelse[30],\"H\")","v":0},{"$f":"COUNTIF(December_deltagelse[31],\"H1\")+COUNTIF(December_deltagelse[31],\"H\")","v":0},{"$f":"SUBTOTAL(109,December_deltagelse[F])","v":0},{"$f":"SUBTOTAL(109,December_deltagelse[H1])","v":0},{"$f":"SUBTOTAL(109,December_deltagelse[H])","v":0},{"$f":"SUBTOTAL(109,December_deltagelse[T])","v":0},{"$f":"SUBTOTAL(109,December_deltagelse[Dage med fravær])","v":0}]

{"sheet":"Januar","index":7,"n_rows":12,"n_cols":39,"rows_kept":12,"merged":[[4,34,4,38]]}
["FREMMØDEREGISTRERING FOR STUDERENDE",{"$nulls":36},"Start på skoleår:",{"$f":"Kalenderår","v":2012}]
[]
[null,null,{"$f":"TekstTilFarvenøgle","v":"FARVENØGLE "},{"$f":"Kode1","v":"F"},{"$f":"TekstTilKode1","v":"Forsinket"},null,null,{"$f":"Kode2","v":"H"},{"$f":"TekstTilKode2","v":"Har tilladelse"},null,null,{"$f":"Kode3","v":"H1"},{"$f":"TekstTilKode3","v":"Har ikke tilladelse"},null,null,{"$f":"Kode4","v":"T"},{"$f":"TekstTilKode4","v":"Til stede"},null,null,{"$f":"Kode5","v":"I"},{"$f":"TekstTilKode5","v":"Ingen skolegang"}]
[]
[null,{"$f":"DATE(Kalenderår+1,1,1)","v":"2013-01-01"},null,{"$f":"TEXT(WEEKDAY(DATE(Kalenderår+1,1,1),1),\"[$-406]aaa\")","v":"1900"},{"$f":"TEXT(WEEKDAY(DATE(Kalenderår+1,1,2),1),\"[$-406]aaa\")","v":"1900"},{"$f":"TEXT(WEEKDAY(DATE(Kalenderår+1,1,3),1),\"[$-406]aaa\")","v":"1900"},{"$f":"TEXT(WEEKDAY(DATE(Kalenderår+1,1,4),1),\"[$-406]aaa\")","v":"1900"},{"$f":"TEXT(WEEKDAY(DATE(Kalenderår+1,1,5),1),\"[$-406]aaa\")","v":"1900"},{"$f":"TEXT(WEEKDAY(DATE(Kalenderår+1,1,6),1),\"[$-406]aaa\")","v":"1900"},{"$f":"TEXT(WEEKDAY(DATE(Kalenderår+1,1,7),1),\"[$-406]aaa\")","v":"1900"},{"$f":"TEXT(WEEKDAY(DATE(Kalenderår+1,1,8),1),\"[$-406]aaa\")","v":"1900"},{"$f":"TEXT(WEEKDAY(DATE(Kalenderår+1,1,9),1),\"[$-406]aaa\")","v":"1900"},{"$f":"TEXT(WEEKDAY(DATE(Kalenderår+1,1,10),1),\"[$-406]aaa\")","v":"1900"},{"$f":"TEXT(WEEKDAY(DATE(Kalenderår+1,1,11),1),\"[$-406]aaa\")","v":"1900"},{"$f":"TEXT(WEEKDAY(DATE(Kalenderår+1,1,12),1),\"[$-406]aaa\")","v":"1900"},{"$f":"TEXT(WEEKDAY(DATE(Kalenderår+1,1,13),1),\"[$-406]aaa\")","v":"1900"},{"$f":"TEXT(WEEKDAY(DATE(Kalenderår+1,1,14),1),\"[$-406]aaa\")","v":"1900"},{"$f":"TEXT(WEEKDAY(DATE(Kalenderår+1,1,15),1),\"[$-406]aaa\")","v":"1900"},{"$f":"TEXT(WEEKDAY(DATE(Kalenderår+1,1,16),1),\"[$-406]aaa\")","v":"1900"},{"$f":"TEXT(WEEKDAY(DATE(Kalenderår+1,1,17),1),\"[$-406]aaa\")","v":"1900"},{"$f":"TEXT(WEEKDAY(DATE(Kalenderår+1,1,18),1),\"[$-406]aaa\")","v":"1900"},{"$f":"TEXT(WEEKDAY(DATE(Kalenderår+1,1,19),1),\"[$-406]aaa\")","v":"1900"},{"$f":"TEXT(WEEKDAY(DATE(Kalenderår+1,1,20),1),\"[$-406]aaa\")","v":"1900"},{"$f":"TEXT(WEEKDAY(DATE(Kalenderår+1,1,21),1),\"[$-406]aaa\")","v":"1900"},{"$f":"TEXT(WEEKDAY(DATE(Kalenderår+1,1,22),1),\"[$-406]aaa\")","v":"1900"},{"$f":"TEXT(WEEKDAY(DATE(Kalenderår+1,1,23),1),\"[$-406]aaa\")","v":"1900"},{"$f":"TEXT(WEEKDAY(DATE(Kalenderår+1,1,24),1),\"[$-406]aaa\")","v":"1900"},{"$f":"TEXT(WEEKDAY(DATE(Kalenderår+1,1,25),1),\"[$-406]aaa\")","v":"1900"},{"$f":"TEXT(WEEKDAY(DATE(Kalenderår+1,1,26),1),\"[$-406]aaa\")","v":"1900"},{"$f":"TEXT(WEEKDAY(DATE(Kalenderår+1,1,27),1),\"[$-406]aaa\")","v":"1900"},{"$f":"TEXT(WEEKDAY(DATE(Kalenderår+1,1,28),1),\"[$-406]aaa\")","v":"1900"},{"$f":"TEXT(WEEKDAY(DATE(Kalenderår+1,1,29),1),\"[$-406]aaa\")","v":"1900"},{"$f":"TEXT(WEEKDAY(DATE(Kalenderår+1,1,30),1),\"[$-406]aaa\")","v":"1900"},{"$f":"TEXT(WEEKDAY(DATE(Kalenderår+1,1,31),1),\"[$-406]aaa\")","v":"1900"},"Totaler"]
[null,"Studie-id","Den studerendes navn","1","2","3","4","5","6","7","8","9","10","11","12","13","14","15","16","17","18","19","20","21","22","23","24","25","26","27","28","29","30","31","F","H1","H","T","Dage med fravær"]
[null,null,{"$f":"IFERROR(VLOOKUP(Januar_deltagelse[[#This Row],[Studie-id]],ListeOverStuderende[],18,FALSE),\"\")","v":""},{"$nulls":31},{"$f":"COUNTIF(Januar_deltagelse[[#This Row],[1]:[31]],Kode1)","v":0},{"$f":"COUNTIF(Januar_deltagelse[[#This Row],[1]:[31]],Kode2)","v":0},{"$f":"COUNTIF(Januar_deltagelse[[#This Row],[1]:[31]],Kode3)","v":0},{"$f":"COUNTIF(Januar_deltagelse[[#This Row],[1]:[31]],Kode4)","v":0},{"$f":"SUM(Januar_deltagelse[[#This Row],[H1]:[H]])","v":0}]
[null,null,{"$f":"IFERROR(VLOOKUP(Januar_deltagelse[[#This Row],[Studie-id]],ListeOverStuderende[],18,FALSE),\"\")","v":""},{"$nulls":31},{"$f":"COUNTIF(Januar_deltagelse[[#This Row],[1]:[31]],Kode1)","v":0},{"$f":"COUNTIF(Januar_deltagelse[[#This Row],[1]:[31]],Kode2)","v":0},{"$f":"COUNTIF(Januar_deltagelse[[#This Row],[1]:[31]],Kode3)","v":0},{"$f":"COUNTIF(Januar_deltagelse[[#This Row],[1]:[31]],Kode4)","v":0},{"$f":"SUM(Januar_deltagelse[[#This Row],[H1]:[H]])","v":0}]
[null,null,{"$f":"IFERROR(VLOOKUP(Januar_deltagelse[[#This Row],[Studie-id]],ListeOverStuderende[],18,FALSE),\"\")","v":""},{"$nulls":31},{"$f":"COUNTIF(Januar_deltagelse[[#This Row],[1]:[31]],Kode1)","v":0},{"$f":"COUNTIF(Januar_deltagelse[[#This Row],[1]:[31]],Kode2)","v":0},{"$f":"COUNTIF(Januar_deltagelse[[#This Row],[1]:[31]],Kode3)","v":0},{"$f":"COUNTIF(Januar_deltagelse[[#This Row],[1]:[31]],Kode4)","v":0},{"$f":"SUM(Januar_deltagelse[[#This Row],[H1]:[H]])","v":0}]
[null,null,{"$f":"IFERROR(VLOOKUP(Januar_deltagelse[[#This Row],[Studie-id]],ListeOverStuderende[],18,FALSE),\"\")","v":""},{"$nulls":31},{"$f":"COUNTIF(Januar_deltagelse[[#This Row],[1]:[31]],Kode1)","v":0},{"$f":"COUNTIF(Januar_deltagelse[[#This Row],[1]:[31]],Kode2)","v":0},{"$f":"COUNTIF(Januar_deltagelse[[#This Row],[1]:[31]],Kode3)","v":0},{"$f":"COUNTIF(Januar_deltagelse[[#This Row],[1]:[31]],Kode4)","v":0},{"$f":"SUM(Januar_deltagelse[[#This Row],[H1]:[H]])","v":0}]
[null,null,{"$f":"IFERROR(VLOOKUP(Januar_deltagelse[[#This Row],[Studie-id]],ListeOverStuderende[],18,FALSE),\"\")","v":""},{"$nulls":31},{"$f":"COUNTIF(Januar_deltagelse[[#This Row],[1]:[31]],Kode1)","v":0},{"$f":"COUNTIF(Januar_deltagelse[[#This Row],[1]:[31]],Kode2)","v":0},{"$f":"COUNTIF(Januar_deltagelse[[#This Row],[1]:[31]],Kode3)","v":0},{"$f":"COUNTIF(Januar_deltagelse[[#This Row],[1]:[31]],Kode4)","v":0},{"$f":"SUM(Januar_deltagelse[[#This Row],[H1]:[H]])","v":0}]
[null,null,"Antal dage med fravær i alt",{"$f":"COUNTIF(Januar_deltagelse[1],\"H1\")+COUNTIF(Januar_deltagelse[1],\"H\")","v":0},{"$f":"COUNTIF(Januar_deltagelse[2],\"H1\")+COUNTIF(Januar_deltagelse[2],\"H\")","v":0},{"$f":"COUNTIF(Januar_deltagelse[3],\"H1\")+COUNTIF(Januar_deltagelse[3],\"H\")","v":0},{"$f":"COUNTIF(Januar_deltagelse[4],\"H1\")+COUNTIF(Januar_deltagelse[4],\"H\")","v":0},{"$f":"COUNTIF(Januar_deltagelse[5],\"H1\")+COUNTIF(Januar_deltagelse[5],\"H\")","v":0},{"$f":"COUNTIF(Januar_deltagelse[6],\"H1\")+COUNTIF(Januar_deltagelse[6],\"H\")","v":0},{"$f":"COUNTIF(Januar_deltagelse[7],\"H1\")+COUNTIF(Januar_deltagelse[7],\"H\")","v":0},{"$f":"COUNTIF(Januar_deltagelse[8],\"H1\")+COUNTIF(Januar_deltagelse[8],\"H\")","v":0},{"$f":"COUNTIF(Januar_deltagelse[9],\"H1\")+COUNTIF(Januar_deltagelse[9],\"H\")","v":0},{"$f":"COUNTIF(Januar_deltagelse[10],\"H1\")+COUNTIF(Januar_deltagelse[10],\"H\")","v":0},{"$f":"COUNTIF(Januar_deltagelse[11],\"H1\")+COUNTIF(Januar_deltagelse[11],\"H\")","v":0},{"$f":"COUNTIF(Januar_deltagelse[12],\"H1\")+COUNTIF(Januar_deltagelse[12],\"H\")","v":0},{"$f":"COUNTIF(Januar_deltagelse[13],\"H1\")+COUNTIF(Januar_deltagelse[13],\"H\")","v":0},{"$f":"COUNTIF(Januar_deltagelse[14],\"H1\")+COUNTIF(Januar_deltagelse[14],\"H\")","v":0},{"$f":"COUNTIF(Januar_deltagelse[15],\"H1\")+COUNTIF(Januar_deltagelse[15],\"H\")","v":0},{"$f":"COUNTIF(Januar_deltagelse[16],\"H1\")+COUNTIF(Januar_deltagelse[16],\"H\")","v":0},{"$f":"COUNTIF(Januar_deltagelse[17],\"H1\")+COUNTIF(Januar_deltagelse[17],\"H\")","v":0},{"$f":"COUNTIF(Januar_deltagelse[18],\"H1\")+COUNTIF(Januar_deltagelse[18],\"H\")","v":0},{"$f":"COUNTIF(Januar_deltagelse[19],\"H1\")+COUNTIF(Januar_deltagelse[19],\"H\")","v":0},{"$f":"COUNTIF(Januar_deltagelse[20],\"H1\")+COUNTIF(Januar_deltagelse[20],\"H\")","v":0},{"$f":"COUNTIF(Januar_deltagelse[21],\"H1\")+COUNTIF(Januar_deltagelse[21],\"H\")","v":0},{"$f":"COUNTIF(Januar_deltagelse[22],\"H1\")+COUNTIF(Januar_deltagelse[22],\"H\")","v":0},{"$f":"COUNTIF(Januar_deltagelse[23],\"H1\")+COUNTIF(Januar_deltagelse[23],\"H\")","v":0},{"$f":"COUNTIF(Januar_deltagelse[24],\"H1\")+COUNTIF(Januar_deltagelse[24],\"H\")","v":0},{"$f":"COUNTIF(Januar_deltagelse[25],\"H1\")+COUNTIF(Januar_deltagelse[25],\"H\")","v":0},{"$f":"COUNTIF(Januar_deltagelse[26],\"H1\")+COUNTIF(Januar_deltagelse[26],\"H\")","v":0},{"$f":"COUNTIF(Januar_deltagelse[27],\"H1\")+COUNTIF(Januar_deltagelse[27],\"H\")","v":0},{"$f":"COUNTIF(Januar_deltagelse[28],\"H1\")+COUNTIF(Januar_deltagelse[28],\"H\")","v":0},{"$f":"COUNTIF(Januar_deltagelse[29],\"H1\")+COUNTIF(Januar_deltagelse[29],\"H\")","v":0},{"$f":"COUNTIF(Januar_deltagelse[30],\"H1\")+COUNTIF(Januar_deltagelse[30],\"H\")","v":0},{"$f":"COUNTIF(Januar_deltagelse[31],\"H1\")+COUNTIF(Januar_deltagelse[31],\"H\")","v":0},{"$f":"SUBTOTAL(109,Januar_deltagelse[F])","v":0},{"$f":"SUBTOTAL(109,Januar_deltagelse[H1])","v":0},{"$f":"SUBTOTAL(109,Januar_deltagelse[H])","v":0},{"$f":"SUBTOTAL(109,Januar_deltagelse[T])","v":0},{"$f":"SUBTOTAL(109,Januar_deltagelse[Dage med fravær])","v":0}]

{"sheet":"Februar","index":8,"n_rows":12,"n_cols":39,"rows_kept":12,"merged":[[4,34,4,38]]}
["FREMMØDEREGISTRERING FOR STUDERENDE",{"$nulls":36},"Start på skoleår:",{"$f":"Kalenderår","v":2012}]
[]
[null,null,{"$f":"TekstTilFarvenøgle","v":"FARVENØGLE "},{"$f":"Kode1","v":"F"},{"$f":"TekstTilKode1","v":"Forsinket"},null,null,{"$f":"Kode2","v":"H"},{"$f":"TekstTilKode2","v":"Har tilladelse"},null,null,{"$f":"Kode3","v":"H1"},{"$f":"TekstTilKode3","v":"Har ikke tilladelse"},null,null,{"$f":"Kode4","v":"T"},{"$f":"TekstTilKode4","v":"Til stede"},null,null,{"$f":"Kode5","v":"I"},{"$f":"TekstTilKode5","v":"Ingen skolegang"}]
[]
[null,{"$f":"DATE(Kalenderår+1,2,1)","v":"2013-02-01"},null,{"$f":"TEXT(WEEKDAY(DATE(Kalenderår+1,2,1),1),\"[$-406]aaa\")","v":"1900"},{"$f":"TEXT(WEEKDAY(DATE(Kalenderår+1,2,2),1),\"[$-406]aaa\")","v":"1900"},{"$f":"TEXT(WEEKDAY(DATE(Kalenderår+1,2,3),1),\"[$-406]aaa\")","v":"1900"},{"$f":"TEXT(WEEKDAY(DATE(Kalenderår+1,2,4),1),\"[$-406]aaa\")","v":"1900"},{"$f":"TEXT(WEEKDAY(DATE(Kalenderår+1,2,5),1),\"[$-406]aaa\")","v":"1900"},{"$f":"TEXT(WEEKDAY(DATE(Kalenderår+1,2,6),1),\"[$-406]aaa\")","v":"1900"},{"$f":"TEXT(WEEKDAY(DATE(Kalenderår+1,2,7),1),\"[$-406]aaa\")","v":"1900"},{"$f":"TEXT(WEEKDAY(DATE(Kalenderår+1,2,8),1),\"[$-406]aaa\")","v":"1900"},{"$f":"TEXT(WEEKDAY(DATE(Kalenderår+1,2,9),1),\"[$-406]aaa\")","v":"1900"},{"$f":"TEXT(WEEKDAY(DATE(Kalenderår+1,2,10),1),\"[$-406]aaa\")","v":"1900"},{"$f":"TEXT(WEEKDAY(DATE(Kalenderår+1,2,11),1),\"[$-406]aaa\")","v":"1900"},{"$f":"TEXT(WEEKDAY(DATE(Kalenderår+1,2,12),1),\"[$-406]aaa\")","v":"1900"},{"$f":"TEXT(WEEKDAY(DATE(Kalenderår+1,2,13),1),\"[$-406]aaa\")","v":"1900"},{"$f":"TEXT(WEEKDAY(DATE(Kalenderår+1,2,14),1),\"[$-406]aaa\")","v":"1900"},{"$f":"TEXT(WEEKDAY(DATE(Kalenderår+1,2,15),1),\"[$-406]aaa\")","v":"1900"},{"$f":"TEXT(WEEKDAY(DATE(Kalenderår+1,2,16),1),\"[$-406]aaa\")","v":"1900"},{"$f":"TEXT(WEEKDAY(DATE(Kalenderår+1,2,17),1),\"[$-406]aaa\")","v":"1900"},{"$f":"TEXT(WEEKDAY(DATE(Kalenderår+1,2,18),1),\"[$-406]aaa\")","v":"1900"},{"$f":"TEXT(WEEKDAY(DATE(Kalenderår+1,2,19),1),\"[$-406]aaa\")","v":"1900"},{"$f":"TEXT(WEEKDAY(DATE(Kalenderår+1,2,20),1),\"[$-406]aaa\")","v":"1900"},{"$f":"TEXT(WEEKDAY(DATE(Kalenderår+1,2,21),1),\"[$-406]aaa\")","v":"1900"},{"$f":"TEXT(WEEKDAY(DATE(Kalenderår+1,2,22),1),\"[$-406]aaa\")","v":"1900"},{"$f":"TEXT(WEEKDAY(DATE(Kalenderår+1,2,23),1),\"[$-406]aaa\")","v":"1900"},{"$f":"TEXT(WEEKDAY(DATE(Kalenderår+1,2,24),1),\"[$-406]aaa\")","v":"1900"},{"$f":"TEXT(WEEKDAY(DATE(Kalenderår+1,2,25),1),\"[$-406]aaa\")","v":"1900"},{"$f":"TEXT(WEEKDAY(DATE(Kalenderår+1,2,26),1),\"[$-406]aaa\")","v":"1900"},{"$f":"TEXT(WEEKDAY(DATE(Kalenderår+1,2,27),1),\"[$-406]aaa\")","v":"1900"},{"$f":"TEXT(WEEKDAY(DATE(Kalenderår+1,2,28),1),\"[$-406]aaa\")","v":"1900"},{"$f":"TEXT(WEEKDAY(DATE(Kalenderår+1,2,29),1),\"[$-406]aaa\")","v":"1900"},null,null,"Totaler"]
[null,"Studie-id","Den studerendes navn","1","2","3","4","5","6","7","8","9","10","11","12","13","14","15","16","17","18","19","20","21","22","23","24","25","26","27","28","29","30","31","F","H1","H","T","Dage med fravær"]
[null,null,{"$f":"IFERROR(VLOOKUP(Februar_deltagelse[[#This Row],[Studie-id]],ListeOverStuderende[],18,FALSE),\"\")","v":""},{"$nulls":31},{"$f":"COUNTIF(Februar_deltagelse[[#This Row],[1]:[31]],Kode1)","v":0},{"$f":"COUNTIF(Februar_deltagelse[[#This Row],[1]:[31]],Kode2)","v":0},{"$f":"COUNTIF(Februar_deltagelse[[#This Row],[1]:[31]],Kode3)","v":0},{"$f":"COUNTIF(Februar_deltagelse[[#This Row],[1]:[31]],Kode4)","v":0},{"$f":"SUM(Februar_deltagelse[[#This Row],[H1]:[H]])","v":0}]
[null,null,{"$f":"IFERROR(VLOOKUP(Februar_deltagelse[[#This Row],[Studie-id]],ListeOverStuderende[],18,FALSE),\"\")","v":""},{"$nulls":31},{"$f":"COUNTIF(Februar_deltagelse[[#This Row],[1]:[31]],Kode1)","v":0},{"$f":"COUNTIF(Februar_deltagelse[[#This Row],[1]:[31]],Kode2)","v":0},{"$f":"COUNTIF(Februar_deltagelse[[#This Row],[1]:[31]],Kode3)","v":0},{"$f":"COUNTIF(Februar_deltagelse[[#This Row],[1]:[31]],Kode4)","v":0},{"$f":"SUM(Februar_deltagelse[[#This Row],[H1]:[H]])","v":0}]
[null,null,{"$f":"IFERROR(VLOOKUP(Februar_deltagelse[[#This Row],[Studie-id]],ListeOverStuderende[],18,FALSE),\"\")","v":""},{"$nulls":31},{"$f":"COUNTIF(Februar_deltagelse[[#This Row],[1]:[31]],Kode1)","v":0},{"$f":"COUNTIF(Februar_deltagelse[[#This Row],[1]:[31]],Kode2)","v":0},{"$f":"COUNTIF(Februar_deltagelse[[#This Row],[1]:[31]],Kode3)","v":0},{"$f":"COUNTIF(Februar_deltagelse[[#This Row],[1]:[31]],Kode4)","v":0},{"$f":"SUM(Februar_deltagelse[[#This Row],[H1]:[H]])","v":0}]
[null,null,{"$f":"IFERROR(VLOOKUP(Februar_deltagelse[[#This Row],[Studie-id]],ListeOverStuderende[],18,FALSE),\"\")","v":""},{"$nulls":31},{"$f":"COUNTIF(Februar_deltagelse[[#This Row],[1]:[31]],Kode1)","v":0},{"$f":"COUNTIF(Februar_deltagelse[[#This Row],[1]:[31]],Kode2)","v":0},{"$f":"COUNTIF(Februar_deltagelse[[#This Row],[1]:[31]],Kode3)","v":0},{"$f":"COUNTIF(Februar_deltagelse[[#This Row],[1]:[31]],Kode4)","v":0},{"$f":"SUM(Februar_deltagelse[[#This Row],[H1]:[H]])","v":0}]
[null,null,{"$f":"IFERROR(VLOOKUP(Februar_deltagelse[[#This Row],[Studie-id]],ListeOverStuderende[],18,FALSE),\"\")","v":""},{"$nulls":31},{"$f":"COUNTIF(Februar_deltagelse[[#This Row],[1]:[31]],Kode1)","v":0},{"$f":"COUNTIF(Februar_deltagelse[[#This Row],[1]:[31]],Kode2)","v":0},{"$f":"COUNTIF(Februar_deltagelse[[#This Row],[1]:[31]],Kode3)","v":0},{"$f":"COUNTIF(Februar_deltagelse[[#This Row],[1]:[31]],Kode4)","v":0},{"$f":"SUM(Februar_deltagelse[[#This Row],[H1]:[H]])","v":0}]
[null,null,"Antal dage med fravær i alt",{"$f":"COUNTIF(Februar_deltagelse[1],\"H1\")+COUNTIF(Februar_deltagelse[1],\"H\")","v":0},{"$f":"COUNTIF(Februar_deltagelse[2],\"H1\")+COUNTIF(Februar_deltagelse[2],\"H\")","v":0},{"$f":"COUNTIF(Februar_deltagelse[3],\"H1\")+COUNTIF(Februar_deltagelse[3],\"H\")","v":0},{"$f":"COUNTIF(Februar_deltagelse[4],\"H1\")+COUNTIF(Februar_deltagelse[4],\"H\")","v":0},{"$f":"COUNTIF(Februar_deltagelse[5],\"H1\")+COUNTIF(Februar_deltagelse[5],\"H\")","v":0},{"$f":"COUNTIF(Februar_deltagelse[6],\"H1\")+COUNTIF(Februar_deltagelse[6],\"H\")","v":0},{"$f":"COUNTIF(Februar_deltagelse[7],\"H1\")+COUNTIF(Februar_deltagelse[7],\"H\")","v":0},{"$f":"COUNTIF(Februar_deltagelse[8],\"H1\")+COUNTIF(Februar_deltagelse[8],\"H\")","v":0},{"$f":"COUNTIF(Februar_deltagelse[9],\"H1\")+COUNTIF(Februar_deltagelse[9],\"H\")","v":0},{"$f":"COUNTIF(Februar_deltagelse[10],\"H1\")+COUNTIF(Februar_deltagelse[10],\"H\")","v":0},{"$f":"COUNTIF(Februar_deltagelse[11],\"H1\")+COUNTIF(Februar_deltagelse[11],\"H\")","v":0},{"$f":"COUNTIF(Februar_deltagelse[12],\"H1\")+COUNTIF(Februar_deltagelse[12],\"H\")","v":0},{"$f":"COUNTIF(Februar_deltagelse[13],\"H1\")+COUNTIF(Februar_deltagelse[13],\"H\")","v":0},{"$f":"COUNTIF(Februar_deltagelse[14],\"H1\")+COUNTIF(Februar_deltagelse[14],\"H\")","v":0},{"$f":"COUNTIF(Februar_deltagelse[15],\"H1\")+COUNTIF(Februar_deltagelse[15],\"H\")","v":0},{"$f":"COUNTIF(Februar_deltagelse[16],\"H1\")+COUNTIF(Februar_deltagelse[16],\"H\")","v":0},{"$f":"COUNTIF(Februar_deltagelse[17],\"H1\")+COUNTIF(Februar_deltagelse[17],\"H\")","v":0},{"$f":"COUNTIF(Februar_deltagelse[18],\"H1\")+COUNTIF(Februar_deltagelse[18],\"H\")","v":0},{"$f":"COUNTIF(Februar_deltagelse[19],\"H1\")+COUNTIF(Februar_deltagelse[19],\"H\")","v":0},{"$f":"COUNTIF(Februar_deltagelse[20],\"H1\")+COUNTIF(Februar_deltagelse[20],\"H\")","v":0},{"$f":"COUNTIF(Februar_deltagelse[21],\"H1\")+COUNTIF(Februar_deltagelse[21],\"H\")","v":0},{"$f":"COUNTIF(Februar_deltagelse[22],\"H1\")+COUNTIF(Februar_deltagelse[22],\"H\")","v":0},{"$f":"COUNTIF(Februar_deltagelse[23],\"H1\")+COUNTIF(Februar_deltagelse[23],\"H\")","v":0},{"$f":"COUNTIF(Februar_deltagelse[24],\"H1\")+COUNTIF(Februar_deltagelse[24],\"H\")","v":0},{"$f":"COUNTIF(Februar_deltagelse[25],\"H1\")+COUNTIF(Februar_deltagelse[25],\"H\")","v":0},{"$f":"COUNTIF(Februar_deltagelse[26],\"H1\")+COUNTIF(Februar_deltagelse[26],\"H\")","v":0},{"$f":"COUNTIF(Februar_deltagelse[27],\"H1\")+COUNTIF(Februar_deltagelse[27],\"H\")","v":0},{"$f":"COUNTIF(Februar_deltagelse[28],\"H1\")+COUNTIF(Februar_deltagelse[28],\"H\")","v":0},{"$nulls":3},{"$f":"SUBTOTAL(109,Februar_deltagelse[F])","v":0},{"$f":"SUBTOTAL(109,Februar_deltagelse[H1])","v":0},{"$f":"SUBTOTAL(109,Februar_deltagelse[H])","v":0},{"$f":"SUBTOTAL(109,Februar_deltagelse[T])","v":0},{"$f":"SUBTOTAL(109,Februar_deltagelse[Dage med fravær])","v":0}]

{"sheet":"Marts","index":9,"n_rows":12,"n_cols":39,"rows_kept":12,"merged":[[4,34,4,38]]}
["FREMMØDEREGISTRERING FOR STUDERENDE",{"$nulls":36},"Start på skoleår:",{"$f":"Kalenderår","v":2012}]
[]
[null,null,{"$f":"TekstTilFarvenøgle","v":"FARVENØGLE "},{"$f":"Kode1","v":"F"},{"$f":"TekstTilKode1","v":"Forsinket"},null,null,{"$f":"Kode2","v":"H"},{"$f":"TekstTilKode2","v":"Har tilladelse"},null,null,{"$f":"Kode3","v":"H1"},{"$f":"TekstTilKode3","v":"Har ikke tilladelse"},null,null,{"$f":"Kode4","v":"T"},{"$f":"TekstTilKode4","v":"Til stede"},null,null,{"$f":"Kode5","v":"I"},{"$f":"TekstTilKode5","v":"Ingen skolegang"}]
[]
[null,{"$f":"DATE(Kalenderår+1,3,1)","v":"2013-03-01"},null,{"$f":"TEXT(WEEKDAY(DATE(Kalenderår+1,3,1),1),\"[$-406]aaa\")","v":"1900"},{"$f":"TEXT(WEEKDAY(DATE(Kalenderår+1,3,2),1),\"[$-406]aaa\")","v":"1900"},{"$f":"TEXT(WEEKDAY(DATE(Kalenderår+1,3,3),1),\"[$-406]aaa\")","v":"1900"},{"$f":"TEXT(WEEKDAY(DATE(Kalenderår+1,3,4),1),\"[$-406]aaa\")","v":"1900"},{"$f":"TEXT(WEEKDAY(DATE(Kalenderår+1,3,5),1),\"[$-406]aaa\")","v":"1900"},{"$f":"TEXT(WEEKDAY(DATE(Kalenderår+1,3,6),1),\"[$-406]aaa\")","v":"1900"},{"$f":"TEXT(WEEKDAY(DATE(Kalenderår+1,3,7),1),\"[$-406]aaa\")","v":"1900"},{"$f":"TEXT(WEEKDAY(DATE(Kalenderår+1,3,8),1),\"[$-406]aaa\")","v":"1900"},{"$f":"TEXT(WEEKDAY(DATE(Kalenderår+1,3,9),1),\"[$-406]aaa\")","v":"1900"},{"$f":"TEXT(WEEKDAY(DATE(Kalenderår+1,3,10),1),\"[$-406]aaa\")","v":"1900"},{"$f":"TEXT(WEEKDAY(DATE(Kalenderår+1,3,11),1),\"[$-406]aaa\")","v":"1900"},{"$f":"TEXT(WEEKDAY(DATE(Kalenderår+1,3,12),1),\"[$-406]aaa\")","v":"1900"},{"$f":"TEXT(WEEKDAY(DATE(Kalenderår+1,3,13),1),\"[$-406]aaa\")","v":"1900"},{"$f":"TEXT(WEEKDAY(DATE(Kalenderår+1,3,14),1),\"[$-406]aaa\")","v":"1900"},{"$f":"TEXT(WEEKDAY(DATE(Kalenderår+1,3,15),1),\"[$-406]aaa\")","v":"1900"},{"$f":"TEXT(WEEKDAY(DATE(Kalenderår+1,3,16),1),\"[$-406]aaa\")","v":"1900"},{"$f":"TEXT(WEEKDAY(DATE(Kalenderår+1,3,17),1),\"[$-406]aaa\")","v":"1900"},{"$f":"TEXT(WEEKDAY(DATE(Kalenderår+1,3,18),1),\"[$-406]aaa\")","v":"1900"},{"$f":"TEXT(WEEKDAY(DATE(Kalenderår+1,3,19),1),\"[$-406]aaa\")","v":"1900"},{"$f":"TEXT(WEEKDAY(DATE(Kalenderår+1,3,20),1),\"[$-406]aaa\")","v":"1900"},{"$f":"TEXT(WEEKDAY(DATE(Kalenderår+1,3,21),1),\"[$-406]aaa\")","v":"1900"},{"$f":"TEXT(WEEKDAY(DATE(Kalenderår+1,3,22),1),\"[$-406]aaa\")","v":"1900"},{"$f":"TEXT(WEEKDAY(DATE(Kalenderår+1,3,23),1),\"[$-406]aaa\")","v":"1900"},{"$f":"TEXT(WEEKDAY(DATE(Kalenderår+1,3,24),1),\"[$-406]aaa\")","v":"1900"},{"$f":"TEXT(WEEKDAY(DATE(Kalenderår+1,3,25),1),\"[$-406]aaa\")","v":"1900"},{"$f":"TEXT(WEEKDAY(DATE(Kalenderår+1,3,26),1),\"[$-406]aaa\")","v":"1900"},{"$f":"TEXT(WEEKDAY(DATE(Kalenderår+1,3,27),1),\"[$-406]aaa\")","v":"1900"},{"$f":"TEXT(WEEKDAY(DATE(Kalenderår+1,3,28),1),\"[$-406]aaa\")","v":"1900"},{"$f":"TEXT(WEEKDAY(DATE(Kalenderår+1,3,29),1),\"[$-406]aaa\")","v":"1900"},{"$f":"TEXT(WEEKDAY(DATE(Kalenderår+1,3,30),1),\"[$-406]aaa\")","v":"1900"},{"$f":"TEXT(WEEKDAY(DATE(Kalenderår+1,3,31),1),\"[$-406]aaa\")","v":"1900"},"Totaler"]
[null,"Studie-id","Den studerendes navn","1","2","3","4","5","6","7","8","9","10","11","12","13","14","15","16","17","18","19","20","21","22","23","24","25","26","27","28","29","30","31","F","H1","H","T","Dage med fravær"]
[null,null,{"$f":"IFERROR(VLOOKUP(Marts_deltagelse[[#This Row],[Studie-id]],ListeOverStuderende[],18,FALSE),\"\")","v":""},{"$nulls":31},{"$f":"COUNTIF(Marts_deltagelse[[#This Row],[1]:[31]],Kode1)","v":0},{"$f":"COUNTIF(Marts_deltagelse[[#This Row],[1]:[31]],Kode2)","v":0},{"$f":"COUNTIF(Marts_deltagelse[[#This Row],[1]:[31]],Kode3)","v":0},{"$f":"COUNTIF(Marts_deltagelse[[#This Row],[1]:[31]],Kode4)","v":0},{"$f":"SUM(Marts_deltagelse[[#This Row],[H1]:[H]])","v":0}]
[null,null,{"$f":"IFERROR(VLOOKUP(Marts_deltagelse[[#This Row],[Studie-id]],ListeOverStuderende[],18,FALSE),\"\")","v":""},{"$nulls":31},{"$f":"COUNTIF(Marts_deltagelse[[#This Row],[1]:[31]],Kode1)","v":0},{"$f":"COUNTIF(Marts_deltagelse[[#This Row],[1]:[31]],Kode2)","v":0},{"$f":"COUNTIF(Marts_deltagelse[[#This Row],[1]:[31]],Kode3)","v":0},{"$f":"COUNTIF(Marts_deltagelse[[#This Row],[1]:[31]],Kode4)","v":0},{"$f":"SUM(Marts_deltagelse[[#This Row],[H1]:[H]])","v":0}]
[null,null,{"$f":"IFERROR(VLOOKUP(Marts_deltagelse[[#This Row],[Studie-id]],ListeOverStuderende[],18,FALSE),\"\")","v":""},{"$nulls":31},{"$f":"COUNTIF(Marts_deltagelse[[#This Row],[1]:[31]],Kode1)","v":0},{"$f":"COUNTIF(Marts_deltagelse[[#This Row],[1]:[31]],Kode2)","v":0},{"$f":"COUNTIF(Marts_deltagelse[[#This Row],[1]:[31]],Kode3)","v":0},{"$f":"COUNTIF(Marts_deltagelse[[#This Row],[1]:[31]],Kode4)","v":0},{"$f":"SUM(Marts_deltagelse[[#This Row],[H1]:[H]])","v":0}]
[null,null,{"$f":"IFERROR(VLOOKUP(Marts_deltagelse[[#This Row],[Studie-id]],ListeOverStuderende[],18,FALSE),\"\")","v":""},{"$nulls":31},{"$f":"COUNTIF(Marts_deltagelse[[#This Row],[1]:[31]],Kode1)","v":0},{"$f":"COUNTIF(Marts_deltagelse[[#This Row],[1]:[31]],Kode2)","v":0},{"$f":"COUNTIF(Marts_deltagelse[[#This Row],[1]:[31]],Kode3)","v":0},{"$f":"COUNTIF(Marts_deltagelse[[#This Row],[1]:[31]],Kode4)","v":0},{"$f":"SUM(Marts_deltagelse[[#This Row],[H1]:[H]])","v":0}]
[null,null,{"$f":"IFERROR(VLOOKUP(Marts_deltagelse[[#This Row],[Studie-id]],ListeOverStuderende[],18,FALSE),\"\")","v":""},{"$nulls":31},{"$f":"COUNTIF(Marts_deltagelse[[#This Row],[1]:[31]],Kode1)","v":0},{"$f":"COUNTIF(Marts_deltagelse[[#This Row],[1]:[31]],Kode2)","v":0},{"$f":"COUNTIF(Marts_deltagelse[[#This Row],[1]:[31]],Kode3)","v":0},{"$f":"COUNTIF(Marts_deltagelse[[#This Row],[1]:[31]],Kode4)","v":0},{"$f":"SUM(Marts_deltagelse[[#This Row],[H1]:[H]])","v":0}]
[null,null,"Antal dage med fravær i alt",{"$f":"COUNTIF(Marts_deltagelse[1],\"H1\")+COUNTIF(Marts_deltagelse[1],\"H\")","v":0},{"$f":"COUNTIF(Marts_deltagelse[2],\"H1\")+COUNTIF(Marts_deltagelse[2],\"H\")","v":0},{"$f":"COUNTIF(Marts_deltagelse[3],\"H1\")+COUNTIF(Marts_deltagelse[3],\"H\")","v":0},{"$f":"COUNTIF(Marts_deltagelse[4],\"H1\")+COUNTIF(Marts_deltagelse[4],\"H\")","v":0},{"$f":"COUNTIF(Marts_deltagelse[5],\"H1\")+COUNTIF(Marts_deltagelse[5],\"H\")","v":0},{"$f":"COUNTIF(Marts_deltagelse[6],\"H1\")+COUNTIF(Marts_deltagelse[6],\"H\")","v":0},{"$f":"COUNTIF(Marts_deltagelse[7],\"H1\")+COUNTIF(Marts_deltagelse[7],\"H\")","v":0},{"$f":"COUNTIF(Marts_deltagelse[8],\"H1\")+COUNTIF(Marts_deltagelse[8],\"H\")","v":0},{"$f":"COUNTIF(Marts_deltagelse[9],\"H1\")+COUNTIF(Marts_deltagelse[9],\"H\")","v":0},{"$f":"COUNTIF(Marts_deltagelse[10],\"H1\")+COUNTIF(Marts_deltagelse[10],\"H\")","v":0},{"$f":"COUNTIF(Marts_deltagelse[11],\"H1\")+COUNTIF(Marts_deltagelse[11],\"H\")","v":0},{"$f":"COUNTIF(Marts_deltagelse[12],\"H1\")+COUNTIF(Marts_deltagelse[12],\"H\")","v":0},{"$f":"COUNTIF(Marts_deltagelse[13],\"H1\")+COUNTIF(Marts_deltagelse[13],\"H\")","v":0},{"$f":"COUNTIF(Marts_deltagelse[14],\"H1\")+COUNTIF(Marts_deltagelse[14],\"H\")","v":0},{"$f":"COUNTIF(Marts_deltagelse[15],\"H1\")+COUNTIF(Marts_deltagelse[15],\"H\")","v":0},{"$f":"COUNTIF(Marts_deltagelse[16],\"H1\")+COUNTIF(Marts_deltagelse[16],\"H\")","v":0},{"$f":"COUNTIF(Marts_deltagelse[17],\"H1\")+COUNTIF(Marts_deltagelse[17],\"H\")","v":0},{"$f":"COUNTIF(Marts_deltagelse[18],\"H1\")+COUNTIF(Marts_deltagelse[18],\"H\")","v":0},{"$f":"COUNTIF(Marts_deltagelse[19],\"H1\")+COUNTIF(Marts_deltagelse[19],\"H\")","v":0},{"$f":"COUNTIF(Marts_deltagelse[20],\"H1\")+COUNTIF(Marts_deltagelse[20],\"H\")","v":0},{"$f":"COUNTIF(Marts_deltagelse[21],\"H1\")+COUNTIF(Marts_deltagelse[21],\"H\")","v":0},{"$f":"COUNTIF(Marts_deltagelse[22],\"H1\")+COUNTIF(Marts_deltagelse[22],\"H\")","v":0},{"$f":"COUNTIF(Marts_deltagelse[23],\"H1\")+COUNTIF(Marts_deltagelse[23],\"H\")","v":0},{"$f":"COUNTIF(Marts_deltagelse[24],\"H1\")+COUNTIF(Marts_deltagelse[24],\"H\")","v":0},{"$f":"COUNTIF(Marts_deltagelse[25],\"H1\")+COUNTIF(Marts_deltagelse[25],\"H\")","v":0},{"$f":"COUNTIF(Marts_deltagelse[26],\"H1\")+COUNTIF(Marts_deltagelse[26],\"H\")","v":0},{"$f":"COUNTIF(Marts_deltagelse[27],\"H1\")+COUNTIF(Marts_deltagelse[27],\"H\")","v":0},{"$f":"COUNTIF(Marts_deltagelse[28],\"H1\")+COUNTIF(Marts_deltagelse[28],\"H\")","v":0},{"$f":"COUNTIF(Marts_deltagelse[29],\"H1\")+COUNTIF(Marts_deltagelse[29],\"H\")","v":0},{"$f":"COUNTIF(Marts_deltagelse[30],\"H1\")+COUNTIF(Marts_deltagelse[30],\"H\")","v":0},{"$f":"COUNTIF(Marts_deltagelse[31],\"H1\")+COUNTIF(Marts_deltagelse[31],\"H\")","v":0},{"$f":"SUBTOTAL(109,Marts_deltagelse[F])","v":0},{"$f":"SUBTOTAL(109,Marts_deltagelse[H1])","v":0},{"$f":"SUBTOTAL(109,Marts_deltagelse[H])","v":0},{"$f":"SUBTOTAL(109,Marts_deltagelse[T])","v":0},{"$f":"SUBTOTAL(109,Marts_deltagelse[Dage med fravær])","v":0}]

{"sheet":"April","index":10,"n_rows":12,"n_cols":39,"rows_kept":12,"merged":[[4,34,4,38]]}
["FREMMØDEREGISTRERING FOR STUDERENDE",{"$nulls":36},"Start på skoleår:",{"$f":"Kalenderår","v":2012}]
[]
[null,null,{"$f":"TekstTilFarvenøgle","v":"FARVENØGLE "},{"$f":"Kode1","v":"F"},{"$f":"TekstTilKode1","v":"Forsinket"},null,null,{"$f":"Kode2","v":"H"},{"$f":"TekstTilKode2","v":"Har tilladelse"},null,null,{"$f":"Kode3","v":"H1"},{"$f":"TekstTilKode3","v":"Har ikke tilladelse"},null,null,{"$f":"Kode4","v":"T"},{"$f":"TekstTilKode4","v":"Til stede"},null,null,{"$f":"Kode5","v":"I"},{"$f":"TekstTilKode5","v":"Ingen skolegang"}]
[]
[null,{"$f":"DATE(Kalenderår+1,4,1)","v":"2013-04-01"},null,{"$f":"TEXT(WEEKDAY(DATE(Kalenderår+1,4,1),1),\"[$-406]aaa\")","v":"1900"},{"$f":"TEXT(WEEKDAY(DATE(Kalenderår+1,4,2),1),\"[$-406]aaa\")","v":"1900"},{"$f":"TEXT(WEEKDAY(DATE(Kalenderår+1,4,3),1),\"[$-406]aaa\")","v":"1900"},{"$f":"TEXT(WEEKDAY(DATE(Kalenderår+1,4,4),1),\"[$-406]aaa\")","v":"1900"},{"$f":"TEXT(WEEKDAY(DATE(Kalenderår+1,4,5),1),\"[$-406]aaa\")","v":"1900"},{"$f":"TEXT(WEEKDAY(DATE(Kalenderår+1,4,6),1),\"[$-406]aaa\")","v":"1900"},{"$f":"TEXT(WEEKDAY(DATE(Kalenderår+1,4,7),1),\"[$-406]aaa\")","v":"1900"},{"$f":"TEXT(WEEKDAY(DATE(Kalenderår+1,4,8),1),\"[$-406]aaa\")","v":"1900"},{"$f":"TEXT(WEEKDAY(DATE(Kalenderår+1,4,9),1),\"[$-406]aaa\")","v":"1900"},{"$f":"TEXT(WEEKDAY(DATE(Kalenderår+1,4,10),1),\"[$-406]aaa\")","v":"1900"},{"$f":"TEXT(WEEKDAY(DATE(Kalenderår+1,4,11),1),\"[$-406]aaa\")","v":"1900"},{"$f":"TEXT(WEEKDAY(DATE(Kalenderår+1,4,12),1),\"[$-406]aaa\")","v":"1900"},{"$f":"TEXT(WEEKDAY(DATE(Kalenderår+1,4,13),1),\"[$-406]aaa\")","v":"1900"},{"$f":"TEXT(WEEKDAY(DATE(Kalenderår+1,4,14),1),\"[$-406]aaa\")","v":"1900"},{"$f":"TEXT(WEEKDAY(DATE(Kalenderår+1,4,15),1),\"[$-406]aaa\")","v":"1900"},{"$f":"TEXT(WEEKDAY(DATE(Kalenderår+1,4,16),1),\"[$-406]aaa\")","v":"1900"},{"$f":"TEXT(WEEKDAY(DATE(Kalenderår+1,4,17),1),\"[$-406]aaa\")","v":"1900"},{"$f":"TEXT(WEEKDAY(DATE(Kalenderår+1,4,18),1),\"[$-406]aaa\")","v":"1900"},{"$f":"TEXT(WEEKDAY(DATE(Kalenderår+1,4,19),1),\"[$-406]aaa\")","v":"1900"},{"$f":"TEXT(WEEKDAY(DATE(Kalenderår+1,4,20),1),\"[$-406]aaa\")","v":"1900"},{"$f":"TEXT(WEEKDAY(DATE(Kalenderår+1,4,21),1),\"[$-406]aaa\")","v":"1900"},{"$f":"TEXT(WEEKDAY(DATE(Kalenderår+1,4,22),1),\"[$-406]aaa\")","v":"1900"},{"$f":"TEXT(WEEKDAY(DATE(Kalenderår+1,4,23),1),\"[$-406]aaa\")","v":"1900"},{"$f":"TEXT(WEEKDAY(DATE(Kalenderår+1,4,24),1),\"[$-406]aaa\")","v":"1900"},{"$f":"TEXT(WEEKDAY(DATE(Kalenderår+1,4,25),1),\"[$-406]aaa\")","v":"1900"},{"$f":"TEXT(WEEKDAY(DATE(Kalenderår+1,4,26),1),\"[$-406]aaa\")","v":"1900"},{"$f":"TEXT(WEEKDAY(DATE(Kalenderår+1,4,27),1),\"[$-406]aaa\")","v":"1900"},{"$f":"TEXT(WEEKDAY(DATE(Kalenderår+1,4,28),1),\"[$-406]aaa\")","v":"1900"},{"$f":"TEXT(WEEKDAY(DATE(Kalenderår+1,4,29),1),\"[$-406]aaa\")","v":"1900"},{"$f":"TEXT(WEEKDAY(DATE(Kalenderår+1,4,30),1),\"[$-406]aaa\")","v":"1900"},null,"Totaler"]
[null,"Studie-id","Den studerendes navn","1","2","3","4","5","6","7","8","9","10","11","12","13","14","15","16","17","18","19","20","21","22","23","24","25","26","27","28","29","30"," ","F","H1","H","T","Dage med fravær"]
[null,null,{"$f":"IFERROR(VLOOKUP(April_deltagelse[[#This Row],[Studie-id]],ListeOverStuderende[],18,FALSE),\"\")","v":""},{"$nulls":31},{"$f":"COUNTIF(April_deltagelse[[#This Row],[1]:[ ]],Kode1)","v":0},{"$f":"COUNTIF(April_deltagelse[[#This Row],[1]:[ ]],Kode2)","v":0},{"$f":"COUNTIF(April_deltagelse[[#This Row],[1]:[ ]],Kode3)","v":0},{"$f":"COUNTIF(April_deltagelse[[#This Row],[1]:[ ]],Kode4)","v":0},{"$f":"SUM(April_deltagelse[[#This Row],[H1]:[H]])","v":0}]
[null,null,{"$f":"IFERROR(VLOOKUP(April_deltagelse[[#This Row],[Studie-id]],ListeOverStuderende[],18,FALSE),\"\")","v":""},{"$nulls":31},{"$f":"COUNTIF(April_deltagelse[[#This Row],[1]:[ ]],Kode1)","v":0},{"$f":"COUNTIF(April_deltagelse[[#This Row],[1]:[ ]],Kode2)","v":0},{"$f":"COUNTIF(April_deltagelse[[#This Row],[1]:[ ]],Kode3)","v":0},{"$f":"COUNTIF(April_deltagelse[[#This Row],[1]:[ ]],Kode4)","v":0},{"$f":"SUM(April_deltagelse[[#This Row],[H1]:[H]])","v":0}]
[null,null,{"$f":"IFERROR(VLOOKUP(April_deltagelse[[#This Row],[Studie-id]],ListeOverStuderende[],18,FALSE),\"\")","v":""},{"$nulls":31},{"$f":"COUNTIF(April_deltagelse[[#This Row],[1]:[ ]],Kode1)","v":0},{"$f":"COUNTIF(April_deltagelse[[#This Row],[1]:[ ]],Kode2)","v":0},{"$f":"COUNTIF(April_deltagelse[[#This Row],[1]:[ ]],Kode3)","v":0},{"$f":"COUNTIF(April_deltagelse[[#This Row],[1]:[ ]],Kode4)","v":0},{"$f":"SUM(April_deltagelse[[#This Row],[H1]:[H]])","v":0}]
[null,null,{"$f":"IFERROR(VLOOKUP(April_deltagelse[[#This Row],[Studie-id]],ListeOverStuderende[],18,FALSE),\"\")","v":""},{"$nulls":31},{"$f":"COUNTIF(April_deltagelse[[#This Row],[1]:[ ]],Kode1)","v":0},{"$f":"COUNTIF(April_deltagelse[[#This Row],[1]:[ ]],Kode2)","v":0},{"$f":"COUNTIF(April_deltagelse[[#This Row],[1]:[ ]],Kode3)","v":0},{"$f":"COUNTIF(April_deltagelse[[#This Row],[1]:[ ]],Kode4)","v":0},{"$f":"SUM(April_deltagelse[[#This Row],[H1]:[H]])","v":0}]
[null,null,{"$f":"IFERROR(VLOOKUP(April_deltagelse[[#This Row],[Studie-id]],ListeOverStuderende[],18,FALSE),\"\")","v":""},{"$nulls":31},{"$f":"COUNTIF(April_deltagelse[[#This Row],[1]:[ ]],Kode1)","v":0},{"$f":"COUNTIF(April_deltagelse[[#This Row],[1]:[ ]],Kode2)","v":0},{"$f":"COUNTIF(April_deltagelse[[#This Row],[1]:[ ]],Kode3)","v":0},{"$f":"COUNTIF(April_deltagelse[[#This Row],[1]:[ ]],Kode4)","v":0},{"$f":"SUM(April_deltagelse[[#This Row],[H1]:[H]])","v":0}]
[null,null,"Antal dage med fravær i alt",{"$f":"COUNTIF(April_deltagelse[1],\"H1\")+COUNTIF(April_deltagelse[1],\"H\")","v":0},{"$f":"COUNTIF(April_deltagelse[2],\"H1\")+COUNTIF(April_deltagelse[2],\"H\")","v":0},{"$f":"COUNTIF(April_deltagelse[3],\"H1\")+COUNTIF(April_deltagelse[3],\"H\")","v":0},{"$f":"COUNTIF(April_deltagelse[4],\"H1\")+COUNTIF(April_deltagelse[4],\"H\")","v":0},{"$f":"COUNTIF(April_deltagelse[5],\"H1\")+COUNTIF(April_deltagelse[5],\"H\")","v":0},{"$f":"COUNTIF(April_deltagelse[6],\"H1\")+COUNTIF(April_deltagelse[6],\"H\")","v":0},{"$f":"COUNTIF(April_deltagelse[7],\"H1\")+COUNTIF(April_deltagelse[7],\"H\")","v":0},{"$f":"COUNTIF(April_deltagelse[8],\"H1\")+COUNTIF(April_deltagelse[8],\"H\")","v":0},{"$f":"COUNTIF(April_deltagelse[9],\"H1\")+COUNTIF(April_deltagelse[9],\"H\")","v":0},{"$f":"COUNTIF(April_deltagelse[10],\"H1\")+COUNTIF(April_deltagelse[10],\"H\")","v":0},{"$f":"COUNTIF(April_deltagelse[11],\"H1\")+COUNTIF(April_deltagelse[11],\"H\")","v":0},{"$f":"COUNTIF(April_deltagelse[12],\"H1\")+COUNTIF(April_deltagelse[12],\"H\")","v":0},{"$f":"COUNTIF(April_deltagelse[13],\"H1\")+COUNTIF(April_deltagelse[13],\"H\")","v":0},{"$f":"COUNTIF(April_deltagelse[14],\"H1\")+COUNTIF(April_deltagelse[14],\"H\")","v":0},{"$f":"COUNTIF(April_deltagelse[15],\"H1\")+COUNTIF(April_deltagelse[15],\"H\")","v":0},{"$f":"COUNTIF(April_deltagelse[16],\"H1\")+COUNTIF(April_deltagelse[16],\"H\")","v":0},{"$f":"COUNTIF(April_deltagelse[17],\"H1\")+COUNTIF(April_deltagelse[17],\"H\")","v":0},{"$f":"COUNTIF(April_deltagelse[18],\"H1\")+COUNTIF(April_deltagelse[18],\"H\")","v":0},{"$f":"COUNTIF(April_deltagelse[19],\"H1\")+COUNTIF(April_deltagelse[19],\"H\")","v":0},{"$f":"COUNTIF(April_deltagelse[20],\"H1\")+COUNTIF(April_deltagelse[20],\"H\")","v":0},{"$f":"COUNTIF(April_deltagelse[21],\"H1\")+COUNTIF(April_deltagelse[21],\"H\")","v":0},{"$f":"COUNTIF(April_deltagelse[22],\"H1\")+COUNTIF(April_deltagelse[22],\"H\")","v":0},{"$f":"COUNTIF(April_deltagelse[23],\"H1\")+COUNTIF(April_deltagelse[23],\"H\")","v":0},{"$f":"COUNTIF(April_deltagelse[24],\"H1\")+COUNTIF(April_deltagelse[24],\"H\")","v":0},{"$f":"COUNTIF(April_deltagelse[25],\"H1\")+COUNTIF(April_deltagelse[25],\"H\")","v":0},{"$f":"COUNTIF(April_deltagelse[26],\"H1\")+COUNTIF(April_deltagelse[26],\"H\")","v":0},{"$f":"COUNTIF(April_deltagelse[27],\"H1\")+COUNTIF(April_deltagelse[27],\"H\")","v":0},{"$f":"COUNTIF(April_deltagelse[28],\"H1\")+COUNTIF(April_deltagelse[28],\"H\")","v":0},{"$f":"COUNTIF(April_deltagelse[29],\"H1\")+COUNTIF(April_deltagelse[29],\"H\")","v":0},{"$f":"COUNTIF(April_deltagelse[30],\"H1\")+COUNTIF(April_deltagelse[30],\"H\")","v":0},null,{"$f":"SUBTOTAL(109,April_deltagelse[F])","v":0},{"$f":"SUBTOTAL(109,April_deltagelse[H1])","v":0},{"$f":"SUBTOTAL(109,April_deltagelse[H])","v":0},{"$f":"SUBTOTAL(109,April_deltagelse[T])","v":0},{"$f":"SUBTOTAL(109,April_deltagelse[Dage med fravær])","v":0}]

{"sheet":"Maj","index":11,"n_rows":12,"n_cols":39,"rows_kept":12,"merged":[[4,34,4,38]]}
["FREMMØDEREGISTRERING FOR STUDERENDE",{"$nulls":36},"Start på skoleår:",{"$f":"Kalenderår","v":2012}]
[]
[null,null,{"$f":"TekstTilFarvenøgle","v":"FARVENØGLE "},{"$f":"Kode1","v":"F"},{"$f":"TekstTilKode1","v":"Forsinket"},null,null,{"$f":"Kode2","v":"H"},{"$f":"TekstTilKode2","v":"Har tilladelse"},null,null,{"$f":"Kode3","v":"H1"},{"$f":"TekstTilKode3","v":"Har ikke tilladelse"},null,null,{"$f":"Kode4","v":"T"},{"$f":"TekstTilKode4","v":"Til stede"},null,null,{"$f":"Kode5","v":"I"},{"$f":"TekstTilKode5","v":"Ingen skolegang"}]
[]
[null,{"$f":"DATE(Kalenderår+1,5,1)","v":"2013-05-01"},null,{"$f":"TEXT(WEEKDAY(DATE(Kalenderår+1,5,1),1),\"[$-406]aaa\")","v":"1900"},{"$f":"TEXT(WEEKDAY(DATE(Kalenderår+1,5,2),1),\"[$-406]aaa\")","v":"1900"},{"$f":"TEXT(WEEKDAY(DATE(Kalenderår+1,5,3),1),\"[$-406]aaa\")","v":"1900"},{"$f":"TEXT(WEEKDAY(DATE(Kalenderår+1,5,4),1),\"[$-406]aaa\")","v":"1900"},{"$f":"TEXT(WEEKDAY(DATE(Kalenderår+1,5,5),1),\"[$-406]aaa\")","v":"1900"},{"$f":"TEXT(WEEKDAY(DATE(Kalenderår+1,5,6),1),\"[$-406]aaa\")","v":"1900"},{"$f":"TEXT(WEEKDAY(DATE(Kalenderår+1,5,7),1),\"[$-406]aaa\")","v":"1900"},{"$f":"TEXT(WEEKDAY(DATE(Kalenderår+1,5,8),1),\"[$-406]aaa\")","v":"1900"},{"$f":"TEXT(WEEKDAY(DATE(Kalenderår+1,5,9),1),\"[$-406]aaa\")","v":"1900"},{"$f":"TEXT(WEEKDAY(DATE(Kalenderår+1,5,10),1),\"[$-406]aaa\")","v":"1900"},{"$f":"TEXT(WEEKDAY(DATE(Kalenderår+1,5,11),1),\"[$-406]aaa\")","v":"1900"},{"$f":"TEXT(WEEKDAY(DATE(Kalenderår+1,5,12),1),\"[$-406]aaa\")","v":"1900"},{"$f":"TEXT(WEEKDAY(DATE(Kalenderår+1,5,13),1),\"[$-406]aaa\")","v":"1900"},{"$f":"TEXT(WEEKDAY(DATE(Kalenderår+1,5,14),1),\"[$-406]aaa\")","v":"1900"},{"$f":"TEXT(WEEKDAY(DATE(Kalenderår+1,5,15),1),\"[$-406]aaa\")","v":"1900"},{"$f":"TEXT(WEEKDAY(DATE(Kalenderår+1,5,16),1),\"[$-406]aaa\")","v":"1900"},{"$f":"TEXT(WEEKDAY(DATE(Kalenderår+1,5,17),1),\"[$-406]aaa\")","v":"1900"},{"$f":"TEXT(WEEKDAY(DATE(Kalenderår+1,5,18),1),\"[$-406]aaa\")","v":"1900"},{"$f":"TEXT(WEEKDAY(DATE(Kalenderår+1,5,19),1),\"[$-406]aaa\")","v":"1900"},{"$f":"TEXT(WEEKDAY(DATE(Kalenderår+1,5,20),1),\"[$-406]aaa\")","v":"1900"},{"$f":"TEXT(WEEKDAY(DATE(Kalenderår+1,5,21),1),\"[$-406]aaa\")","v":"1900"},{"$f":"TEXT(WEEKDAY(DATE(Kalenderår+1,5,22),1),\"[$-406]aaa\")","v":"1900"},{"$f":"TEXT(WEEKDAY(DATE(Kalenderår+1,5,23),1),\"[$-406]aaa\")","v":"1900"},{"$f":"TEXT(WEEKDAY(DATE(Kalenderår+1,5,24),1),\"[$-406]aaa\")","v":"1900"},{"$f":"TEXT(WEEKDAY(DATE(Kalenderår+1,5,25),1),\"[$-406]aaa\")","v":"1900"},{"$f":"TEXT(WEEKDAY(DATE(Kalenderår+1,5,26),1),\"[$-406]aaa\")","v":"1900"},{"$f":"TEXT(WEEKDAY(DATE(Kalenderår+1,5,27),1),\"[$-406]aaa\")","v":"1900"},{"$f":"TEXT(WEEKDAY(DATE(Kalenderår+1,5,28),1),\"[$-406]aaa\")","v":"1900"},{"$f":"TEXT(WEEKDAY(DATE(Kalenderår+1,5,29),1),\"[$-406]aaa\")","v":"1900"},{"$f":"TEXT(WEEKDAY(DATE(Kalenderår+1,5,30),1),\"[$-406]aaa\")","v":"1900"},{"$f":"TEXT(WEEKDAY(DATE(Kalenderår+1,5,31),1),\"[$-406]aaa\")","v":"1900"},"Totaler"]
[null,"Studie-id","Den studerendes navn","1","2","3","4","5","6","7","8","9","10","11","12","13","14","15","16","17","18","19","20","21","22","23","24","25","26","27","28","29","30","31","F","H1","H","T","Dage med fravær"]
[null,null,{"$f":"IFERROR(VLOOKUP(Maj_deltagelse[[#This Row],[Studie-id]],ListeOverStuderende[],18,FALSE),\"\")","v":""},{"$nulls":31},{"$f":"COUNTIF(Maj_deltagelse[[#This Row],[1]:[31]],Kode1)","v":0},{"$f":"COUNTIF(Maj_deltagelse[[#This Row],[1]:[31]],Kode2)","v":0},{"$f":"COUNTIF(Maj_deltagelse[[#This Row],[1]:[31]],Kode3)","v":0},{"$f":"COUNTIF(Maj_deltagelse[[#This Row],[1]:[31]],Kode4)","v":0},{"$f":"SUM(Maj_deltagelse[[#This Row],[H1]:[H]])","v":0}]
[null,null,{"$f":"IFERROR(VLOOKUP(Maj_deltagelse[[#This Row],[Studie-id]],ListeOverStuderende[],18,FALSE),\"\")","v":""},{"$nulls":31},{"$f":"COUNTIF(Maj_deltagelse[[#This Row],[1]:[31]],Kode1)","v":0},{"$f":"COUNTIF(Maj_deltagelse[[#This Row],[1]:[31]],Kode2)","v":0},{"$f":"COUNTIF(Maj_deltagelse[[#This Row],[1]:[31]],Kode3)","v":0},{"$f":"COUNTIF(Maj_deltagelse[[#This Row],[1]:[31]],Kode4)","v":0},{"$f":"SUM(Maj_deltagelse[[#This Row],[H1]:[H]])","v":0}]
[null,null,{"$f":"IFERROR(VLOOKUP(Maj_deltagelse[[#This Row],[Studie-id]],ListeOverStuderende[],18,FALSE),\"\")","v":""},{"$nulls":31},{"$f":"COUNTIF(Maj_deltagelse[[#This Row],[1]:[31]],Kode1)","v":0},{"$f":"COUNTIF(Maj_deltagelse[[#This Row],[1]:[31]],Kode2)","v":0},{"$f":"COUNTIF(Maj_deltagelse[[#This Row],[1]:[31]],Kode3)","v":0},{"$f":"COUNTIF(Maj_deltagelse[[#This Row],[1]:[31]],Kode4)","v":0},{"$f":"SUM(Maj_deltagelse[[#This Row],[H1]:[H]])","v":0}]
[null,null,{"$f":"IFERROR(VLOOKUP(Maj_deltagelse[[#This Row],[Studie-id]],ListeOverStuderende[],18,FALSE),\"\")","v":""},{"$nulls":31},{"$f":"COUNTIF(Maj_deltagelse[[#This Row],[1]:[31]],Kode1)","v":0},{"$f":"COUNTIF(Maj_deltagelse[[#This Row],[1]:[31]],Kode2)","v":0},{"$f":"COUNTIF(Maj_deltagelse[[#This Row],[1]:[31]],Kode3)","v":0},{"$f":"COUNTIF(Maj_deltagelse[[#This Row],[1]:[31]],Kode4)","v":0},{"$f":"SUM(Maj_deltagelse[[#This Row],[H1]:[H]])","v":0}]
[null,null,{"$f":"IFERROR(VLOOKUP(Maj_deltagelse[[#This Row],[Studie-id]],ListeOverStuderende[],18,FALSE),\"\")","v":""},{"$nulls":31},{"$f":"COUNTIF(Maj_deltagelse[[#This Row],[1]:[31]],Kode1)","v":0},{"$f":"COUNTIF(Maj_deltagelse[[#This Row],[1]:[31]],Kode2)","v":0},{"$f":"COUNTIF(Maj_deltagelse[[#This Row],[1]:[31]],Kode3)","v":0},{"$f":"COUNTIF(Maj_deltagelse[[#This Row],[1]:[31]],Kode4)","v":0},{"$f":"SUM(Maj_deltagelse[[#This Row],[H1]:[H]])","v":0}]
[null,null,"Antal dage med fravær i alt",{"$f":"COUNTIF(Maj_deltagelse[1],\"H1\")+COUNTIF(Maj_deltagelse[1],\"H\")","v":0},{"$f":"COUNTIF(Maj_deltagelse[2],\"H1\")+COUNTIF(Maj_deltagelse[2],\"H\")","v":0},{"$f":"COUNTIF(Maj_deltagelse[3],\"H1\")+COUNTIF(Maj_deltagelse[3],\"H\")","v":0},{"$f":"COUNTIF(Maj_deltagelse[4],\"H1\")+COUNTIF(Maj_deltagelse[4],\"H\")","v":0},{"$f":"COUNTIF(Maj_deltagelse[5],\"H1\")+COUNTIF(Maj_deltagelse[5],\"H\")","v":0},{"$f":"COUNTIF(Maj_deltagelse[6],\"H1\")+COUNTIF(Maj_deltagelse[6],\"H\")","v":0},{"$f":"COUNTIF(Maj_deltagelse[7],\"H1\")+COUNTIF(Maj_deltagelse[7],\"H\")","v":0},{"$f":"COUNTIF(Maj_deltagelse[8],\"H1\")+COUNTIF(Maj_deltagelse[8],\"H\")","v":0},{"$f":"COUNTIF(Maj_deltagelse[9],\"H1\")+COUNTIF(Maj_deltagelse[9],\"H\")","v":0},{"$f":"COUNTIF(Maj_deltagelse[10],\"H1\")+COUNTIF(Maj_deltagelse[10],\"H\")","v":0},{"$f":"COUNTIF(Maj_deltagelse[11],\"H1\")+COUNTIF(Maj_deltagelse[11],\"H\")","v":0},{"$f":"COUNTIF(Maj_deltagelse[12],\"H1\")+COUNTIF(Maj_deltagelse[12],\"H\")","v":0},{"$f":"COUNTIF(Maj_deltagelse[13],\"H1\")+COUNTIF(Maj_deltagelse[13],\"H\")","v":0},{"$f":"COUNTIF(Maj_deltagelse[14],\"H1\")+COUNTIF(Maj_deltagelse[14],\"H\")","v":0},{"$f":"COUNTIF(Maj_deltagelse[15],\"H1\")+COUNTIF(Maj_deltagelse[15],\"H\")","v":0},{"$f":"COUNTIF(Maj_deltagelse[16],\"H1\")+COUNTIF(Maj_deltagelse[16],\"H\")","v":0},{"$f":"COUNTIF(Maj_deltagelse[17],\"H1\")+COUNTIF(Maj_deltagelse[17],\"H\")","v":0},{"$f":"COUNTIF(Maj_deltagelse[18],\"H1\")+COUNTIF(Maj_deltagelse[18],\"H\")","v":0},{"$f":"COUNTIF(Maj_deltagelse[19],\"H1\")+COUNTIF(Maj_deltagelse[19],\"H\")","v":0},{"$f":"COUNTIF(Maj_deltagelse[20],\"H1\")+COUNTIF(Maj_deltagelse[20],\"H\")","v":0},{"$f":"COUNTIF(Maj_deltagelse[21],\"H1\")+COUNTIF(Maj_deltagelse[21],\"H\")","v":0},{"$f":"COUNTIF(Maj_deltagelse[22],\"H1\")+COUNTIF(Maj_deltagelse[22],\"H\")","v":0},{"$f":"COUNTIF(Maj_deltagelse[23],\"H1\")+COUNTIF(Maj_deltagelse[23],\"H\")","v":0},{"$f":"COUNTIF(Maj_deltagelse[24],\"H1\")+COUNTIF(Maj_deltagelse[24],\"H\")","v":0},{"$f":"COUNTIF(Maj_deltagelse[25],\"H1\")+COUNTIF(Maj_deltagelse[25],\"H\")","v":0},{"$f":"COUNTIF(Maj_deltagelse[26],\"H1\")+COUNTIF(Maj_deltagelse[26],\"H\")","v":0},{"$f":"COUNTIF(Maj_deltagelse[27],\"H1\")+COUNTIF(Maj_deltagelse[27],\"H\")","v":0},{"$f":"COUNTIF(Maj_deltagelse[28],\"H1\")+COUNTIF(Maj_deltagelse[28],\"H\")","v":0},{"$f":"COUNTIF(Maj_deltagelse[29],\"H1\")+COUNTIF(Maj_deltagelse[29],\"H\")","v":0},{"$f":"COUNTIF(Maj_deltagelse[30],\"H1\")+COUNTIF(Maj_deltagelse[30],\"H\")","v":0},{"$f":"COUNTIF(Maj_deltagelse[31],\"H1\")+COUNTIF(Maj_deltagelse[31],\"H\")","v":0},{"$f":"SUBTOTAL(109,Maj_deltagelse[F])","v":0},{"$f":"SUBTOTAL(109,Maj_deltagelse[H1])","v":0},{"$f":"SUBTOTAL(109,Maj_deltagelse[H])","v":0},{"$f":"SUBTOTAL(109,Maj_deltagelse[T])","v":0},{"$f":"SUBTOTAL(109,Maj_deltagelse[Dage med fravær])","v":0}]

{"sheet":"Juni","index":12,"n_rows":12,"n_cols":39,"rows_kept":12,"merged":[[4,34,4,38]]}
["FREMMØDEREGISTRERING FOR STUDERENDE",{"$nulls":36},"Start på skoleår:",{"$f":"Kalenderår","v":2012}]
[]
[null,null,{"$f":"TekstTilFarvenøgle","v":"FARVENØGLE "},{"$f":"Kode1","v":"F"},{"$f":"TekstTilKode1","v":"Forsinket"},null,null,{"$f":"Kode2","v":"H"},{"$f":"TekstTilKode2","v":"Har tilladelse"},null,null,{"$f":"Kode3","v":"H1"},{"$f":"TekstTilKode3","v":"Har ikke tilladelse"},null,null,{"$f":"Kode4","v":"T"},{"$f":"TekstTilKode4","v":"Til stede"},null,null,{"$f":"Kode5","v":"I"},{"$f":"TekstTilKode5","v":"Ingen skolegang"}]
[]
[null,{"$f":"DATE(Kalenderår+1,6,1)","v":"2013-06-01"},null,{"$f":"TEXT(WEEKDAY(DATE(Kalenderår+1,6,1),1),\"[$-406]aaa\")","v":"1900"},{"$f":"TEXT(WEEKDAY(DATE(Kalenderår+1,6,2),1),\"[$-406]aaa\")","v":"1900"},{"$f":"TEXT(WEEKDAY(DATE(Kalenderår+1,6,3),1),\"[$-406]aaa\")","v":"1900"},{"$f":"TEXT(WEEKDAY(DATE(Kalenderår+1,6,4),1),\"[$-406]aaa\")","v":"1900"},{"$f":"TEXT(WEEKDAY(DATE(Kalenderår+1,6,5),1),\"[$-406]aaa\")","v":"1900"},{"$f":"TEXT(WEEKDAY(DATE(Kalenderår+1,6,6),1),\"[$-406]aaa\")","v":"1900"},{"$f":"TEXT(WEEKDAY(DATE(Kalenderår+1,6,7),1),\"[$-406]aaa\")","v":"1900"},{"$f":"TEXT(WEEKDAY(DATE(Kalenderår+1,6,8),1),\"[$-406]aaa\")","v":"1900"},{"$f":"TEXT(WEEKDAY(DATE(Kalenderår+1,6,9),1),\"[$-406]aaa\")","v":"1900"},{"$f":"TEXT(WEEKDAY(DATE(Kalenderår+1,6,10),1),\"[$-406]aaa\")","v":"1900"},{"$f":"TEXT(WEEKDAY(DATE(Kalenderår+1,6,11),1),\"[$-406]aaa\")","v":"1900"},{"$f":"TEXT(WEEKDAY(DATE(Kalenderår+1,6,12),1),\"[$-406]aaa\")","v":"1900"},{"$f":"TEXT(WEEKDAY(DATE(Kalenderår+1,6,13),1),\"[$-406]aaa\")","v":"1900"},{"$f":"TEXT(WEEKDAY(DATE(Kalenderår+1,6,14),1),\"[$-406]aaa\")","v":"1900"},{"$f":"TEXT(WEEKDAY(DATE(Kalenderår+1,6,15),1),\"[$-406]aaa\")","v":"1900"},{"$f":"TEXT(WEEKDAY(DATE(Kalenderår+1,6,16),1),\"[$-406]aaa\")","v":"1900"},{"$f":"TEXT(WEEKDAY(DATE(Kalenderår+1,6,17),1),\"[$-406]aaa\")","v":"1900"},{"$f":"TEXT(WEEKDAY(DATE(Kalenderår+1,6,18),1),\"[$-406]aaa\")","v":"1900"},{"$f":"TEXT(WEEKDAY(DATE(Kalenderår+1,6,19),1),\"[$-406]aaa\")","v":"1900"},{"$f":"TEXT(WEEKDAY(DATE(Kalenderår+1,6,20),1),\"[$-406]aaa\")","v":"1900"},{"$f":"TEXT(WEEKDAY(DATE(Kalenderår+1,6,21),1),\"[$-406]aaa\")","v":"1900"},{"$f":"TEXT(WEEKDAY(DATE(Kalenderår+1,6,22),1),\"[$-406]aaa\")","v":"1900"},{"$f":"TEXT(WEEKDAY(DATE(Kalenderår+1,6,23),1),\"[$-406]aaa\")","v":"1900"},{"$f":"TEXT(WEEKDAY(DATE(Kalenderår+1,6,24),1),\"[$-406]aaa\")","v":"1900"},{"$f":"TEXT(WEEKDAY(DATE(Kalenderår+1,6,25),1),\"[$-406]aaa\")","v":"1900"},{"$f":"TEXT(WEEKDAY(DATE(Kalenderår+1,6,26),1),\"[$-406]aaa\")","v":"1900"},{"$f":"TEXT(WEEKDAY(DATE(Kalenderår+1,6,27),1),\"[$-406]aaa\")","v":"1900"},{"$f":"TEXT(WEEKDAY(DATE(Kalenderår+1,6,28),1),\"[$-406]aaa\")","v":"1900"},{"$f":"TEXT(WEEKDAY(DATE(Kalenderår+1,6,29),1),\"[$-406]aaa\")","v":"1900"},{"$f":"TEXT(WEEKDAY(DATE(Kalenderår+1,6,30),1),\"[$-406]aaa\")","v":"1900"},null,"Totaler"]
[null,"Studie-id","Den studerendes navn","1","2","3","4","5","6","7","8","9","10","11","12","13","14","15","16","17","18","19","20","21","22","23","24","25","26","27","28","29","30"," ","F","H1","H","T","Dage med fravær"]
[null,null,{"$f":"IFERROR(VLOOKUP(Juni_deltagelse[[#This Row],[Studie-id]],ListeOverStuderende[],18,FALSE),\"\")","v":""},{"$nulls":31},{"$f":"COUNTIF(Juni_deltagelse[[#This Row],[1]:[ ]],Kode1)","v":0},{"$f":"COUNTIF(Juni_deltagelse[[#This Row],[1]:[ ]],Kode2)","v":0},{"$f":"COUNTIF(Juni_deltagelse[[#This Row],[1]:[ ]],Kode3)","v":0},{"$f":"COUNTIF(Juni_deltagelse[[#This Row],[1]:[ ]],Kode4)","v":0},{"$f":"SUM(Juni_deltagelse[[#This Row],[H1]:[H]])","v":0}]
[null,null,{"$f":"IFERROR(VLOOKUP(Juni_deltagelse[[#This Row],[Studie-id]],ListeOverStuderende[],18,FALSE),\"\")","v":""},{"$nulls":31},{"$f":"COUNTIF(Juni_deltagelse[[#This Row],[1]:[ ]],Kode1)","v":0},{"$f":"COUNTIF(Juni_deltagelse[[#This Row],[1]:[ ]],Kode2)","v":0},{"$f":"COUNTIF(Juni_deltagelse[[#This Row],[1]:[ ]],Kode3)","v":0},{"$f":"COUNTIF(Juni_deltagelse[[#This Row],[1]:[ ]],Kode4)","v":0},{"$f":"SUM(Juni_deltagelse[[#This Row],[H1]:[H]])","v":0}]
[null,null,{"$f":"IFERROR(VLOOKUP(Juni_deltagelse[[#This Row],[Studie-id]],ListeOverStuderende[],18,FALSE),\"\")","v":""},{"$nulls":31},{"$f":"COUNTIF(Juni_deltagelse[[#This Row],[1]:[ ]],Kode1)","v":0},{"$f":"COUNTIF(Juni_deltagelse[[#This Row],[1]:[ ]],Kode2)","v":0},{"$f":"COUNTIF(Juni_deltagelse[[#This Row],[1]:[ ]],Kode3)","v":0},{"$f":"COUNTIF(Juni_deltagelse[[#This Row],[1]:[ ]],Kode4)","v":0},{"$f":"SUM(Juni_deltagelse[[#This Row],[H1]:[H]])","v":0}]
[null,null,{"$f":"IFERROR(VLOOKUP(Juni_deltagelse[[#This Row],[Studie-id]],ListeOverStuderende[],18,FALSE),\"\")","v":""},{"$nulls":31},{"$f":"COUNTIF(Juni_deltagelse[[#This Row],[1]:[ ]],Kode1)","v":0},{"$f":"COUNTIF(Juni_deltagelse[[#This Row],[1]:[ ]],Kode2)","v":0},{"$f":"COUNTIF(Juni_deltagelse[[#This Row],[1]:[ ]],Kode3)","v":0},{"$f":"COUNTIF(Juni_deltagelse[[#This Row],[1]:[ ]],Kode4)","v":0},{"$f":"SUM(Juni_deltagelse[[#This Row],[H1]:[H]])","v":0}]
[null,null,{"$f":"IFERROR(VLOOKUP(Juni_deltagelse[[#This Row],[Studie-id]],ListeOverStuderende[],18,FALSE),\"\")","v":""},{"$nulls":31},{"$f":"COUNTIF(Juni_deltagelse[[#This Row],[1]:[ ]],Kode1)","v":0},{"$f":"COUNTIF(Juni_deltagelse[[#This Row],[1]:[ ]],Kode2)","v":0},{"$f":"COUNTIF(Juni_deltagelse[[#This Row],[1]:[ ]],Kode3)","v":0},{"$f":"COUNTIF(Juni_deltagelse[[#This Row],[1]:[ ]],Kode4)","v":0},{"$f":"SUM(Juni_deltagelse[[#This Row],[H1]:[H]])","v":0}]
[null,null,"Antal dage med fravær i alt",{"$f":"COUNTIF(Juni_deltagelse[1],\"H1\")+COUNTIF(Juni_deltagelse[1],\"H\")","v":0},{"$f":"COUNTIF(Juni_deltagelse[2],\"H1\")+COUNTIF(Juni_deltagelse[2],\"H\")","v":0},{"$f":"COUNTIF(Juni_deltagelse[3],\"H1\")+COUNTIF(Juni_deltagelse[3],\"H\")","v":0},{"$f":"COUNTIF(Juni_deltagelse[4],\"H1\")+COUNTIF(Juni_deltagelse[4],\"H\")","v":0},{"$f":"COUNTIF(Juni_deltagelse[5],\"H1\")+COUNTIF(Juni_deltagelse[5],\"H\")","v":0},{"$f":"COUNTIF(Juni_deltagelse[6],\"H1\")+COUNTIF(Juni_deltagelse[6],\"H\")","v":0},{"$f":"COUNTIF(Juni_deltagelse[7],\"H1\")+COUNTIF(Juni_deltagelse[7],\"H\")","v":0},{"$f":"COUNTIF(Juni_deltagelse[8],\"H1\")+COUNTIF(Juni_deltagelse[8],\"H\")","v":0},{"$f":"COUNTIF(Juni_deltagelse[9],\"H1\")+COUNTIF(Juni_deltagelse[9],\"H\")","v":0},{"$f":"COUNTIF(Juni_deltagelse[10],\"H1\")+COUNTIF(Juni_deltagelse[10],\"H\")","v":0},{"$f":"COUNTIF(Juni_deltagelse[11],\"H1\")+COUNTIF(Juni_deltagelse[11],\"H\")","v":0},{"$f":"COUNTIF(Juni_deltagelse[12],\"H1\")+COUNTIF(Juni_deltagelse[12],\"H\")","v":0},{"$f":"COUNTIF(Juni_deltagelse[13],\"H1\")+COUNTIF(Juni_deltagelse[13],\"H\")","v":0},{"$f":"COUNTIF(Juni_deltagelse[14],\"H1\")+COUNTIF(Juni_deltagelse[14],\"H\")","v":0},{"$f":"COUNTIF(Juni_deltagelse[15],\"H1\")+COUNTIF(Juni_deltagelse[15],\"H\")","v":0},{"$f":"COUNTIF(Juni_deltagelse[16],\"H1\")+COUNTIF(Juni_deltagelse[16],\"H\")","v":0},{"$f":"COUNTIF(Juni_deltagelse[17],\"H1\")+COUNTIF(Juni_deltagelse[17],\"H\")","v":0},{"$f":"COUNTIF(Juni_deltagelse[18],\"H1\")+COUNTIF(Juni_deltagelse[18],\"H\")","v":0},{"$f":"COUNTIF(Juni_deltagelse[19],\"H1\")+COUNTIF(Juni_deltagelse[19],\"H\")","v":0},{"$f":"COUNTIF(Juni_deltagelse[20],\"H1\")+COUNTIF(Juni_deltagelse[20],\"H\")","v":0},{"$f":"COUNTIF(Juni_deltagelse[21],\"H1\")+COUNTIF(Juni_deltagelse[21],\"H\")","v":0},{"$f":"COUNTIF(Juni_deltagelse[22],\"H1\")+COUNTIF(Juni_deltagelse[22],\"H\")","v":0},{"$f":"COUNTIF(Juni_deltagelse[23],\"H1\")+COUNTIF(Juni_deltagelse[23],\"H\")","v":0},{"$f":"COUNTIF(Juni_deltagelse[24],\"H1\")+COUNTIF(Juni_deltagelse[24],\"H\")","v":0},{"$f":"COUNTIF(Juni_deltagelse[25],\"H1\")+COUNTIF(Juni_deltagelse[25],\"H\")","v":0},{"$f":"COUNTIF(Juni_deltagelse[26],\"H1\")+COUNTIF(Juni_deltagelse[26],\"H\")","v":0},{"$f":"COUNTIF(Juni_deltagelse[27],\"H1\")+COUNTIF(Juni_deltagelse[27],\"H\")","v":0},{"$f":"COUNTIF(Juni_deltagelse[28],\"H1\")+COUNTIF(Juni_deltagelse[28],\"H\")","v":0},{"$f":"COUNTIF(Juni_deltagelse[29],\"H1\")+COUNTIF(Juni_deltagelse[29],\"H\")","v":0},{"$f":"COUNTIF(Juni_deltagelse[30],\"H1\")+COUNTIF(Juni_deltagelse[30],\"H\")","v":0},null,{"$f":"SUBTOTAL(109,Juni_deltagelse[F])","v":0},{"$f":"SUBTOTAL(109,Juni_deltagelse[H1])","v":0},{"$f":"SUBTOTAL(109,Juni_deltagelse[H])","v":0},{"$f":"SUBTOTAL(109,Juni_deltagelse[T])","v":0},{"$f":"SUBTOTAL(109,Juni_deltagelse[Dage med fravær])","v":0}]

{"sheet":"Juli","index":13,"n_rows":12,"n_cols":39,"rows_kept":12,"merged":[[4,34,4,38]]}
["FREMMØDEREGISTRERING FOR STUDERENDE",{"$nulls":36},"Start på skoleår:",{"$f":"Kalenderår","v":2012}]
[]
[null,null,{"$f":"TekstTilFarvenøgle","v":"FARVENØGLE "},{"$f":"Kode1","v":"F"},{"$f":"TekstTilKode1","v":"Forsinket"},null,null,{"$f":"Kode2","v":"H"},{"$f":"TekstTilKode2","v":"Har tilladelse"},null,null,{"$f":"Kode3","v":"H1"},{"$f":"TekstTilKode3","v":"Har ikke tilladelse"},null,null,{"$f":"Kode4","v":"T"},{"$f":"TekstTilKode4","v":"Til stede"},null,null,{"$f":"Kode5","v":"I"},{"$f":"TekstTilKode5","v":"Ingen skolegang"}]
[]
[null,{"$f":"DATE(Kalenderår+1,7,1)","v":"2013-07-01"},null,{"$f":"TEXT(WEEKDAY(DATE(Kalenderår+1,7,1),1),\"[$-406]aaa\")","v":"1900"},{"$f":"TEXT(WEEKDAY(DATE(Kalenderår+1,7,2),1),\"[$-406]aaa\")","v":"1900"},{"$f":"TEXT(WEEKDAY(DATE(Kalenderår+1,7,3),1),\"[$-406]aaa\")","v":"1900"},{"$f":"TEXT(WEEKDAY(DATE(Kalenderår+1,7,4),1),\"[$-406]aaa\")","v":"1900"},{"$f":"TEXT(WEEKDAY(DATE(Kalenderår+1,7,5),1),\"[$-406]aaa\")","v":"1900"},{"$f":"TEXT(WEEKDAY(DATE(Kalenderår+1,7,6),1),\"[$-406]aaa\")","v":"1900"},{"$f":"TEXT(WEEKDAY(DATE(Kalenderår+1,7,7),1),\"[$-406]aaa\")","v":"1900"},{"$f":"TEXT(WEEKDAY(DATE(Kalenderår+1,7,8),1),\"[$-406]aaa\")","v":"1900"},{"$f":"TEXT(WEEKDAY(DATE(Kalenderår+1,7,9),1),\"[$-406]aaa\")","v":"1900"},{"$f":"TEXT(WEEKDAY(DATE(Kalenderår+1,7,10),1),\"[$-406]aaa\")","v":"1900"},{"$f":"TEXT(WEEKDAY(DATE(Kalenderår+1,7,11),1),\"[$-406]aaa\")","v":"1900"},{"$f":"TEXT(WEEKDAY(DATE(Kalenderår+1,7,12),1),\"[$-406]aaa\")","v":"1900"},{"$f":"TEXT(WEEKDAY(DATE(Kalenderår+1,7,13),1),\"[$-406]aaa\")","v":"1900"},{"$f":"TEXT(WEEKDAY(DATE(Kalenderår+1,7,14),1),\"[$-406]aaa\")","v":"1900"},{"$f":"TEXT(WEEKDAY(DATE(Kalenderår+1,7,15),1),\"[$-406]aaa\")","v":"1900"},{"$f":"TEXT(WEEKDAY(DATE(Kalenderår+1,7,16),1),\"[$-406]aaa\")","v":"1900"},{"$f":"TEXT(WEEKDAY(DATE(Kalenderår+1,7,17),1),\"[$-406]aaa\")","v":"1900"},{"$f":"TEXT(WEEKDAY(DATE(Kalenderår+1,7,18),1),\"[$-406]aaa\")","v":"1900"},{"$f":"TEXT(WEEKDAY(DATE(Kalenderår+1,7,19),1),\"[$-406]aaa\")","v":"1900"},{"$f":"TEXT(WEEKDAY(DATE(Kalenderår+1,7,20),1),\"[$-406]aaa\")","v":"1900"},{"$f":"TEXT(WEEKDAY(DATE(Kalenderår+1,7,21),1),\"[$-406]aaa\")","v":"1900"},{"$f":"TEXT(WEEKDAY(DATE(Kalenderår+1,7,22),1),\"[$-406]aaa\")","v":"1900"},{"$f":"TEXT(WEEKDAY(DATE(Kalenderår+1,7,23),1),\"[$-406]aaa\")","v":"1900"},{"$f":"TEXT(WEEKDAY(DATE(Kalenderår+1,7,24),1),\"[$-406]aaa\")","v":"1900"},{"$f":"TEXT(WEEKDAY(DATE(Kalenderår+1,7,25),1),\"[$-406]aaa\")","v":"1900"},{"$f":"TEXT(WEEKDAY(DATE(Kalenderår+1,7,26),1),\"[$-406]aaa\")","v":"1900"},{"$f":"TEXT(WEEKDAY(DATE(Kalenderår+1,7,27),1),\"[$-406]aaa\")","v":"1900"},{"$f":"TEXT(WEEKDAY(DATE(Kalenderår+1,7,28),1),\"[$-406]aaa\")","v":"1900"},{"$f":"TEXT(WEEKDAY(DATE(Kalenderår+1,7,29),1),\"[$-406]aaa\")","v":"1900"},{"$f":"TEXT(WEEKDAY(DATE(Kalenderår+1,7,30),1),\"[$-406]aaa\")","v":"1900"},{"$f":"TEXT(WEEKDAY(DATE(Kalenderår+1,7,31),1),\"[$-406]aaa\")","v":"1900"},"Totaler"]
[null,"Studie-id","Den studerendes navn","1","2","3","4","5","6","7","8","9","10","11","12","13","14","15","16","17","18","19","20","21","22","23","24","25","26","27","28","29","30","31","F","H1","H","T","Dage med fravær"]
[null,null,{"$f":"IFERROR(VLOOKUP(Juli_deltagelse[[#This Row],[Studie-id]],ListeOverStuderende[],18,FALSE),\"\")","v":""},{"$nulls":31},{"$f":"COUNTIF(Juli_deltagelse[[#This Row],[1]:[31]],Kode1)","v":0},{"$f":"COUNTIF(Juli_deltagelse[[#This Row],[1]:[31]],Kode2)","v":0},{"$f":"COUNTIF(Juli_deltagelse[[#This Row],[1]:[31]],Kode3)","v":0},{"$f":"COUNTIF(Juli_deltagelse[[#This Row],[1]:[31]],Kode4)","v":0},{"$f":"SUM(Juli_deltagelse[[#This Row],[H1]:[H]])","v":0}]
[null,null,{"$f":"IFERROR(VLOOKUP(Juli_deltagelse[[#This Row],[Studie-id]],ListeOverStuderende[],18,FALSE),\"\")","v":""},{"$nulls":31},{"$f":"COUNTIF(Juli_deltagelse[[#This Row],[1]:[31]],Kode1)","v":0},{"$f":"COUNTIF(Juli_deltagelse[[#This Row],[1]:[31]],Kode2)","v":0},{"$f":"COUNTIF(Juli_deltagelse[[#This Row],[1]:[31]],Kode3)","v":0},{"$f":"COUNTIF(Juli_deltagelse[[#This Row],[1]:[31]],Kode4)","v":0},{"$f":"SUM(Juli_deltagelse[[#This Row],[H1]:[H]])","v":0}]
[null,null,{"$f":"IFERROR(VLOOKUP(Juli_deltagelse[[#This Row],[Studie-id]],ListeOverStuderende[],18,FALSE),\"\")","v":""},{"$nulls":31},{"$f":"COUNTIF(Juli_deltagelse[[#This Row],[1]:[31]],Kode1)","v":0},{"$f":"COUNTIF(Juli_deltagelse[[#This Row],[1]:[31]],Kode2)","v":0},{"$f":"COUNTIF(Juli_deltagelse[[#This Row],[1]:[31]],Kode3)","v":0},{"$f":"COUNTIF(Juli_deltagelse[[#This Row],[1]:[31]],Kode4)","v":0},{"$f":"SUM(Juli_deltagelse[[#This Row],[H1]:[H]])","v":0}]
[null,null,{"$f":"IFERROR(VLOOKUP(Juli_deltagelse[[#This Row],[Studie-id]],ListeOverStuderende[],18,FALSE),\"\")","v":""},{"$nulls":31},{"$f":"COUNTIF(Juli_deltagelse[[#This Row],[1]:[31]],Kode1)","v":0},{"$f":"COUNTIF(Juli_deltagelse[[#This Row],[1]:[31]],Kode2)","v":0},{"$f":"COUNTIF(Juli_deltagelse[[#This Row],[1]:[31]],Kode3)","v":0},{"$f":"COUNTIF(Juli_deltagelse[[#This Row],[1]:[31]],Kode4)","v":0},{"$f":"SUM(Juli_deltagelse[[#This Row],[H1]:[H]])","v":0}]
[null,null,{"$f":"IFERROR(VLOOKUP(Juli_deltagelse[[#This Row],[Studie-id]],ListeOverStuderende[],18,FALSE),\"\")","v":""},{"$nulls":31},{"$f":"COUNTIF(Juli_deltagelse[[#This Row],[1]:[31]],Kode1)","v":0},{"$f":"COUNTIF(Juli_deltagelse[[#This Row],[1]:[31]],Kode2)","v":0},{"$f":"COUNTIF(Juli_deltagelse[[#This Row],[1]:[31]],Kode3)","v":0},{"$f":"COUNTIF(Juli_deltagelse[[#This Row],[1]:[31]],Kode4)","v":0},{"$f":"SUM(Juli_deltagelse[[#This Row],[H1]:[H]])","v":0}]
[null,null,"Antal dage med fravær i alt",{"$f":"COUNTIF(Juli_deltagelse[1],\"H1\")+COUNTIF(Juli_deltagelse[1],\"H\")","v":0},{"$f":"COUNTIF(Juli_deltagelse[2],\"H1\")+COUNTIF(Juli_deltagelse[2],\"H\")","v":0},{"$f":"COUNTIF(Juli_deltagelse[3],\"H1\")+COUNTIF(Juli_deltagelse[3],\"H\")","v":0},{"$f":"COUNTIF(Juli_deltagelse[4],\"H1\")+COUNTIF(Juli_deltagelse[4],\"H\")","v":0},{"$f":"COUNTIF(Juli_deltagelse[5],\"H1\")+COUNTIF(Juli_deltagelse[5],\"H\")","v":0},{"$f":"COUNTIF(Juli_deltagelse[6],\"H1\")+COUNTIF(Juli_deltagelse[6],\"H\")","v":0},{"$f":"COUNTIF(Juli_deltagelse[7],\"H1\")+COUNTIF(Juli_deltagelse[7],\"H\")","v":0},{"$f":"COUNTIF(Juli_deltagelse[8],\"H1\")+COUNTIF(Juli_deltagelse[8],\"H\")","v":0},{"$f":"COUNTIF(Juli_deltagelse[9],\"H1\")+COUNTIF(Juli_deltagelse[9],\"H\")","v":0},{"$f":"COUNTIF(Juli_deltagelse[10],\"H1\")+COUNTIF(Juli_deltagelse[10],\"H\")","v":0},{"$f":"COUNTIF(Juli_deltagelse[11],\"H1\")+COUNTIF(Juli_deltagelse[11],\"H\")","v":0},{"$f":"COUNTIF(Juli_deltagelse[12],\"H1\")+COUNTIF(Juli_deltagelse[12],\"H\")","v":0},{"$f":"COUNTIF(Juli_deltagelse[13],\"H1\")+COUNTIF(Juli_deltagelse[13],\"H\")","v":0},{"$f":"COUNTIF(Juli_deltagelse[14],\"H1\")+COUNTIF(Juli_deltagelse[14],\"H\")","v":0},{"$f":"COUNTIF(Juli_deltagelse[15],\"H1\")+COUNTIF(Juli_deltagelse[15],\"H\")","v":0},{"$f":"COUNTIF(Juli_deltagelse[16],\"H1\")+COUNTIF(Juli_deltagelse[16],\"H\")","v":0},{"$f":"COUNTIF(Juli_deltagelse[17],\"H1\")+COUNTIF(Juli_deltagelse[17],\"H\")","v":0},{"$f":"COUNTIF(Juli_deltagelse[18],\"H1\")+COUNTIF(Juli_deltagelse[18],\"H\")","v":0},{"$f":"COUNTIF(Juli_deltagelse[19],\"H1\")+COUNTIF(Juli_deltagelse[19],\"H\")","v":0},{"$f":"COUNTIF(Juli_deltagelse[20],\"H1\")+COUNTIF(Juli_deltagelse[20],\"H\")","v":0},{"$f":"COUNTIF(Juli_deltagelse[21],\"H1\")+COUNTIF(Juli_deltagelse[21],\"H\")","v":0},{"$f":"COUNTIF(Juli_deltagelse[22],\"H1\")+COUNTIF(Juli_deltagelse[22],\"H\")","v":0},{"$f":"COUNTIF(Juli_deltagelse[23],\"H1\")+COUNTIF(Juli_deltagelse[23],\"H\")","v":0},{"$f":"COUNTIF(Juli_deltagelse[24],\"H1\")+COUNTIF(Juli_deltagelse[24],\"H\")","v":0},{"$f":"COUNTIF(Juli_deltagelse[25],\"H1\")+COUNTIF(Juli_deltagelse[25],\"H\")","v":0},{"$f":"COUNTIF(Juli_deltagelse[26],\"H1\")+COUNTIF(Juli_deltagelse[26],\"H\")","v":0},{"$f":"COUNTIF(Juli_deltagelse[27],\"H1\")+COUNTIF(Juli_deltagelse[27],\"H\")","v":0},{"$f":"COUNTIF(Juli_deltagelse[28],\"H1\")+COUNTIF(Juli_deltagelse[28],\"H\")","v":0},{"$f":"COUNTIF(Juli_deltagelse[29],\"H1\")+COUNTIF(Juli_deltagelse[29],\"H\")","v":0},{"$f":"COUNTIF(Juli_deltagelse[30],\"H1\")+COUNTIF(Juli_deltagelse[30],\"H\")","v":0},{"$f":"COUNTIF(Juli_deltagelse[31],\"H1\")+COUNTIF(Juli_deltagelse[31],\"H\")","v":0},{"$f":"SUBTOTAL(109,Juli_deltagelse[F])","v":0},{"$f":"SUBTOTAL(109,Juli_deltagelse[H1])","v":0},{"$f":"SUBTOTAL(109,Juli_deltagelse[H])","v":0},{"$f":"SUBTOTAL(109,Juli_deltagelse[T])","v":0},{"$f":"SUBTOTAL(109,Juli_deltagelse[Dage med fravær])","v":0}]

{"sheet":"Fremmøderapport for studerende","index":14,"n_rows":40,"n_cols":37,"rows_kept":40,"merged":[[2,3,2,14],[2,15,2,17],[2,18,2,21],[2,22,2,29],[2,30,2,31],[2,32,2,35],[3,1,3,2],[3,3,3,14],[3,15,3,17],[3,18,3,21],[3,22,3,29],[3,30,3,31],[3,32,3,35],[4,1,4,9],[4,10,4,21],[4,22,4,29],[4,30,4,36],[5,1,5,9],[5,10,5,21],[5,22,5,29],[5,30,5,36],[6,1,6,9],[6,10,6,21],[6,22,6,29],[6,30,6,36],[7,1,7,9],[7,10,7,21],[7,22,7,29],[7,30,7,36],[8,1,8,9],[8,10,8,21],[8,22,8,29],[8,30,8,36],[9,1,9,9],[9,10,9,21],[9,22,9,29],[9,30,9,36],[13,1,14,32],[13,33,13,36],[15,1,16,1],[15,33,16,33],[15,34,16,34],[15,35,16,35],[15,36,16,36],[17,1,18,1],[17,33,18,33],[17,34,18,34],[17,35,18,35],[17,36,18,36],[19,1,20,1],[19,33,20,33],[19,34,20,34],[19,35,20,35],[19,36,20,36],[21,1,22,1],[21,33,22,33],[21,34,22,34],[21,35,22,35],[21,36,22,36],[23,1,24,1],[23,33,24,33],[23,34,24,34],[23,35,24,35],[23,36,24,36],[25,1,26,1],[25,33,26,33],[25,34,26,34],[25,35,26,35],[25,36,26,36],[27,1,28,1],[27,33,28,33],[27,34,28,34],[27,35,28,35],[27,36,28,36],[29,1,30,1],[29,33,30,33],[29,34,30,34],[29,35,30,35],[29,36,30,36],[31,1,32,1],[31,33,32,33],[31,34,32,34],[31,35,32,35],[31,36,32,36],[33,1,34,1],[33,33,34,33],[33,34,34,34],[33,35,34,35],[33,36,34,36],[35,1,36,1],[35,33,36,33],[35,34,36,34],[35,35,36,35],[35,36,36,36],[37,1,38,1],[37,33,38,33],[37,34,38,34],[37,35,38,35],[37,36,38,36],[39,30,39,32]]}
[{"$f":"\"Fremmøderegistrering for \"","v":"Fremmøderegistrering for "},{"$nulls":7},{"$f":"D4","v":"David Alexander"}]
[]
[null,"Studie-id",null,"Den studerendes navn",{"$nulls":11},"Køn",null,null,"Fødselsdato",{"$nulls":3},"Skole",{"$nulls":7},"Karakter",null,"Underviser",{"$nulls":3},"Lokale"]
[null,"S001",null,{"$f":"IFERROR(VLOOKUP(Studerende_opslag,ListeOverStuderende[],18,FALSE),\"\")","v":"David Alexander"},{"$nulls":11},{"$f":"IFERROR(VLOOKUP(Studerende_opslag,ListeOverStuderende[],4,FALSE),\"\")","v":"M"},null,null,{"$f":"IFERROR(VLOOKUP(Studerende_opslag,ListeOverStuderende[],5,FALSE),\"\")","v":"1997-03-28"},{"$nulls":3},"School of Fine Art\t  ",{"$nulls":7},7,null,"Luca Argentiero",{"$nulls":3},123]
[null,"Navn på forælder eller værge 1",{"$nulls":8},"Relation",{"$nulls":11},"Arbejdsnummer",{"$nulls":7},"Hjemmenummer"]
[null,{"$f":"IFERROR(VLOOKUP(Studerende_opslag,ListeOverStuderende[],6,FALSE),\"\")","v":"Michelle"},{"$nulls":8},{"$f":"IFERROR(VLOOKUP(Studerende_opslag,ListeOverStuderende[],7,FALSE),\"\")","v":"Alexander"},{"$nulls":11},{"$f":"IFERROR(VLOOKUP(Studerende_opslag,ListeOverStuderende[],8,FALSE),\"\")","v":1235550134},{"$nulls":7},{"$f":"IFERROR(VLOOKUP(Studerende_opslag,ListeOverStuderende[],9,FALSE),\"\")","v":2345550134}]
[null,"Navn på forælder eller værge 2",{"$nulls":8},"Relation",{"$nulls":11},"Arbejdsnummer",{"$nulls":7},"Hjemmenummer"]
[null,{"$f":"IFERROR(VLOOKUP(Studerende_opslag,ListeOverStuderende[],10,FALSE),\"\")","v":"Michael Alexander"},{"$nulls":8},{"$f":"IFERROR(VLOOKUP(Studerende_opslag,ListeOverStuderende[],11,FALSE),\"\")","v":"Far"},{"$nulls":11},{"$f":"IFERROR(VLOOKUP(Studerende_opslag,ListeOverStuderende[],12,FALSE),\"\")","v":1235550134},{"$nulls":7},{"$f":"IFERROR(VLOOKUP(Studerende_opslag,ListeOverStuderende[],13,FALSE),\"\")","v":2345550134}]
[null,"Kontakt ved nødstilfælde",{"$nulls":8},"Relation",{"$nulls":11},"Arbejdsnummer",{"$nulls":7},"Hjemmenummer"]
[null,{"$f":"IFERROR(VLOOKUP(Studerende_opslag,ListeOverStuderende[],14,FALSE),\"\")","v":"Reed Koch"},{"$nulls":8},{"$f":"IFERROR(VLOOKUP(Studerende_opslag,ListeOverStuderende[],15,FALSE),\"\")","v":"Bedstefar"},{"$nulls":11},{"$f":"IFERROR(VLOOKUP(Studerende_opslag,ListeOverStuderende[],16,FALSE),\"\")","v":7895550189},{"$nulls":7},{"$f":"IFERROR(VLOOKUP(Studerende_opslag,ListeOverStuderende[],17,FALSE),\"\")","v":7895550134}]
[]
[null,{"$f":"August!C3","v":"FARVENØGLE "},{"$f":"August!D3","v":"F"},{"$f":"August!E3","v":"Forsinket"},null,null,{"$f":"August!H3","v":"H"},{"$f":"August!I3","v":"Har tilladelse"},null,null,{"$f":"August!L3","v":"H1"},{"$f":"August!M3","v":"Har ikke tilladelse"},{"$nulls":3},{"$f":"August!P3","v":"T"},{"$f":"August!Q3","v":"Til stede"},null,null,{"$f":"August!T3","v":"I"},{"$f":"August!U3","v":"Ingen skolegang"}]
[]
[null,"Fremmøde",{"$nulls":31},"Totaler for fremmøde"]
[{"$nulls":33},"F","H","H1","T"]
[null,"August",1,2,3,4,5,6,7,8,9,10,11,12,13,14,15,16,17,18,19,20,21,22,23,24,25,26,27,28,29,30,31,{"$f":"COUNTIF($D17:$AH17,Kode1)","v":2},{"$f":"COUNTIF($D17:$AH17,Kode2)","v":1},{"$f":"COUNTIF($D17:$AH17,Kode3)","v":0},{"$f":"COUNTIF($D17:$AH17,Kode4)","v":19}]
[null,null,{"$f":"IFERROR(VLOOKUP(Studerende_opslag,August_deltagelse[],3,FALSE),\"\")","v":"T"},{"$f":"IFERROR(VLOOKUP(Studerende_opslag,August_deltagelse[],4,FALSE),\"\")","v":"T"},{"$f":"IFERROR(VLOOKUP(Studerende_opslag,August_deltagelse[],5,FALSE),\"\")","v":"F"},{"$f":"IFERROR(VLOOKUP(Studerende_opslag,August_deltagelse[],6,FALSE),\"\")","v":"F"},{"$f":"IFERROR(VLOOKUP(Studerende_opslag,August_deltagelse[],7,FALSE),\"\")","v":"T"},{"$f":"IFERROR(VLOOKUP(Studerende_opslag,August_deltagelse[],8,FALSE),\"\")","v":"I"},{"$f":"IFERROR(VLOOKUP(Studerende_opslag,August_deltagelse[],9,FALSE),\"\")","v":"I"},{"$f":"IFERROR(VLOOKUP(Studerende_opslag,August_deltagelse[],10,FALSE),\"\")","v":"T"},{"$f":"IFERROR(VLOOKUP(Studerende_opslag,August_deltagelse[],11,FALSE),\"\")","v":"T"},{"$f":"IFERROR(VLOOKUP(Studerende_opslag,August_deltagelse[],12,FALSE),\"\")","v":"H"},{"$f":"IFERROR(VLOOKUP(Studerende_opslag,August_deltagelse[],13,FALSE),\"\")","v":"T"},{"$f":"IFERROR(VLOOKUP(Studerende_opslag,August_deltagelse[],14,FALSE),\"\")","v":"T"},{"$f":"IFERROR(VLOOKUP(Studerende_opslag,August_deltagelse[],15,FALSE),\"\")","v":"I"},{"$f":"IFERROR(VLOOKUP(Studerende_opslag,August_deltagelse[],16,FALSE),\"\")","v":"I"},{"$f":"IFERROR(VLOOKUP(Studerende_opslag,August_deltagelse[],17,FALSE),\"\")","v":"T"},{"$f":"IFERROR(VLOOKUP(Studerende_opslag,August_deltagelse[],18,FALSE),\"\")","v":"T"},{"$f":"IFERROR(VLOOKUP(Studerende_opslag,August_deltagelse[],19,FALSE),\"\")","v":"T"},{"$f":"IFERROR(VLOOKUP(Studerende_opslag,August_deltagelse[],20,FALSE),\"\")","v":"T"},{"$f":"IFERROR(VLOOKUP(Studerende_opslag,August_deltagelse[],21,FALSE),\"\")","v":"T"},{"$f":"IFERROR(VLOOKUP(Studerende_opslag,August_deltagelse[],22,FALSE),\"\")","v":"I"},{"$f":"IFERROR(VLOOKUP(Studerende_opslag,August_deltagelse[],23,FALSE),\"\")","v":"I"},{"$f":"IFERROR(VLOOKUP(Studerende_opslag,August_deltagelse[],24,FALSE),\"\")","v":"T"},{"$f":"IFERROR(VLOOKUP(Studerende_opslag,August_deltagelse[],25,FALSE),\"\")","v":"T"},{"$f":"IFERROR(VLOOKUP(Studerende_opslag,August_deltagelse[],26,FALSE),\"\")","v":"T"},{"$f":"IFERROR(VLOOKUP(Studerende_opslag,August_deltagelse[],27,FALSE),\"\")","v":"T"},{"$f":"IFERROR(VLOOKUP(Studerende_opslag,August_deltagelse[],28,FALSE),\"\")","v":"T"},{"$f":"IFERROR(VLOOKUP(Studerende_opslag,August_deltagelse[],29,FALSE),\"\")","v":"I"},{"$f":"IFERROR(VLOOKUP(Studerende_opslag,August_deltagelse[],30,FALSE),\"\")","v":"I"},{"$f":"IFERROR(VLOOKUP(Studerende_opslag,August_deltagelse[],31,FALSE),\"\")","v":"T"},{"$f":"IFERROR(VLOOKUP(Studerende_opslag,August_deltagelse[],32,FALSE),\"\")","v":"T"},{"$f":"IFERROR(VLOOKUP(Studerende_opslag,August_deltagelse[],33,FALSE),\"\")","v":"T"}]
[null,"September",1,2,3,4,5,6,7,8,9,10,11,12,13,14,15,16,17,18,19,20,21,22,23,24,25,26,27,28,29,30,null,{"$f":"COUNTIF($D19:$AH19,Kode1)","v":0},{"$f":"COUNTIF($D19:$AH19,Kode2)","v":0},{"$f":"COUNTIF($D19:$AH19,Kode3)","v":0},{"$f":"COUNTIF($D19:$AH19,Kode4)","v":0}]
[null,null,{"$f":"IFERROR(VLOOKUP(Studerende_opslag,September_deltagelse[],3,FALSE),\"\")","v":""},{"$f":"IFERROR(VLOOKUP(Studerende_opslag,September_deltagelse[],4,FALSE),\"\")","v":""},{"$f":"IFERROR(VLOOKUP(Studerende_opslag,September_deltagelse[],5,FALSE),\"\")","v":""},{"$f":"IFERROR(VLOOKUP(Studerende_opslag,September_deltagelse[],6,FALSE),\"\")","v":""},{"$f":"IFERROR(VLOOKUP(Studerende_opslag,September_deltagelse[],7,FALSE),\"\")","v":""},{"$f":"IFERROR(VLOOKUP(Studerende_opslag,September_deltagelse[],8,FALSE),\"\")","v":""},{"$f":"IFERROR(VLOOKUP(Studerende_opslag,September_deltagelse[],9,FALSE),\"\")","v":""},{"$f":"IFERROR(VLOOKUP(Studerende_opslag,September_deltagelse[],10,FALSE),\"\")","v":""},{"$f":"IFERROR(VLOOKUP(Studerende_opslag,September_deltagelse[],11,FALSE),\"\")","v":""},{"$f":"IFERROR(VLOOKUP(Studerende_opslag,September_deltagelse[],12,FALSE),\"\")","v":""},{"$f":"IFERROR(VLOOKUP(Studerende_opslag,September_deltagelse[],13,FALSE),\"\")","v":""},{"$f":"IFERROR(VLOOKUP(Studerende_opslag,September_deltagelse[],14,FALSE),\"\")","v":""},{"$f":"IFERROR(VLOOKUP(Studerende_opslag,September_deltagelse[],15,FALSE),\"\")","v":""},{"$f":"IFERROR(VLOOKUP(Studerende_opslag,September_deltagelse[],16,FALSE),\"\")","v":""},{"$f":"IFERROR(VLOOKUP(Studerende_opslag,September_deltagelse[],17,FALSE),\"\")","v":""},{"$f":"IFERROR(VLOOKUP(Studerende_opslag,September_deltagelse[],18,FALSE),\"\")","v":""},{"$f":"IFERROR(VLOOKUP(Studerende_opslag,September_deltagelse[],19,FALSE),\"\")","v":""},{"$f":"IFERROR(VLOOKUP(Studerende_opslag,September_deltagelse[],20,FALSE),\"\")","v":""},{"$f":"IFERROR(VLOOKUP(Studerende_opslag,September_deltagelse[],21,FALSE),\"\")","v":""},{"$f":"IFERROR(VLOOKUP(Studerende_opslag,September_deltagelse[],22,FALSE),\"\")","v":""},{"$f":"IFERROR(VLOOKUP(Studerende_opslag,September_deltagelse[],23,FALSE),\"\")","v":""},{"$f":"IFERROR(VLOOKUP(Studerende_opslag,September_deltagelse[],24,FALSE),\"\")","v":""},{"$f":"IFERROR(VLOOKUP(Studerende_opslag,September_deltagelse[],25,FALSE),\"\")","v":""},{"$f":"IFERROR(VLOOKUP(Studerende_opslag,September_deltagelse[],26,FALSE),\"\")","v":""},{"$f":"IFERROR(VLOOKUP(Studerende_opslag,September_deltagelse[],27,FALSE),\"\")","v":""},{"$f":"IFERROR(VLOOKUP(Studerende_opslag,September_deltagelse[],28,FALSE),\"\")","v":""},{"$f":"IFERROR(VLOOKUP(Studerende_opslag,September_deltagelse[],29,FALSE),\"\")","v":""},{"$f":"IFERROR(VLOOKUP(Studerende_opslag,September_deltagelse[],30,FALSE),\"\")","v":""},{"$f":"IFERROR(VLOOKUP(Studerende_opslag,September_deltagelse[],31,FALSE),\"\")","v":""},{"$f":"IFERROR(VLOOKUP(Studerende_opslag,September_deltagelse[],32,FALSE),\"\")","v":""}]
[null,"Oktober",1,2,3,4,5,6,7,8,9,10,11,12,13,14,15,16,17,18,19,20,21,22,23,24,25,26,27,28,29,30,31,{"$f":"COUNTIF($D21:$AH21,Kode1)","v":0},{"$f":"COUNTIF($D21:$AH21,Kode2)","v":0},{"$f":"COUNTIF($D21:$AH21,Kode3)","v":0},{"$f":"COUNTIF($D21:$AH21,Kode4)","v":0}]
[null,null,{"$f":"IFERROR(VLOOKUP(Studerende_opslag,Oktober_deltagelse[],3,FALSE),\"\")","v":""},{"$f":"IFERROR(VLOOKUP(Studerende_opslag,Oktober_deltagelse[],4,FALSE),\"\")","v":""},{"$f":"IFERROR(VLOOKUP(Studerende_opslag,Oktober_deltagelse[],5,FALSE),\"\")","v":""},{"$f":"IFERROR(VLOOKUP(Studerende_opslag,Oktober_deltagelse[],6,FALSE),\"\")","v":""},{"$f":"IFERROR(VLOOKUP(Studerende_opslag,Oktober_deltagelse[],7,FALSE),\"\")","v":""},{"$f":"IFERROR(VLOOKUP(Studerende_opslag,Oktober_deltagelse[],8,FALSE),\"\")","v":""},{"$f":"IFERROR(VLOOKUP(Studerende_opslag,Oktober_deltagelse[],9,FALSE),\"\")","v":""},{"$f":"IFERROR(VLOOKUP(Studerende_opslag,Oktober_deltagelse[],10,FALSE),\"\")","v":""},{"$f":"IFERROR(VLOOKUP(Studerende_opslag,Oktober_deltagelse[],11,FALSE),\"\")","v":""},{"$f":"IFERROR(VLOOKUP(Studerende_opslag,Oktober_deltagelse[],12,FALSE),\"\")","v":""},{"$f":"IFERROR(VLOOKUP(Studerende_opslag,Oktober_deltagelse[],13,FALSE),\"\")","v":""},{"$f":"IFERROR(VLOOKUP(Studerende_opslag,Oktober_deltagelse[],14,FALSE),\"\")","v":""},{"$f":"IFERROR(VLOOKUP(Studerende_opslag,Oktober_deltagelse[],15,FALSE),\"\")","v":""},{"$f":"IFERROR(VLOOKUP(Studerende_opslag,Oktober_deltagelse[],16,FALSE),\"\")","v":""},{"$f":"IFERROR(VLOOKUP(Studerende_opslag,Oktober_deltagelse[],17,FALSE),\"\")","v":""},{"$f":"IFERROR(VLOOKUP(Studerende_opslag,Oktober_deltagelse[],18,FALSE),\"\")","v":""},{"$f":"IFERROR(VLOOKUP(Studerende_opslag,Oktober_deltagelse[],19,FALSE),\"\")","v":""},{"$f":"IFERROR(VLOOKUP(Studerende_opslag,Oktober_deltagelse[],20,FALSE),\"\")","v":""},{"$f":"IFERROR(VLOOKUP(Studerende_opslag,Oktober_deltagelse[],21,FALSE),\"\")","v":""},{"$f":"IFERROR(VLOOKUP(Studerende_opslag,Oktober_deltagelse[],22,FALSE),\"\")","v":""},{"$f":"IFERROR(VLOOKUP(Studerende_opslag,Oktober_deltagelse[],23,FALSE),\"\")","v":""},{"$f":"IFERROR(VLOOKUP(Studerende_opslag,Oktober_deltagelse[],24,FALSE),\"\")","v":""},{"$f":"IFERROR(VLOOKUP(Studerende_opslag,Oktober_deltagelse[],25,FALSE),\"\")","v":""},{"$f":"IFERROR(VLOOKUP(Studerende_opslag,Oktober_deltagelse[],26,FALSE),\"\")","v":""},{"$f":"IFERROR(VLOOKUP(Studerende_opslag,Oktober_deltagelse[],27,FALSE),\"\")","v":""},{"$f":"IFERROR(VLOOKUP(Studerende_opslag,Oktober_deltagelse[],28,FALSE),\"\")","v":""},{"$f":"IFERROR(VLOOKUP(Studerende_opslag,Oktober_deltagelse[],29,FALSE),\"\")","v":""},{"$f":"IFERROR(VLOOKUP(Studerende_opslag,Oktober_deltagelse[],30,FALSE),\"\")","v":""},{"$f":"IFERROR(VLOOKUP(Studerende_opslag,Oktober_deltagelse[],31,FALSE),\"\")","v":""},{"$f":"IFERROR(VLOOKUP(Studerende_opslag,Oktober_deltagelse[],32,FALSE),\"\")","v":""},{"$f":"IFERROR(VLOOKUP(Studerende_opslag,Oktober_deltagelse[],33,FALSE),\"\")","v":""}]
[null,"November",1,2,3,4,5,6,7,8,9,10,11,12,13,14,15,16,17,18,19,20,21,22,23,24,25,26,27,28,29,30,null,{"$f":"COUNTIF($D23:$AH23,Kode1)","v":0},{"$f":"COUNTIF($D23:$AH23,Kode2)","v":0},{"$f":"COUNTIF($D23:$AH23,Kode3)","v":0},{"$f":"COUNTIF($D23:$AH23,Kode4)","v":0}]
[null,null,{"$f":"IFERROR(VLOOKUP(Studerende_opslag,November_deltagelse[],3,FALSE),\"\")","v":""},{"$f":"IFERROR(VLOOKUP(Studerende_opslag,November_deltagelse[],4,FALSE),\"\")","v":""},{"$f":"IFERROR(VLOOKUP(Studerende_opslag,November_deltagelse[],5,FALSE),\"\")","v":""},{"$f":"IFERROR(VLOOKUP(Studerende_opslag,November_deltagelse[],6,FALSE),\"\")","v":""},{"$f":"IFERROR(VLOOKUP(Studerende_opslag,November_deltagelse[],7,FALSE),\"\")","v":""},{"$f":"IFERROR(VLOOKUP(Studerende_opslag,November_deltagelse[],8,FALSE),\"\")","v":""},{"$f":"IFERROR(VLOOKUP(Studerende_opslag,November_deltagelse[],9,FALSE),\"\")","v":""},{"$f":"IFERROR(VLOOKUP(Studerende_opslag,November_deltagelse[],10,FALSE),\"\")","v":""},{"$f":"IFERROR(VLOOKUP(Studerende_opslag,November_deltagelse[],11,FALSE),\"\")","v":""},{"$f":"IFERROR(VLOOKUP(Studerende_opslag,November_deltagelse[],12,FALSE),\"\")","v":""},{"$f":"IFERROR(VLOOKUP(Studerende_opslag,November_deltagelse[],13,FALSE),\"\")","v":""},{"$f":"IFERROR(VLOOKUP(Studerende_opslag,November_deltagelse[],14,FALSE),\"\")","v":""},{"$f":"IFERROR(VLOOKUP(Studerende_opslag,November_deltagelse[],15,FALSE),\"\")","v":""},{"$f":"IFERROR(VLOOKUP(Studerende_opslag,November_deltagelse[],16,FALSE),\"\")","v":""},{"$f":"IFERROR(VLOOKUP(Studerende_opslag,November_deltagelse[],17,FALSE),\"\")","v":""},{"$f":"IFERROR(VLOOKUP(Studerende_opslag,November_deltagelse[],18,FALSE),\"\")","v":""},{"$f":"IFERROR(VLOOKUP(Studerende_opslag,November_deltagelse[],19,FALSE),\"\")","v":""},{"$f":"IFERROR(VLOOKUP(Studerende_opslag,November_deltagelse[],20,FALSE),\"\")","v":""},{"$f":"IFERROR(VLOOKUP(Studerende_opslag,November_deltagelse[],21,FALSE),\"\")","v":""},{"$f":"IFERROR(VLOOKUP(Studerende_opslag,November_deltagelse[],22,FALSE),\"\")","v":""},{"$f":"IFERROR(VLOOKUP(Studerende_opslag,November_deltagelse[],23,FALSE),\"\")","v":""},{"$f":"IFERROR(VLOOKUP(Studerende_opslag,November_deltagelse[],24,FALSE),\"\")","v":""},{"$f":"IFERROR(VLOOKUP(Studerende_opslag,November_deltagelse[],25,FALSE),\"\")","v":""},{"$f":"IFERROR(VLOOKUP(Studerende_opslag,November_deltagelse[],26,FALSE),\"\")","v":""},{"$f":"IFERROR(VLOOKUP(Studerende_opslag,November_deltagelse[],27,FALSE),\"\")","v":""},{"$f":"IFERROR(VLOOKUP(Studerende_opslag,November_deltagelse[],28,FALSE),\"\")","v":""},{"$f":"IFERROR(VLOOKUP(Studerende_opslag,November_deltagelse[],29,FALSE),\"\")","v":""},{"$f":"IFERROR(VLOOKUP(Studerende_opslag,November_deltagelse[],30,FALSE),\"\")","v":""},{"$f":"IFERROR(VLOOKUP(Studerende_opslag,November_deltagelse[],31,FALSE),\"\")","v":""},{"$f":"IFERROR(VLOOKUP(Studerende_opslag,November_deltagelse[],32,FALSE),\"\")","v":""}]
[null,"December",1,2,3,4,5,6,7,8,9,10,11,12,13,14,15,16,17,18,19,20,21,22,23,24,25,26,27,28,29,30,31,{"$f":"COUNTIF($D25:$AH25,Kode1)","v":0},{"$f":"COUNTIF($D25:$AH25,Kode2)","v":0},{"$f":"COUNTIF($D25:$AH25,Kode3)","v":0},{"$f":"COUNTIF($D25:$AH25,Kode4)","v":0}]
[null,null,{"$f":"IFERROR(VLOOKUP(Studerende_opslag,December_deltagelse[],3,FALSE),\"\")","v":""},{"$f":"IFERROR(VLOOKUP(Studerende_opslag,December_deltagelse[],4,FALSE),\"\")","v":""},{"$f":"IFERROR(VLOOKUP(Studerende_opslag,December_deltagelse[],5,FALSE),\"\")","v":""},{"$f":"IFERROR(VLOOKUP(Studerende_opslag,December_deltagelse[],6,FALSE),\"\")","v":""},{"$f":"IFERROR(VLOOKUP(Studerende_opslag,December_deltagelse[],7,FALSE),\"\")","v":""},{"$f":"IFERROR(VLOOKUP(Studerende_opslag,December_deltagelse[],8,FALSE),\"\")","v":""},{"$f":"IFERROR(VLOOKUP(Studerende_opslag,December_deltagelse[],9,FALSE),\"\")","v":""},{"$f":"IFERROR(VLOOKUP(Studerende_opslag,December_deltagelse[],10,FALSE),\"\")","v":""},{"$f":"IFERROR(VLOOKUP(Studerende_opslag,December_deltagelse[],11,FALSE),\"\")","v":""},{"$f":"IFERROR(VLOOKUP(Studerende_opslag,December_deltagelse[],12,FALSE),\"\")","v":""},{"$f":"IFERROR(VLOOKUP(Studerende_opslag,December_deltagelse[],13,FALSE),\"\")","v":""},{"$f":"IFERROR(VLOOKUP(Studerende_opslag,December_deltagelse[],14,FALSE),\"\")","v":""},{"$f":"IFERROR(VLOOKUP(Studerende_opslag,December_deltagelse[],15,FALSE),\"\")","v":""},{"$f":"IFERROR(VLOOKUP(Studerende_opslag,December_deltagelse[],16,FALSE),\"\")","v":""},{"$f":"IFERROR(VLOOKUP(Studerende_opslag,December_deltagelse[],17,FALSE),\"\")","v":""},{"$f":"IFERROR(VLOOKUP(Studerende_opslag,December_deltagelse[],18,FALSE),\"\")","v":""},{"$f":"IFERROR(VLOOKUP(Studerende_opslag,December_deltagelse[],19,FALSE),\"\")","v":""},{"$f":"IFERROR(VLOOKUP(Studerende_opslag,December_deltagelse[],20,FALSE),\"\")","v":""},{"$f":"IFERROR(VLOOKUP(Studerende_opslag,December_deltagelse[],21,FALSE),\"\")","v":""},{"$f":"IFERROR(VLOOKUP(Studerende_opslag,December_deltagelse[],22,FALSE),\"\")","v":""},{"$f":"IFERROR(VLOOKUP(Studerende_opslag,December_deltagelse[],23,FALSE),\"\")","v":""},{"$f":"IFERROR(VLOOKUP(Studerende_opslag,December_deltagelse[],24,FALSE),\"\")","v":""},{"$f":"IFERROR(VLOOKUP(Studerende_opslag,December_deltagelse[],25,FALSE),\"\")","v":""},{"$f":"IFERROR(VLOOKUP(Studerende_opslag,December_deltagelse[],26,FALSE),\"\")","v":""},{"$f":"IFERROR(VLOOKUP(Studerende_opslag,December_deltagelse[],27,FALSE),\"\")","v":""},{"$f":"IFERROR(VLOOKUP(Studerende_opslag,December_deltagelse[],28,FALSE),\"\")","v":""},{"$f":"IFERROR(VLOOKUP(Studerende_opslag,December_deltagelse[],29,FALSE),\"\")","v":""},{"$f":"IFERROR(VLOOKUP(Studerende_opslag,December_deltagelse[],30,FALSE),\"\")","v":""},{"$f":"IFERROR(VLOOKUP(Studerende_opslag,December_deltagelse[],31,FALSE),\"\")","v":""},{"$f":"IFERROR(VLOOKUP(Studerende_opslag,December_deltagelse[],32,FALSE),\"\")","v":""},{"$f":"IFERROR(VLOOKUP(Studerende_opslag,December_deltagelse[],33,FALSE),\"\")","v":""}]
[null,"Januar",1,2,3,4,5,6,7,8,9,10,11,12,13,14,15,16,17,18,19,20,21,22,23,24,25,26,27,28,29,30,31,{"$f":"COUNTIF($D27:$AH27,Kode1)","v":0},{"$f":"COUNTIF($D27:$AH27,Kode2)","v":0},{"$f":"COUNTIF($D27:$AH27,Kode3)","v":0},{"$f":"COUNTIF($D27:$AH27,Kode4)","v":0}]
[null,null,{"$f":"IFERROR(VLOOKUP(Studerende_opslag,Januar_deltagelse[],3,FALSE),\"\")","v":""},{"$f":"IFERROR(VLOOKUP(Studerende_opslag,Januar_deltagelse[],4,FALSE),\"\")","v":""},{"$f":"IFERROR(VLOOKUP(Studerende_opslag,Januar_deltagelse[],5,FALSE),\"\")","v":""},{"$f":"IFERROR(VLOOKUP(Studerende_opslag,Januar_deltagelse[],6,FALSE),\"\")","v":""},{"$f":"IFERROR(VLOOKUP(Studerende_opslag,Januar_deltagelse[],7,FALSE),\"\")","v":""},{"$f":"IFERROR(VLOOKUP(Studerende_opslag,Januar_deltagelse[],8,FALSE),\"\")","v":""},{"$f":"IFERROR(VLOOKUP(Studerende_opslag,Januar_deltagelse[],9,FALSE),\"\")","v":""},{"$f":"IFERROR(VLOOKUP(Studerende_opslag,Januar_deltagelse[],10,FALSE),\"\")","v":""},{"$f":"IFERROR(VLOOKUP(Studerende_opslag,Januar_deltagelse[],11,FALSE),\"\")","v":""},{"$f":"IFERROR(VLOOKUP(Studerende_opslag,Januar_deltagelse[],12,FALSE),\"\")","v":""},{"$f":"IFERROR(VLOOKUP(Studerende_opslag,Januar_deltagelse[],13,FALSE),\"\")","v":""},{"$f":"IFERROR(VLOOKUP(Studerende_opslag,Januar_deltagelse[],14,FALSE),\"\")","v":""},{"$f":"IFERROR(VLOOKUP(Studerende_opslag,Januar_deltagelse[],15,FALSE),\"\")","v":""},{"$f":"IFERROR(VLOOKUP(Studerende_opslag,Januar_deltagelse[],16,FALSE),\"\")","v":""},{"$f":"IFERROR(VLOOKUP(Studerende_opslag,Januar_deltagelse[],17,FALSE),\"\")","v":""},{"$f":"IFERROR(VLOOKUP(Studerende_opslag,Januar_deltagelse[],18,FALSE),\"\")","v":""},{"$f":"IFERROR(VLOOKUP(Studerende_opslag,Januar_deltagelse[],19,FALSE),\"\")","v":""},{"$f":"IFERROR(VLOOKUP(Studerende_opslag,Januar_deltagelse[],20,FALSE),\"\")","v":""},{"$f":"IFERROR(VLOOKUP(Studerende_opslag,Januar_deltagelse[],21,FALSE),\"\")","v":""},{"$f":"IFERROR(VLOOKUP(Studerende_opslag,Januar_deltagelse[],22,FALSE),\"\")","v":""},{"$f":"IFERROR(VLOOKUP(Studerende_opslag,Januar_deltagelse[],23,FALSE),\"\")","v":""},{"$f":"IFERROR(VLOOKUP(Studerende_opslag,Januar_deltagelse[],24,FALSE),\"\")","v":""},{"$f":"IFERROR(VLOOKUP(Studerende_opslag,Januar_deltagelse[],25,FALSE),\"\")","v":""},{"$f":"IFERROR(VLOOKUP(Studerende_opslag,Januar_deltagelse[],26,FALSE),\"\")","v":""},{"$f":"IFERROR(VLOOKUP(Studerende_opslag,Januar_deltagelse[],27,FALSE),\"\")","v":""},{"$f":"IFERROR(VLOOKUP(Studerende_opslag,Januar_deltagelse[],28,FALSE),\"\")","v":""},{"$f":"IFERROR(VLOOKUP(Studerende_opslag,Januar_deltagelse[],29,FALSE),\"\")","v":""},{"$f":"IFERROR(VLOOKUP(Studerende_opslag,Januar_deltagelse[],30,FALSE),\"\")","v":""},{"$f":"IFERROR(VLOOKUP(Studerende_opslag,Januar_deltagelse[],31,FALSE),\"\")","v":""},{"$f":"IFERROR(VLOOKUP(Studerende_opslag,Januar_deltagelse[],32,FALSE),\"\")","v":""},{"$f":"IFERROR(VLOOKUP(Studerende_opslag,Januar_deltagelse[],33,FALSE),\"\")","v":""}]
[null,"Februar",1,2,3,4,5,6,7,8,9,10,11,12,13,14,15,16,17,18,19,20,21,22,23,24,25,26,27,28,29,null,null,{"$f":"COUNTIF($D29:$AH29,Kode1)","v":0},{"$f":"COUNTIF($D29:$AH29,Kode2)","v":0},{"$f":"COUNTIF($D29:$AH29,Kode3)","v":0},{"$f":"COUNTIF($D29:$AH29,Kode4)","v":0}]
[null,null,{"$f":"IFERROR(VLOOKUP(Studerende_opslag,Februar_deltagelse[],3,FALSE),\"\")","v":""},{"$f":"IFERROR(VLOOKUP(Studerende_opslag,Februar_deltagelse[],4,FALSE),\"\")","v":""},{"$f":"IFERROR(VLOOKUP(Studerende_opslag,Februar_deltagelse[],5,FALSE),\"\")","v":""},{"$f":"IFERROR(VLOOKUP(Studerende_opslag,Februar_deltagelse[],6,FALSE),\"\")","v":""},{"$f":"IFERROR(VLOOKUP(Studerende_opslag,Februar_deltagelse[],7,FALSE),\"\")","v":""},{"$f":"IFERROR(VLOOKUP(Studerende_opslag,Februar_deltagelse[],8,FALSE),\"\")","v":""},{"$f":"IFERROR(VLOOKUP(Studerende_opslag,Februar_deltagelse[],9,FALSE),\"\")","v":""},{"$f":"IFERROR(VLOOKUP(Studerende_opslag,Februar_deltagelse[],10,FALSE),\"\")","v":""},{"$f":"IFERROR(VLOOKUP(Studerende_opslag,Februar_deltagelse[],11,FALSE),\"\")","v":""},{"$f":"IFERROR(VLOOKUP(Studerende_opslag,Februar_deltagelse[],12,FALSE),\"\")","v":""},{"$f":"IFERROR(VLOOKUP(Studerende_opslag,Februar_deltagelse[],13,FALSE),\"\")","v":""},{"$f":"IFERROR(VLOOKUP(Studerende_opslag,Februar_deltagelse[],14,FALSE),\"\")","v":""},{"$f":"IFERROR(VLOOKUP(Studerende_opslag,Februar_deltagelse[],15,FALSE),\"\")","v":""},{"$f":"IFERROR(VLOOKUP(Studerende_opslag,Februar_deltagelse[],16,FALSE),\"\")","v":""},{"$f":"IFERROR(VLOOKUP(Studerende_opslag,Februar_deltagelse[],17,FALSE),\"\")","v":""},{"$f":"IFERROR(VLOOKUP(Studerende_opslag,Februar_deltagelse[],18,FALSE),\"\")","v":""},{"$f":"IFERROR(VLOOKUP(Studerende_opslag,Februar_deltagelse[],19,FALSE),\"\")","v":""},{"$f":"IFERROR(VLOOKUP(Studerende_opslag,Februar_deltagelse[],20,FALSE),\"\")","v":""},{"$f":"IFERROR(VLOOKUP(Studerende_opslag,Februar_deltagelse[],21,FALSE),\"\")","v":""},{"$f":"IFERROR(VLOOKUP(Studerende_opslag,Februar_deltagelse[],22,FALSE),\"\")","v":""},{"$f":"IFERROR(VLOOKUP(Studerende_opslag,Februar_deltagelse[],23,FALSE),\"\")","v":""},{"$f":"IFERROR(VLOOKUP(Studerende_opslag,Februar_deltagelse[],24,FALSE),\"\")","v":""},{"$f":"IFERROR(VLOOKUP(Studerende_opslag,Februar_deltagelse[],25,FALSE),\"\")","v":""},{"$f":"IFERROR(VLOOKUP(Studerende_opslag,Februar_deltagelse[],26,FALSE),\"\")","v":""},{"$f":"IFERROR(VLOOKUP(Studerende_opslag,Februar_deltagelse[],27,FALSE),\"\")","v":""},{"$f":"IFERROR(VLOOKUP(Studerende_opslag,Februar_deltagelse[],28,FALSE),\"\")","v":""},{"$f":"IFERROR(VLOOKUP(Studerende_opslag,Februar_deltagelse[],29,FALSE),\"\")","v":""},{"$f":"IFERROR(VLOOKUP(Studerende_opslag,Februar_deltagelse[],30,FALSE),\"\")","v":""},{"$f":"IFERROR(VLOOKUP(Studerende_opslag,Februar_deltagelse[],31,FALSE),\"\")","v":""}]
[null,"Marts",1,2,3,4,5,6,7,8,9,10,11,12,13,14,15,16,17,18,19,20,21,22,23,24,25,26,27,28,29,30,31,{"$f":"COUNTIF($D31:$AH31,Kode1)","v":0},{"$f":"COUNTIF($D31:$AH31,Kode2)","v":0},{"$f":"COUNTIF($D31:$AH31,Kode3)","v":0},{"$f":"COUNTIF($D31:$AH31,Kode4)","v":0}]
[null,null,{"$f":"IFERROR(VLOOKUP(Studerende_opslag,Marts_deltagelse[],3,FALSE),\"\")","v":""},{"$f":"IFERROR(VLOOKUP(Studerende_opslag,Marts_deltagelse[],4,FALSE),\"\")","v":""},{"$f":"IFERROR(VLOOKUP(Studerende_opslag,Marts_deltagelse[],5,FALSE),\"\")","v":""},{"$f":"IFERROR(VLOOKUP(Studerende_opslag,Marts_deltagelse[],6,FALSE),\"\")","v":""},{"$f":"IFERROR(VLOOKUP(Studerende_opslag,Marts_deltagelse[],7,FALSE),\"\")","v":""},{"$f":"IFERROR(VLOOKUP(Studerende_opslag,Marts_deltagelse[],8,FALSE),\"\")","v":""},{"$f":"IFERROR(VLOOKUP(Studerende_opslag,Marts_deltagelse[],9,FALSE),\"\")","v":""},{"$f":"IFERROR(VLOOKUP(Studerende_opslag,Marts_deltagelse[],10,FALSE),\"\")","v":""},{"$f":"IFERROR(VLOOKUP(Studerende_opslag,Marts_deltagelse[],11,FALSE),\"\")","v":""},{"$f":"IFERROR(VLOOKUP(Studerende_opslag,Marts_deltagelse[],12,FALSE),\"\")","v":""},{"$f":"IFERROR(VLOOKUP(Studerende_opslag,Marts_deltagelse[],13,FALSE),\"\")","v":""},{"$f":"IFERROR(VLOOKUP(Studerende_opslag,Marts_deltagelse[],14,FALSE),\"\")","v":""},{"$f":"IFERROR(VLOOKUP(Studerende_opslag,Marts_deltagelse[],15,FALSE),\"\")","v":""},{"$f":"IFERROR(VLOOKUP(Studerende_opslag,Marts_deltagelse[],16,FALSE),\"\")","v":""},{"$f":"IFERROR(VLOOKUP(Studerende_opslag,Marts_deltagelse[],17,FALSE),\"\")","v":""},{"$f":"IFERROR(VLOOKUP(Studerende_opslag,Marts_deltagelse[],18,FALSE),\"\")","v":""},{"$f":"IFERROR(VLOOKUP(Studerende_opslag,Marts_deltagelse[],19,FALSE),\"\")","v":""},{"$f":"IFERROR(VLOOKUP(Studerende_opslag,Marts_deltagelse[],20,FALSE),\"\")","v":""},{"$f":"IFERROR(VLOOKUP(Studerende_opslag,Marts_deltagelse[],21,FALSE),\"\")","v":""},{"$f":"IFERROR(VLOOKUP(Studerende_opslag,Marts_deltagelse[],22,FALSE),\"\")","v":""},{"$f":"IFERROR(VLOOKUP(Studerende_opslag,Marts_deltagelse[],23,FALSE),\"\")","v":""},{"$f":"IFERROR(VLOOKUP(Studerende_opslag,Marts_deltagelse[],24,FALSE),\"\")","v":""},{"$f":"IFERROR(VLOOKUP(Studerende_opslag,Marts_deltagelse[],25,FALSE),\"\")","v":""},{"$f":"IFERROR(VLOOKUP(Studerende_opslag,Marts_deltagelse[],26,FALSE),\"\")","v":""},{"$f":"IFERROR(VLOOKUP(Studerende_opslag,Marts_deltagelse[],27,FALSE),\"\")","v":""},{"$f":"IFERROR(VLOOKUP(Studerende_opslag,Marts_deltagelse[],28,FALSE),\"\")","v":""},{"$f":"IFERROR(VLOOKUP(Studerende_opslag,Marts_deltagelse[],29,FALSE),\"\")","v":""},{"$f":"IFERROR(VLOOKUP(Studerende_opslag,Marts_deltagelse[],30,FALSE),\"\")","v":""},{"$f":"IFERROR(VLOOKUP(Studerende_opslag,Marts_deltagelse[],31,FALSE),\"\")","v":""},{"$f":"IFERROR(VLOOKUP(Studerende_opslag,Marts_deltagelse[],32,FALSE),\"\")","v":""},{"$f":"IFERROR(VLOOKUP(Studerende_opslag,Marts_deltagelse[],33,FALSE),\"\")","v":""}]
[null,"April",1,2,3,4,5,6,7,8,9,10,11,12,13,14,15,16,17,18,19,20,21,22,23,24,25,26,27,28,29,30,null,{"$f":"COUNTIF($D33:$AH33,Kode1)","v":0},{"$f":"COUNTIF($D33:$AH33,Kode2)","v":0},{"$f":"COUNTIF($D33:$AH33,Kode3)","v":0},{"$f":"COUNTIF($D33:$AH33,Kode4)","v":0}]
[null,null,{"$f":"IFERROR(VLOOKUP(Studerende_opslag,April_deltagelse[],3,FALSE),\"\")","v":""},{"$f":"IFERROR(VLOOKUP(Studerende_opslag,April_deltagelse[],4,FALSE),\"\")","v":""},{"$f":"IFERROR(VLOOKUP(Studerende_opslag,April_deltagelse[],5,FALSE),\"\")","v":""},{"$f":"IFERROR(VLOOKUP(Studerende_opslag,April_deltagelse[],6,FALSE),\"\")","v":""},{"$f":"IFERROR(VLOOKUP(Studerende_opslag,April_deltagelse[],7,FALSE),\"\")","v":""},{"$f":"IFERROR(VLOOKUP(Studerende_opslag,April_deltagelse[],8,FALSE),\"\")","v":""},{"$f":"IFERROR(VLOOKUP(Studerende_opslag,April_deltagelse[],9,FALSE),\"\")","v":""},{"$f":"IFERROR(VLOOKUP(Studerende_opslag,April_deltagelse[],10,FALSE),\"\")","v":""},{"$f":"IFERROR(VLOOKUP(Studerende_opslag,April_deltagelse[],11,FALSE),\"\")","v":""},{"$f":"IFERROR(VLOOKUP(Studerende_opslag,April_deltagelse[],12,FALSE),\"\")","v":""},{"$f":"IFERROR(VLOOKUP(Studerende_opslag,April_deltagelse[],13,FALSE),\"\")","v":""},{"$f":"IFERROR(VLOOKUP(Studerende_opslag,April_deltagelse[],14,FALSE),\"\")","v":""},{"$f":"IFERROR(VLOOKUP(Studerende_opslag,April_deltagelse[],15,FALSE),\"\")","v":""},{"$f":"IFERROR(VLOOKUP(Studerende_opslag,April_deltagelse[],16,FALSE),\"\")","v":""},{"$f":"IFERROR(VLOOKUP(Studerende_opslag,April_deltagelse[],17,FALSE),\"\")","v":""},{"$f":"IFERROR(VLOOKUP(Studerende_opslag,April_deltagelse[],18,FALSE),\"\")","v":""},{"$f":"IFERROR(VLOOKUP(Studerende_opslag,April_deltagelse[],19,FALSE),\"\")","v":""},{"$f":"IFERROR(VLOOKUP(Studerende_opslag,April_deltagelse[],20,FALSE),\"\")","v":""},{"$f":"IFERROR(VLOOKUP(Studerende_opslag,April_deltagelse[],21,FALSE),\"\")","v":""},{"$f":"IFERROR(VLOOKUP(Studerende_opslag,April_deltagelse[],22,FALSE),\"\")","v":""},{"$f":"IFERROR(VLOOKUP(Studerende_opslag,April_deltagelse[],23,FALSE),\"\")","v":""},{"$f":"IFERROR(VLOOKUP(Studerende_opslag,April_deltagelse[],24,FALSE),\"\")","v":""},{"$f":"IFERROR(VLOOKUP(Studerende_opslag,April_deltagelse[],25,FALSE),\"\")","v":""},{"$f":"IFERROR(VLOOKUP(Studerende_opslag,April_deltagelse[],26,FALSE),\"\")","v":""},{"$f":"IFERROR(VLOOKUP(Studerende_opslag,April_deltagelse[],27,FALSE),\"\")","v":""},{"$f":"IFERROR(VLOOKUP(Studerende_opslag,April_deltagelse[],28,FALSE),\"\")","v":""},{"$f":"IFERROR(VLOOKUP(Studerende_opslag,April_deltagelse[],29,FALSE),\"\")","v":""},{"$f":"IFERROR(VLOOKUP(Studerende_opslag,April_deltagelse[],30,FALSE),\"\")","v":""},{"$f":"IFERROR(VLOOKUP(Studerende_opslag,April_deltagelse[],31,FALSE),\"\")","v":""},{"$f":"IFERROR(VLOOKUP(Studerende_opslag,April_deltagelse[],32,FALSE),\"\")","v":""}]
[null,"Maj",1,2,3,4,5,6,7,8,9,10,11,12,13,14,15,16,17,18,19,20,21,22,23,24,25,26,27,28,29,30,31,{"$f":"COUNTIF($D35:$AH35,Kode1)","v":0},{"$f":"COUNTIF($D35:$AH35,Kode2)","v":0},{"$f":"COUNTIF($D35:$AH35,Kode3)","v":0},{"$f":"COUNTIF($D35:$AH35,Kode4)","v":0}]
[null,null,{"$f":"IFERROR(VLOOKUP(Studerende_opslag,Maj_deltagelse[],3,FALSE),\"\")","v":""},{"$f":"IFERROR(VLOOKUP(Studerende_opslag,Maj_deltagelse[],4,FALSE),\"\")","v":""},{"$f":"IFERROR(VLOOKUP(Studerende_opslag,Maj_deltagelse[],5,FALSE),\"\")","v":""},{"$f":"IFERROR(VLOOKUP(Studerende_opslag,Maj_deltagelse[],6,FALSE),\"\")","v":""},{"$f":"IFERROR(VLOOKUP(Studerende_opslag,Maj_deltagelse[],7,FALSE),\"\")","v":""},{"$f":"IFERROR(VLOOKUP(Studerende_opslag,Maj_deltagelse[],8,FALSE),\"\")","v":""},{"$f":"IFERROR(VLOOKUP(Studerende_opslag,Maj_deltagelse[],9,FALSE),\"\")","v":""},{"$f":"IFERROR(VLOOKUP(Studerende_opslag,Maj_deltagelse[],10,FALSE),\"\")","v":""},{"$f":"IFERROR(VLOOKUP(Studerende_opslag,Maj_deltagelse[],11,FALSE),\"\")","v":""},{"$f":"IFERROR(VLOOKUP(Studerende_opslag,Maj_deltagelse[],12,FALSE),\"\")","v":""},{"$f":"IFERROR(VLOOKUP(Studerende_opslag,Maj_deltagelse[],13,FALSE),\"\")","v":""},{"$f":"IFERROR(VLOOKUP(Studerende_opslag,Maj_deltagelse[],14,FALSE),\"\")","v":""},{"$f":"IFERROR(VLOOKUP(Studerende_opslag,Maj_deltagelse[],15,FALSE),\"\")","v":""},{"$f":"IFERROR(VLOOKUP(Studerende_opslag,Maj_deltagelse[],16,FALSE),\"\")","v":""},{"$f":"IFERROR(VLOOKUP(Studerende_opslag,Maj_deltagelse[],17,FALSE),\"\")","v":""},{"$f":"IFERROR(VLOOKUP(Studerende_opslag,Maj_deltagelse[],18,FALSE),\"\")","v":""},{"$f":"IFERROR(VLOOKUP(Studerende_opslag,Maj_deltagelse[],19,FALSE),\"\")","v":""},{"$f":"IFERROR(VLOOKUP(Studerende_opslag,Maj_deltagelse[],20,FALSE),\"\")","v":""},{"$f":"IFERROR(VLOOKUP(Studerende_opslag,Maj_deltagelse[],21,FALSE),\"\")","v":""},{"$f":"IFERROR(VLOOKUP(Studerende_opslag,Maj_deltagelse[],22,FALSE),\"\")","v":""},{"$f":"IFERROR(VLOOKUP(Studerende_opslag,Maj_deltagelse[],23,FALSE),\"\")","v":""},{"$f":"IFERROR(VLOOKUP(Studerende_opslag,Maj_deltagelse[],24,FALSE),\"\")","v":""},{"$f":"IFERROR(VLOOKUP(Studerende_opslag,Maj_deltagelse[],25,FALSE),\"\")","v":""},{"$f":"IFERROR(VLOOKUP(Studerende_opslag,Maj_deltagelse[],26,FALSE),\"\")","v":""},{"$f":"IFERROR(VLOOKUP(Studerende_opslag,Maj_deltagelse[],27,FALSE),\"\")","v":""},{"$f":"IFERROR(VLOOKUP(Studerende_opslag,Maj_deltagelse[],28,FALSE),\"\")","v":""},{"$f":"IFERROR(VLOOKUP(Studerende_opslag,Maj_deltagelse[],29,FALSE),\"\")","v":""},{"$f":"IFERROR(VLOOKUP(Studerende_opslag,Maj_deltagelse[],30,FALSE),\"\")","v":""},{"$f":"IFERROR(VLOOKUP(Studerende_opslag,Maj_deltagelse[],31,FALSE),\"\")","v":""},{"$f":"IFERROR(VLOOKUP(Studerende_opslag,Maj_deltagelse[],32,FALSE),\"\")","v":""},{"$f":"IFERROR(VLOOKUP(Studerende_opslag,Maj_deltagelse[],33,FALSE),\"\")","v":""}]
[null,"Juni",1,2,3,4,5,6,7,8,9,10,11,12,13,14,15,16,17,18,19,20,21,22,23,24,25,26,27,28,29,30,null,{"$f":"COUNTIF($D37:$AH37,Kode1)","v":0},{"$f":"COUNTIF($D37:$AH37,Kode2)","v":0},{"$f":"COUNTIF($D37:$AH37,Kode3)","v":0},{"$f":"COUNTIF($D37:$AH37,Kode4)","v":0}]
[null,null,{"$f":"IFERROR(VLOOKUP(Studerende_opslag,Juni_deltagelse[],3,FALSE),\"\")","v":""},{"$f":"IFERROR(VLOOKUP(Studerende_opslag,Juni_deltagelse[],4,FALSE),\"\")","v":""},{"$f":"IFERROR(VLOOKUP(Studerende_opslag,Juni_deltagelse[],5,FALSE),\"\")","v":""},{"$f":"IFERROR(VLOOKUP(Studerende_opslag,Juni_deltagelse[],6,FALSE),\"\")","v":""},{"$f":"IFERROR(VLOOKUP(Studerende_opslag,Juni_deltagelse[],7,FALSE),\"\")","v":""},{"$f":"IFERROR(VLOOKUP(Studerende_opslag,Juni_deltagelse[],8,FALSE),\"\")","v":""},{"$f":"IFERROR(VLOOKUP(Studerende_opslag,Juni_deltagelse[],9,FALSE),\"\")","v":""},{"$f":"IFERROR(VLOOKUP(Studerende_opslag,Juni_deltagelse[],10,FALSE),\"\")","v":""},{"$f":"IFERROR(VLOOKUP(Studerende_opslag,Juni_deltagelse[],11,FALSE),\"\")","v":""},{"$f":"IFERROR(VLOOKUP(Studerende_opslag,Juni_deltagelse[],12,FALSE),\"\")","v":""},{"$f":"IFERROR(VLOOKUP(Studerende_opslag,Juni_deltagelse[],13,FALSE),\"\")","v":""},{"$f":"IFERROR(VLOOKUP(Studerende_opslag,Juni_deltagelse[],14,FALSE),\"\")","v":""},{"$f":"IFERROR(VLOOKUP(Studerende_opslag,Juni_deltagelse[],15,FALSE),\"\")","v":""},{"$f":"IFERROR(VLOOKUP(Studerende_opslag,Juni_deltagelse[],16,FALSE),\"\")","v":""},{"$f":"IFERROR(VLOOKUP(Studerende_opslag,Juni_deltagelse[],17,FALSE),\"\")","v":""},{"$f":"IFERROR(VLOOKUP(Studerende_opslag,Juni_deltagelse[],18,FALSE),\"\")","v":""},{"$f":"IFERROR(VLOOKUP(Studerende_opslag,Juni_deltagelse[],19,FALSE),\"\")","v":""},{"$f":"IFERROR(VLOOKUP(Studerende_opslag,Juni_deltagelse[],20,FALSE),\"\")","v":""},{"$f":"IFERROR(VLOOKUP(Studerende_opslag,Juni_deltagelse[],21,FALSE),\"\")","v":""},{"$f":"IFERROR(VLOOKUP(Studerende_opslag,Juni_deltagelse[],22,FALSE),\"\")","v":""},{"$f":"IFERROR(VLOOKUP(Studerende_opslag,Juni_deltagelse[],23,FALSE),\"\")","v":""},{"$f":"IFERROR(VLOOKUP(Studerende_opslag,Juni_deltagelse[],24,FALSE),\"\")","v":""},{"$f":"IFERROR(VLOOKUP(Studerende_opslag,Juni_deltagelse[],25,FALSE),\"\")","v":""},{"$f":"IFERROR(VLOOKUP(Studerende_opslag,Juni_deltagelse[],26,FALSE),\"\")","v":""},{"$f":"IFERROR(VLOOKUP(Studerende_opslag,Juni_deltagelse[],27,FALSE),\"\")","v":""},{"$f":"IFERROR(VLOOKUP(Studerende_opslag,Juni_deltagelse[],28,FALSE),\"\")","v":""},{"$f":"IFERROR(VLOOKUP(Studerende_opslag,Juni_deltagelse[],29,FALSE),\"\")","v":""},{"$f":"IFERROR(VLOOKUP(Studerende_opslag,Juni_deltagelse[],30,FALSE),\"\")","v":""},{"$f":"IFERROR(VLOOKUP(Studerende_opslag,Juni_deltagelse[],31,FALSE),\"\")","v":""},{"$f":"IFERROR(VLOOKUP(Studerende_opslag,Juni_deltagelse[],32,FALSE),\"\")","v":""}]
[null,"Juli",1,2,3,4,5,6,7,8,9,10,11,12,13,14,15,16,17,18,19,20,21,22,23,24,25,26,27,28,29,30,31,{"$f":"COUNTIF($D39:$AH39,Kode1)","v":0},{"$f":"COUNTIF($D39:$AH39,Kode2)","v":0},{"$f":"COUNTIF($D39:$AH39,Kode3)","v":0},{"$f":"COUNTIF($D39:$AH39,Kode4)","v":0}]
[null,null,{"$f":"IFERROR(VLOOKUP(Studerende_opslag,Juli_deltagelse[],3,FALSE),\"\")","v":""},{"$f":"IFERROR(VLOOKUP(Studerende_opslag,Juli_deltagelse[],4,FALSE),\"\")","v":""},{"$f":"IFERROR(VLOOKUP(Studerende_opslag,Juli_deltagelse[],5,FALSE),\"\")","v":""},{"$f":"IFERROR(VLOOKUP(Studerende_opslag,Juli_deltagelse[],6,FALSE),\"\")","v":""},{"$f":"IFERROR(VLOOKUP(Studerende_opslag,Juli_deltagelse[],7,FALSE),\"\")","v":""},{"$f":"IFERROR(VLOOKUP(Studerende_opslag,Juli_deltagelse[],8,FALSE),\"\")","v":""},{"$f":"IFERROR(VLOOKUP(Studerende_opslag,Juli_deltagelse[],9,FALSE),\"\")","v":""},{"$f":"IFERROR(VLOOKUP(Studerende_opslag,Juli_deltagelse[],10,FALSE),\"\")","v":""},{"$f":"IFERROR(VLOOKUP(Studerende_opslag,Juli_deltagelse[],11,FALSE),\"\")","v":""},{"$f":"IFERROR(VLOOKUP(Studerende_opslag,Juli_deltagelse[],12,FALSE),\"\")","v":""},{"$f":"IFERROR(VLOOKUP(Studerende_opslag,Juli_deltagelse[],13,FALSE),\"\")","v":""},{"$f":"IFERROR(VLOOKUP(Studerende_opslag,Juli_deltagelse[],14,FALSE),\"\")","v":""},{"$f":"IFERROR(VLOOKUP(Studerende_opslag,Juli_deltagelse[],15,FALSE),\"\")","v":""},{"$f":"IFERROR(VLOOKUP(Studerende_opslag,Juli_deltagelse[],16,FALSE),\"\")","v":""},{"$f":"IFERROR(VLOOKUP(Studerende_opslag,Juli_deltagelse[],17,FALSE),\"\")","v":""},{"$f":"IFERROR(VLOOKUP(Studerende_opslag,Juli_deltagelse[],18,FALSE),\"\")","v":""},{"$f":"IFERROR(VLOOKUP(Studerende_opslag,Juli_deltagelse[],19,FALSE),\"\")","v":""},{"$f":"IFERROR(VLOOKUP(Studerende_opslag,Juli_deltagelse[],20,FALSE),\"\")","v":""},{"$f":"IFERROR(VLOOKUP(Studerende_opslag,Juli_deltagelse[],21,FALSE),\"\")","v":""},{"$f":"IFERROR(VLOOKUP(Studerende_opslag,Juli_deltagelse[],22,FALSE),\"\")","v":""},{"$f":"IFERROR(VLOOKUP(Studerende_opslag,Juli_deltagelse[],23,FALSE),\"\")","v":""},{"$f":"IFERROR(VLOOKUP(Studerende_opslag,Juli_deltagelse[],24,FALSE),\"\")","v":""},{"$f":"IFERROR(VLOOKUP(Studerende_opslag,Juli_deltagelse[],25,FALSE),\"\")","v":""},{"$f":"IFERROR(VLOOKUP(Studerende_opslag,Juli_deltagelse[],26,FALSE),\"\")","v":""},{"$f":"IFERROR(VLOOKUP(Studerende_opslag,Juli_deltagelse[],27,FALSE),\"\")","v":""},{"$f":"IFERROR(VLOOKUP(Studerende_opslag,Juli_deltagelse[],28,FALSE),\"\")","v":""},{"$f":"IFERROR(VLOOKUP(Studerende_opslag,Juli_deltagelse[],29,FALSE),\"\")","v":""},{"$f":"IFERROR(VLOOKUP(Studerende_opslag,Juli_deltagelse[],30,FALSE),\"\")","v":""},{"$f":"IFERROR(VLOOKUP(Studerende_opslag,Juli_deltagelse[],31,FALSE),\"\")","v":""},{"$f":"IFERROR(VLOOKUP(Studerende_opslag,Juli_deltagelse[],32,FALSE),\"\")","v":""},{"$f":"IFERROR(VLOOKUP(Studerende_opslag,Juli_deltagelse[],33,FALSE),\"\")","v":""}]
[{"$nulls":30},"Totaler",null,null,{"$f":"SUM(AH16:AH39)","v":2},{"$f":"SUM(AI16:AI39)","v":1},{"$f":"SUM(AJ16:AJ39)","v":0},{"$f":"SUM(AK16:AK39)","v":19}]